Workbook

Sheet Caratula
B8: A los fines de facilitar la tarea profesional ponemos a disposición la planilla de Excel® F 1357 - Ganancias, Retenciones de 4ta categoría.
B9: Con esta herramienta auxiliar obtendrá como resultado un archivo TXT con los datos de los formularios 1357 del período fiscal 2021.
B11: Dicha planilla tiene un carácter general, orientativo y se presenta con sus fórmulas desprotegidas de forma tal que cada profesional pueda adecuarla a su necesidad particular, ya que no contempla todos los casos posibles, sino que constituye simplemente un ejemplo. Por ende, cada usuario es responsable por su utilización. Podrá encontrar eventuales modificaciones a la presente planilla hasta las fechas de vencimiento de dichas declaraciones juradas. Ante cualquier duda, comunicarse con clientes@errepar.com
B15: Atento a ello, remarcamos que la planilla no reemplaza ni desautoriza el criterio profesional, así como tampoco lo dispuesto por la normativa vigente, los programas de liquidación diseñados al respecto ni el aplicativo de uso obligatorio.
B17: En consideración de lo antes expuesto, deseamos manifestar que la Editorial no se responsabiliza por ningún tipo de daño o perjuicio que el uso de esta planilla o la imposibilidad de su utilización pudiera ocasionar tanto a nivel profesional, al usuario y/o a los terceros ante quienes se presente, como a su equipamiento informático (hardware/software).
B20: (*) Microsoft Excel es un programa registrado por Microsoft Corporation. Esta planilla de Excel es independiente y no se encuentra afiliada a Microsoft Corporation, ni ha sido autorizada, sponsoreada, o de cualquier otra forma aprobada por Microsoft Corporation.
E25: Recomendaciones para su uso:
E26: 1. Cargue los datos del agente de retención
E27: 2. Cargue los datos de los empleados y sus remuneraciones, deducciones generales y personales
E28: 3. Genere el txt con el botón
E29: 4. Antes de presentar el archivo, revise el nombre del mismo, para adaptarlo (en caso de que sea necesario) al siguiente formato: "F1357.<CUIT>.<PERIODO>.<SECUENCIA>.txt"
R34: Versión 04
R35: Actualizada a febrero 2022

Sheet Datos
B3: AGENTE DE RETENCIÓN
B5: Razón social | C5: OPERACIONES AGROPORTUARIAS S.A.
B7: CUIT | C7: 33711238269 | F7: =cuitValidar(C7) -> CUIT/CUIL Válido
B9: DATOS DE LA PRESENTACIÓN
B11: Liquidación | C11: Anual
B13: Período | C13: 2021-12-01
B15: Secuencia | C15: 0

Sheet Empleado01
C3: LIQUIDACIÓN DE IMPUESTO A LAS GANANCIAS - 4ta. CATEGORÍA RELACIÓN DE DEPENDENCIA
C6: Empleado: Nombre y apellido | D6: FRANCO ROBERTO ENRIQUE
C7: CUIL del empleado | D7: 20259421498 | F7: =cuitValidar(D7) -> CUIT/CUIL Válido
C8: ="Agente de Retención: " -> Agente de Retención: | D8: =Datos!C7&" - "&Datos!C5 -> 33711238269 - OPERACIONES AGROPORTUARIAS S.A.
C9: ="Período Fiscal: " -> Período Fiscal: | D9: =YEAR(Datos!C13) -> 2021
C10: Período trabajado (desde): | D10: 2021-01-01
C11: Período trabajado (hasta): | D11: 2021-12-31 | H11: =IF(MONTH(D11)>MONTH(Datos!C13),"El período trabajado no puede ser mayor al período que se informa (mes "&MONTH(Datos!C13)&")","") -> 
C12: Zona geográfica: | D12: Todo el país (excepto zona patagónica)
C13: Transporte a larga distancia | D13: No desarrolla la actividad
C14: Beneficio promocional 27424? | D14: No
C15: Beneficio de la ley 27549? | D15: No
C16: El trabajador labora bajo el régimen de teletrabajo (Ley 27555)? | D16: No
C17: El trabajador es personal militar en actividad? | D17: No
C19: REMUNERACIONES
C20: Abonadas por el agente de retención:
C21: Remuneración bruta gravada | D21: 3456678.68
C22: Retribuciones no habituales gravadas | D22: 0
C23: SAC primera cuota gravado | D23: 0
C24: SAC segunda cuota gravado | D24: 0
C25: Horas extras remuneración gravada | D25: 0 | G25: 0 | H25: % de retenciones
C26: Movilidad y viáticos remuneración gravada | D26: 0
C27: Material didáctico personal docente remuneración gravada | D27: 0
C28: Remuneración no alcanzada o exenta (sin horas extras) | D28: 0
C29: Remuneración exenta ley 27549 | D29: 0 | F29: =IF(AND($D$15="No",D29<>0),"Para que sea procedente el beneficio, modifique el valor en la celda D15","") -> 
C30: Retribuciones no habituales exentas o no alcanzadas | D30: 0
C31: Horas extras remuneración exenta | D31: 303640.94
C32: Movilidad y viáticos remuneración exenta | D32: 0
C33: Material didáctico personal docente remuneración exenta | D33: 0
C34: Bonos de productividad gravados | D34: 0
C35: Fallos de caja gravados | D35: 0
C36: Conceptos de similar naturaleza gravados | D36: 0
C37: Bonos de productividad exentos | D37: 0
C38: Fallos de caja exentos | D38: 0
C39: Conceptos de similar naturaleza exentos | D39: 0
C40: Compensación de gastos de teletrabajo exentos | D40: 0
C41: Personal militar - suplementos art. 57 ley 19.101 - exentos | D41: 0
C42: SAC primera cuota - No alcanzado o exento | D42: 0
C43: SAC segunda cuota - No alcanzado o exento | D43: 0
C44: Ajustes períodos anteriores - Remuneración gravada | D44: 0
C45: Ajustes períodos anteriores - Remuneración exenta / no alcanzada | D45: 0
C46: Otros empleos:
C47: Remuneración bruta gravada | D47: 0
C48: Retribuciones no habituales gravadas | D48: 0
C49: SAC primera cuota gravado | D49: 0
C50: SAC segunda cuota gravado | D50: 0
C51: Horas extras remuneración gravada | D51: 0 | G51: 0 | H51: % de retenciones
C52: Movilidad y viáticos remuneración gravada | D52: 0
C53: Material didáctico personal docente remuneración gravada | D53: 0
C54: Remuneración no alcanzada o exenta | D54: 0
C55: Remuneración exenta ley 27549 | D55: 0 | F55: =IF(AND($D$15="No",D55<>0),"Para que sea procedente el beneficio, modifique el valor en la celda D15","") -> 
C56: Retribuciones no habituales exentas o no alcanzadas | D56: 0
C57: Horas extras remuneración exenta o no alcanzada | D57: 0
C58: Movilidad y viáticos remuneración exenta o no alcanzada | D58: 0
C59: Material didáctico personal docente remuneración exenta o no alcanzada | D59: 0
C60: Bonos de productividad gravados | D60: 0
C61: Fallos de caja gravados | D61: 0
C62: Conceptos de similar naturaleza gravados | D62: 0
C63: Bonos de productividad exentos | D63: 0
C64: Fallos de caja exentos | D64: 0
C65: Conceptos de similar naturaleza exentos | D65: 0
C66: Compensación de gastos teletrabajo - exentos | D66: 0
C67: Personal militar - suplementos art. 57 Ley 19101 - exentos | D67: 0
C68: SAC primera cuota - No alcanzado o exento | D68: 0
C69: SAC segunda cuota - No alcanzado o exento | D69: 0
C70: Ajustes períodos anteriores - Remuneración gravada | D70: 0
C71: Ajustes períodos anteriores - Remuneración no alcanzada o exenta | D71: 0
C72: TOTAL REMUNERACIÓN GRAVADA | D72: =SUM(D21:E27,D44,D47:D53,D70) -> 3456678.68
C73: TOTAL REMUNERACIÓN NO ALCANZADA O EXENTA | D73: =SUM(D28:D43,D45,D54:D69,D71) -> 303640.94
C74: TOTAL REMUNERACIONES | D74: =IF(+D72+D73<0,0,D72+D73) -> 3760319.62
C76: DEDUCCIONES GENERALES | H76: Topes máximos legales
C77: Aportes a fondos de jubilaciones, retiros, pensiones o subsidios que se destinen a cajas nacionales, provinciales o municipales | D77: 429931.43 | F77: =validaciones(D77,H77,0)&IF(D77>$D$74," El importe no puede ser mayor a la remuneración total","") -> 
C78: Aportes a fondos de jubilaciones, retiros, pensiones o subsidios que se destinen a cajas nacionales, provinciales o municipales por otros empleos | D78: 0 | F78: =validaciones(D78,H78,0)&IF(D78>$D$74," El importe no puede ser mayor a la remuneración total","") -> 
C79: Aportes a obra sociales | D79: 92128.16 | F79: =validaciones(D79,H79,0)&IF(D79>$D$74," El importe no puede ser mayor a la remuneración total","") -> 
C80: Aportes a obra sociales por otros empleos | D80: 0 | F80: =validaciones(D80,H80,0)&IF(D80>$D$74," El importe no puede ser mayor a la remuneración total","") -> 
C81: Cuota sindical | D81: 95921.28 | F81: =validaciones(D81,H81,0)&IF(D81>$D$74," El importe no puede ser mayor a la remuneración total","") -> 
C82: Cuota sindical por otros empleos | D82: 0 | F82: =validaciones(D82,H82,0)&IF(D82>$D$74," El importe no puede ser mayor a la remuneración total","") -> 
C83: Cuotas médico asistenciales | D83: 50976.94 | F83: =validaciones(D83,H83,0) ->  | H83: =(D72-SUM(D77:D82,D84:D89,D91,D93:D94,D95:D103))*0.05 -> 141934.8905
C84: Primas de seguro para el caso de muerte | D84: 0 | F84: =validaciones(D84,H84,0)&IF(AND(Datos!$C$11="Informativa",D84<>0),"En la DDJJ informativa, este campo debe consignarse en cero (0)","") ->  | H84: =+Tablas!B2 -> 24000
C85: Primas por riesgo de muerte y de ahorro de seguros mixtos, excepto para los casos de seguros de retiro privados administrados por entidades sujetas al control de la Superintendencia de Seguros de la Nación | D85: 0 | F85: =validaciones(D85,H85,0)&IF(AND(Datos!$C$11="Informativa",D85<>0),"En la DDJJ informativa, este campo debe consignarse en cero (0)","") ->  | H85: =+H84 -> 24000
C86: Aportes a planes de seguro de retiro privados administrados por entidades sujetas al control de la Superintendencia de Seguros de la Nación | D86: 0 | F86: =validaciones(D86,H86,0)&IF(AND(Datos!$C$11="Informativa",D86<>0),"En la DDJJ informativa, este campo debe consignarse en cero (0)","") ->  | H86: =+H85 -> 24000
C87: Cuotapartes de fondos comunes de inversión constituidos con fines de retiro | D87: 0 | F87: =validaciones(D87,H87,0)&IF(D87<>0,"Deberá consignarse en cero (0), hasta que la Autoridad de Aplicación – CNV – autorice a las Entidades a funcionar e implemente el régimen.","") ->  | H87: 0
C88: Gastos de sepelio | D88: 0 | F88: =validaciones(D88,H88,0) ->  | H88: =+Tablas!B6 -> 996.23
C89: Gastos amortización e intereses rodado para corredores y viajantes de comercio | D89: 0 | F89: =validaciones(D89,H89,0)&IF(D89>$D$74," El importe no puede ser mayor a la remuneración total","") -> 
C90: Donaciones a fiscos nacional, provinciales y municipales, y a instituciones comprendidas en el artículo 26, incisos e) y f) de la ley | D90: 0 | F90: =validaciones(D90,H90,0) ->  | H90: =(D72-SUM(D77:D82,D84:D89,D91,D93:D94,D95:D103))*0.05 -> 141934.8905
C91: Descuentos obligatorios establecidos por ley nacional, provincial o municipal | D91: 0 | F91: =validaciones(D91,H91,0)&IF(D91>$D$74," El importe no puede ser mayor a la remuneración total","") -> 
C92: Honorarios por servicios de asistencia sanitaria, médica y paramédica | D92: 0 | F92: =validaciones(D92,H92,0)&IF(AND(Datos!$C$11="Informativa",D92<>0),"En la DDJJ informativa, este campo debe consignarse en cero (0)","") ->  | H92: =(D72-SUM(D77:D82,D84:D89,D91,D93:D94,D95:D103))*0.05 -> 141934.8905
C93: Intereses de créditos hipotecarios | D93: 0 | F93: =validaciones(D93,H93,0) ->  | H93: =+Tablas!B3 -> 20000
C94: Aportes al capital social o al fondo de riesgo de socios protectores de sociedades de garantía recíproca | D94: 0 | F94: =validaciones(D94,H94,0) -> 
C95: Alquileres de inmuebles destinados a casa habitación | D95: 0 | F95: =validaciones(D95,H95,0) ->  | H95: =IF(Datos!C11="Final",ROUND(Tablas!B4/12*12,2),ROUND(Tablas!B4/12*MONTH(Datos!C13),2)) -> 167678.4
C96: Empleados del servicio doméstico | D96: 0 | F96: =validaciones(D96,H96,0) ->  | H96: =Tablas!B4 -> 167678.4
C97: Gastos de movilidad, viáticos y otras compensaciones análogas abonados por el empleador | D97: 0 | F97: =validaciones(D97,H97,0) ->  | H97: =IF(D13="Desarrolla la actividad",Tablas!B4,Tablas!B4*0.4) -> 67071.36
C98: Gastos por adquisición de indumentaria y/o equipamiento de trabajo | D98: 0 | F98: =validaciones(D98,H98,0) -> 
C99: Otras deducciones - aportes a Cajas Complementarias de Previsión, Fondos Compensadores de Previsión o similares | D99: 0 | F99: =validaciones(D99,H99,0) -> 
C100: Otras deducciones - Aportes para jubilaciones, retiros y subsidios ANSES | D100: 0 | F100: =validaciones(D100,H100,0) -> 
C101: Otras deducciones - Cajas Provinciales o Municipales o de Previsión para Profesionales | D101: 0 | F101: =validaciones(D101,H101,0) -> 
C102: Otras deducciones - Actores - Retribución pagada a los representantes - RG 2442/08 | D102: 0 | F102: =validaciones(D102,H102,0) -> 
C103: Otras deducciones - Fondos compensadores de previsión | D103: 0 | F103: =validaciones(D103,H103,0) -> 
C104: Otras deducciones | D104: =+SUM(D99:E103) -> 0
C105: TOTAL DEDUCCIONES GENERALES | D105: =SUM(D77:E103) -> 668957.81 | K105: =+D72-D105 -> 2787720.87
C107: DEDUCCIONES PERSONALES | H107: Topes máximos legales
C108: Ganancia no imponible | D108: 167678.4 | F108: =validaciones(D108,H108,0) ->  | H108: =deducciones(1,Datos!C11,MONTH(Datos!$C$13),$D$12) -> 167678.4 | K108: =IF(K105-K109<=0,0,IF(K105-K109<=H108,K105-K109,H108)) -> 167678.4
C109: Deducción especial | D109: 804856.34 | F109: =validaciones(D109,H109,0) ->  | H109: =deducciones(2,Datos!$C$11,MONTH(Datos!$C$13),$D$12) -> 804856.34 | K109: =IF(K105<=H109,K105,H109) -> 804856.34
C110: Deducción Especial Incrementada Primera parte del penúltimo párrafo del inciso c) del artículo 30 de la ley del gravamen | D110: 0
C111: Deducción Especial Incrementada Segunda parte del penúltimo párrafo del inciso c) del artículo 30 de la ley del gravamen | D111: 0
C112: Deducción específica | D112: 0 | F112: =validaciones(D112,H112,0) ->  | H112: 0
C113: Cargas de familia
C114: Cónyuge | D114: 156320.63 | F114: =validaciones(D114,H114,0) ->  | H114: =cargas_de_familia(4,Datos!$C$11,MONTH(Datos!$C$13),$D$12) -> 156320.63 | K114: =IF(K105-K108-K109>=D114,D114,K105-K108-K109) -> 156320.63
C115: Cantidad de hijos e hijastros | D115: 1 | F115: =validaciones(D115,H115,0) ->  | H115: 99
C116: Deducción total hijos e hijastros | D116: 78833.08 | H116: =cargas_de_familia(3,Datos!$C$11,MONTH(Datos!$C$13),$D$12)*D115 -> 78833.08 | K116: =IF(K105-K108-K109-K114>=D116,D116,K105-K108-K109-K114) -> 78833.08
C117: Cantidad de hijos e hijastros incapacitados para el trabajo | D117: 0 | F117: =validaciones(D117,H117,0) ->  | H117: 99
C118: Hijos / Hijastros incapacitados para el trabajo | D118: 0 | H118: =cargas_de_familia(5,Datos!$C$11,MONTH(Datos!$C$13),$D$12)*D117 -> 0
C119: Total de cargas de familia | D119: =+D114+D116+D118 -> 235153.71 | H119: 0
C120: TOTAL DEDUCCIONES PERSONALES | D120: =SUM(D108:D112,D119) -> 1207688.45
C122: DETERMINACIÓN DEL IMPUESTO
C123: REMUNERACIÓN NETA SUJETA A IMPUESTO -antes de la deducción art. 46 L. 27541- | D123: 0
C124: Deducción inciso a) primer párrafo artículo 30 de la ley (cfr. art. 46 L. 27541) | D124: 0 | H124: 0 | K124: =IF(D123-K125<=0,0,IF(D123-K125<=H124,D123-K125,H124)) -> 0
C125: Deducción inciso c) primer párrafo artículo 30 de la ley (cfr. art. 46 L. 27541) | D125: 0 | H125: 0 | K125: =IF(D123<=H125,D123,H125) -> 0
C126: REMUNERACIÓN SUJETA A IMPUESTO | D126: =IF(+D72-D105-D120<0,0,+D72-D105-D120) -> 1580032.42
C127: Alícuota aplicable artículo 94 ley de impuesto a las ganancias | D127: =IF(OR(Datos!C11="Final",Datos!C11="Anual"),impuestoAlicuota(D126,D25*(1-G25)+D51*(1-G51),12),impuestoAlicuota(D126,D25*(1-G25)+D51*(1-G51),MONTH(D11))) -> 0.35
C128: Alícuota aplicable sin incluir horas extras | D128: =IF(OR(Datos!C11="Final",Datos!C11="Anual"),impuestoAlicuota(D126,0,12),impuestoAlicuota(D126,0,MONTH(D11))) -> 0.35
C129: IMPUESTO DETERMINADO | D129: =IF(D126<0,0,IF(OR(Datos!C11="Final",Datos!C11="Anual"),impuestoDeterminado(D126,D25*(1-G25)+D51*(1-G51),12),impuestoDeterminado(D126,D25*(1-G25)+D51*(1-G51),MONTH(D11)))) -> 422010.082
C130: Impuesto retenido | D130: 385830.58
C131: Pagos a cuenta - Impuesto sobre créditos y débitos | D131: 0 | F131: =IF(AND(Datos!$C$11="Informativa",D131<>0),"En la DDJJ informativa, este campo debe consignarse en cero (0)","") -> 
C132: Pagos a cuenta - Percepciones / Retenciones aduaneras | D132: 0 | F132: =IF(AND(Datos!$C$11="Informativa",D132<>0),"En la DDJJ informativa, este campo debe consignarse en cero (0)","") -> 
C133: Pagos a cuenta - RG (AFIP) 3819/2015 - Cancelaciones en efectivo | D133: 0 | F133: =IF(AND(Datos!$C$11="Informativa",D133<>0),"En la DDJJ informativa, este campo debe consignarse en cero (0)","") -> 
C134: Pagos a cuenta - Bono ley 27.424 | D134: 0 | F134: =IF(AND(Datos!$C$11="Informativa",D134<>0),"En la DDJJ informativa, este campo debe consignarse en cero (0)","") -> 
C135: Pagos a cuenta - RG 4815 [LEY 27.541 Art. 35 inciso a)] | D135: 36179.5 | F135: =IF(AND(Datos!$C$11="Informativa",D135<>0),"En la DDJJ informativa, este campo debe consignarse en cero (0)","") -> 
C136: Pagos a cuenta - RG 4815 [LEY 27.541 Art. 35 inciso b)] | D136: 0 | F136: =IF(AND(Datos!$C$11="Informativa",D136<>0),"En la DDJJ informativa, este campo debe consignarse en cero (0)","") -> 
C137: Pagos a cuenta - RG 4815 [LEY 27.541 Art. 35 inciso c)] | D137: 0 | F137: =IF(AND(Datos!$C$11="Informativa",D137<>0),"En la DDJJ informativa, este campo debe consignarse en cero (0)","") -> 
C138: Pagos a cuenta - RG 4815 [LEY 27.541 Art. 35 inciso d)] | D138: 0 | F138: =IF(AND(Datos!$C$11="Informativa",D138<>0),"En la DDJJ informativa, este campo debe consignarse en cero (0)","") -> 
C139: Pagos a cuenta - RG 4815 [LEY 27.541 Art. 35 inciso e)] | D139: 0 | F139: =IF(AND(Datos!$C$11="Informativa",D139<>0),"En la DDJJ informativa, este campo debe consignarse en cero (0)","") -> 
C140: Pagos a cuenta - Impuesto sobre créditos y débitos - sobre movimientos de fondos propios o de terceros | D140: 0 | F140: =IF(AND(Datos!$C$11="Informativa",D140<>0),"En la DDJJ informativa, este campo debe consignarse en cero (0)","") -> 
C141: Pagos a cuenta - Resolución General (AFIP) 3819/2015 - Cancelaciones en Efectivo -Servicios de transporte terrestre, aéreo y por vía acuática de pasajeros con destino fuera del país | D141: 0 | F141: =IF(AND(Datos!$C$11="Informativa",D141<>0),"En la DDJJ informativa, este campo debe consignarse en cero (0)","") -> 
C142: Total pagos a cuenta | D142: =SUM(D131:D141) -> 36179.5
C143: SALDO A PAGAR | D143: =+ROUND(D129,2)-D130-D142 -> 0

Sheet Controlador
A1: Planilla | B1: AFIP | C1: Planilla | E1: Planilla nueva
B2: 3 | C2: 19 | D2: Remuneración bruta gravada | E2: 21 | G2: ="array_tipo_fila("&B2&") = "&E2 -> array_tipo_fila(3) = 21
B3: =+B2+1 -> 4 | C3: 20 | D3: Retribuciones no habituales gravadas | E3: 22 | G3: ="array_tipo_fila("&B3&") = "&E3 -> array_tipo_fila(4) = 22
B4: =+B3+1 -> 5 | C4: 21 | D4: SAC primera cuota gravado | E4: 23 | G4: array_tipo_fila(5) = 23
B5: 6 | C5: 22 | D5: SAC segunda cuota gravado | E5: 24 | G5: array_tipo_fila(6) = 24
B6: 7 | C6: 23 | D6: Horas extras remuneración gravada | E6: 25 | G6: array_tipo_fila(7) = 25
B7: 8 | C7: 24 | D7: Movilidad y viáticos remuneración gravada | E7: 26 | G7: array_tipo_fila(8) = 26
B8: 9 | C8: 25 | D8: Material didáctico personal docente remuneración gravada | E8: 27 | G8: array_tipo_fila(9) = 27
B9: 10 | C9: 26 | D9: Remuneración no alcanzada o exenta (sin horas extras) | E9: 28 | G9: array_tipo_fila(10) = 28
B10: 11 | C10: 29 | D10: Horas extras remuneración exenta | E10: 31 | G10: array_tipo_fila(11) = 31
B11: 12 | C11: 30 | D11: Movilidad y viáticos remuneración exenta | E11: 32 | G11: array_tipo_fila(12) = 32
B12: 13 | C12: 31 | D12: Material didáctico personal docente remuneración exenta | E12: 33 | G12: array_tipo_fila(13) = 33
B13: 14 | C13: 37 | D13: Remuneración bruta gravada | E13: 47 | G13: array_tipo_fila(14) = 47
B14: 15 | C14: 38 | D14: Retribuciones no habituales gravadas | E14: 48 | G14: array_tipo_fila(15) = 48
B15: 16 | C15: 39 | D15: SAC primera cuota gravado | E15: 49 | G15: array_tipo_fila(16) = 49
B16: 17 | C16: 40 | D16: SAC segunda cuota gravado | E16: 50 | G16: array_tipo_fila(17) = 50
B17: 18 | C17: 41 | D17: Horas extras remuneración gravada | E17: 51 | G17: array_tipo_fila(18) = 51
B18: 19 | C18: 42 | D18: Movilidad y viáticos remuneración gravada | E18: 52 | G18: array_tipo_fila(19) = 52
B19: 20 | C19: 43 | D19: Material didáctico personal docente remuneración gravada | E19: 53 | G19: array_tipo_fila(20) = 53
B20: 21 | C20: 44 | D20: Remuneración no alcanzada o exenta | E20: 54 | G20: array_tipo_fila(21) = 54
B21: 22 | C21: 47 | D21: Horas extras remuneración exenta o no alcanzada | E21: 57 | G21: array_tipo_fila(22) = 57
B22: 23 | C22: 48 | D22: Movilidad y viáticos remuneración exenta o no alcanzada | E22: 58 | G22: array_tipo_fila(23) = 58
B23: 24 | C23: 49 | D23: Material didáctico personal docente remuneración exenta o no alcanzada | E23: 59 | G23: array_tipo_fila(24) = 59
B24: 25 | C24: 54 | D24: TOTAL REMUNERACIÓN GRAVADA | E24: 72 | G24: array_tipo_fila(25) = 72
B25: 26 | C25: 55 | D25: TOTAL REMUNERACIÓN NO ALCANZADA O EXENTA | E25: 73 | G25: array_tipo_fila(26) = 73
B26: 27 | C26: 56 | D26: TOTAL REMUNERACIONES | E26: 74 | G26: array_tipo_fila(27) = 74
B27: 28 | C27: 28 | D27: Retribuciones no habituales exentas o no alcanzadas | E27: 30 | G27: array_tipo_fila(28) = 30
B28: 29 | C28: 32 | D28: SAC primera cuota - No alcanzado o exento | E28: 42 | G28: array_tipo_fila(29) = 42
B29: 30 | C29: 33 | D29: SAC segunda cuota - No alcanzado o exento | E29: 43 | G29: array_tipo_fila(30) = 43
B30: 31 | C30: 34 | D30: Ajustes períodos anteriores - Remuneración gravada | E30: 44 | G30: array_tipo_fila(31) = 44
B31: 32 | C31: 35 | D31: Ajustes períodos anteriores - Remuneración exenta / no alcanzada | E31: 45 | G31: array_tipo_fila(32) = 45
B32: 33 | C32: 46 | D32: Retribuciones no habituales exentas o no alcanzadas | E32: 56 | G32: array_tipo_fila(33) = 56
B33: 34 | C33: 50 | D33: SAC primera cuota - No alcanzado o exento | E33: 68 | G33: array_tipo_fila(34) = 68
B34: 35 | C34: 51 | D34: SAC segunda cuota - No alcanzado o exento | E34: 69 | G34: array_tipo_fila(35) = 69
B35: 36 | C35: 52 | D35: Ajustes períodos anteriores - Remuneración gravada | E35: 70 | G35: array_tipo_fila(36) = 70
B36: 37 | C36: 53 | D36: Ajustes períodos anteriores - Remuneración no alcanzada o exenta | E36: 71 | G36: array_tipo_fila(37) = 71
B37: 38 | C37: 27 | D37: Remuneración exenta ley 27549 | E37: 29 | G37: array_tipo_fila(38) = 29
B38: 39 | C38: 45 | D38: Remuneración exenta ley 27549 | E38: 55 | G38: array_tipo_fila(39) = 55
B39: 40 | D39: Bonos de productividad gravados | E39: 34 | G39: array_tipo_fila(40) = 34
B40: =+B39+1 -> 41 | D40: Fallos de caja gravados | E40: 35 | G40: array_tipo_fila(41) = 35
B41: =+B40+1 -> 42 | D41: Conceptos de similar naturaleza gravados | E41: 36 | G41: array_tipo_fila(42) = 36
B42: 43 | D42: Bonos de productividad exentos | E42: 37 | G42: array_tipo_fila(43) = 37
B43: 44 | D43: Fallos de caja exentos | E43: 38 | G43: array_tipo_fila(44) = 38
B44: 45 | D44: Conceptos de similar naturaleza exentos | E44: 39 | G44: array_tipo_fila(45) = 39
B45: 46 | D45: Compensación de gastos de teletrabajo exentos | E45: 40 | G45: array_tipo_fila(46) = 40
B46: 47 | D46: Personal militar - suplementos art. 57 ley 19.101 - exentos | E46: 41 | G46: array_tipo_fila(47) = 41
B47: 48 | D47: Bonos de productividad gravados | E47: 60 | G47: array_tipo_fila(48) = 60
B48: 49 | D48: Fallos de caja gravados | E48: 61 | G48: array_tipo_fila(49) = 61
B49: 50 | D49: Conceptos de similar naturaleza gravados | E49: 62 | G49: array_tipo_fila(50) = 62
B50: 51 | D50: Bonos de productividad exentos | E50: 63 | G50: array_tipo_fila(51) = 63
B51: 52 | D51: Fallos de caja exentos | E51: 64 | G51: array_tipo_fila(52) = 64
B52: 53 | D52: Conceptos de similar naturaleza exentos | E52: 65 | G52: array_tipo_fila(53) = 65
B53: 54 | D53: Compensación de gastos teletrabajo - exentos | E53: 66 | G53: array_tipo_fila(54) = 66
B54: 55 | D54: Personal militar - suplementos art. 57 Ley 19101 - exentos | E54: 67 | G54: array_tipo_fila(55) = 67
A56: Registro 4 | B56: AFIP | C56: Planilla
B57: 3 | C57: 59 | D57: Aportes a fondos de jubilaciones, retiros, pensiones o subsidios que se destinen a cajas nacionales, provinciales o municipales | E57: 77 | G57: ="array_tipo_fila("&B57&") = "&E57 -> array_tipo_fila(3) = 77
B58: =+B57+1 -> 4 | C58: 60 | D58: Aportes a fondos de jubilaciones, retiros, pensiones o subsidios que se destinen a cajas nacionales, provinciales o municipales por otros empleos | E58: 78 | G58: array_tipo_fila(4) = 78
B59: =+B58+1 -> 5 | C59: 61 | D59: Aportes a obra sociales | E59: 79 | G59: array_tipo_fila(5) = 79
B60: 6 | C60: 62 | D60: Aportes a obra sociales por otros empleos | E60: 80 | G60: array_tipo_fila(6) = 80
B61: 7 | C61: 63 | D61: Cuota sindical | E61: 81 | G61: array_tipo_fila(7) = 81
B62: 8 | C62: 64 | D62: Cuota sindical por otros empleos | E62: 82 | G62: array_tipo_fila(8) = 82
B63: 9 | C63: 65 | D63: Cuotas médico asistenciales | E63: 83 | G63: array_tipo_fila(9) = 83
B64: 10 | C64: 66 | D64: Primas de seguro para el caso de muerte | E64: 84 | G64: array_tipo_fila(10) = 84
B65: 11 | C65: 67 | D65: Primas por riesgo de muerte y de ahorro de seguros mixtos, excepto para los casos de seguros de retiro privados administrados por entidades sujetas al control de la Superintendencia de Seguros de la Nación | E65: 85 | G65: array_tipo_fila(11) = 85
B66: 12 | C66: 68 | D66: Aportes a planes de seguro de retiro privados administrados por entidades sujetas al control de la Superintendencia de Seguros de la Nación | E66: 86 | G66: array_tipo_fila(12) = 86
B67: 13 | C67: 69 | D67: Cuotapartes de fondos comunes de inversión constituidos con fines de retiro | E67: 87 | G67: array_tipo_fila(13) = 87
B68: 14 | C68: 70 | D68: Gastos de sepelio | E68: 88 | G68: array_tipo_fila(14) = 88
B69: 15 | C69: 71 | D69: Gastos amortización e intereses rodado para corredores y viajantes de comercio | E69: 89 | G69: array_tipo_fila(15) = 89
B70: 16 | C70: 72 | D70: Donaciones a fiscos nacional, provinciales y municipales, y a instituciones comprendidas en el artículo 26, incisos e) y f) de la ley | E70: 90 | G70: array_tipo_fila(16) = 90
B71: 17 | C71: 73 | D71: Descuentos obligatorios establecidos por ley nacional, provincial o municipal | E71: 91 | G71: array_tipo_fila(17) = 91
B72: 18 | C72: 74 | D72: Honorarios por servicios de asistencia sanitaria, médica y paramédica | E72: 92 | G72: array_tipo_fila(18) = 92
B73: 19 | C73: 75 | D73: Intereses de créditos hipotecarios | E73: 93 | G73: array_tipo_fila(19) = 93
B74: 20 | C74: 76 | D74: Aportes al capital social o al fondo de riesgo de socios protectores de sociedades de garantía recíproca | E74: 94 | G74: array_tipo_fila(20) = 94
B75: 21 | C75: 81 | D75: Otras deducciones - aportes a Cajas Complementarias de Previsión, Fondos Compensadores de Previsión o similares | E75: 99 | G75: array_tipo_fila(21) = 99
B76: 22 | C76: 77 | D76: Alquileres de inmuebles destinados a casa habitación | E76: 95 | G76: array_tipo_fila(22) = 95
B77: 23 | C77: 78 | D77: Empleados del servicio doméstico | E77: 96 | G77: array_tipo_fila(23) = 96
B78: 24 | C78: 79 | D78: Gastos de movilidad, viáticos y otras compensaciones análogas abonados por el empleador | E78: 97 | G78: array_tipo_fila(24) = 97
B79: 25 | C79: 80 | D79: Gastos por adquisición de indumentaria y/o equipamiento de trabajo | E79: 98 | G79: array_tipo_fila(25) = 98
B80: 26 | C80: 86 | D80: Otras deducciones | E80: 104 | G80: array_tipo_fila(26) = 104
B81: 27 | C81: 87 | D81: TOTAL DEDUCCIONES GENERALES | E81: 105 | G81: array_tipo_fila(27) = 105
B82: 28 | C82: 82 | D82: Otras deducciones - Aportes para jubilaciones, retiros y subsidios ANSES | E82: 100 | G82: array_tipo_fila(28) = 100
B83: 29 | C83: 83 | D83: Otras deducciones - Cajas Provinciales o Municipales o de Previsión para Profesionales | E83: 101 | G83: array_tipo_fila(29) = 101
B84: 30 | C84: 84 | D84: Otras deducciones - Actores - Retribución pagada a los representantes - RG 2442/08 | E84: 102 | G84: array_tipo_fila(30) = 102
B85: 31 | C85: 85 | D85: Otras deducciones - Fondos compensadores de previsión | E85: 103 | G85: array_tipo_fila(31) = 103
A87: Registro 5
B88: 3 | C88: 90 | D88: Ganancia no imponible | E88: 108 | G88: ="array_tipo_fila("&B88&") = "&E88 -> array_tipo_fila(3) = 108
B89: 4 | C89: 91 | D89: Deducción especial | E89: 109 | G89: array_tipo_fila(4) = 109
B90: 5 | C90: 92 | D90: Deducción específica | E90: 112 | G90: array_tipo_fila(5) = 112
B91: 6 | C91: 94 | D91: Cónyuge | E91: 114 | G91: array_tipo_fila(6) = 114
B92: 7 | C92: 95 | D92: Cantidad de hijos e hijastros | E92: 115 | G92: array_tipo_fila(7) = 115
B93: 8 | C93: 96 | D93: Deducción total hijos e hijastros | E93: 116 | G93: array_tipo_fila(8) = 116
B94: 9 | C94: 97 | D94: Total de cargas de familia | E94: 119 | G94: array_tipo_fila(9) = 119
B95: 10 | C95: 98 | D95: TOTAL DEDUCCIONES PERSONALES | E95: 120 | G95: array_tipo_fila(10) = 120
B96: 11 | C96: 101 | D96: REMUNERACIÓN NETA SUJETA A IMPUESTO -antes de la deducción art. 46 L. 27541- | E96: 123 | G96: array_tipo_fila(11) = 123
B97: 12 | C97: 102 | D97: Deducción inciso a) primer párrafo artículo 30 de la ley (cfr. art. 46 L. 27541) | E97: 124 | G97: array_tipo_fila(12) = 124
B98: 13 | C98: 103 | D98: Deducción inciso c) primer párrafo artículo 30 de la ley (cfr. art. 46 L. 27541) | E98: 125 | G98: array_tipo_fila(13) = 125
B99: =+B98+1 -> 14 | C99: 104 | D99: REMUNERACIÓN SUJETA A IMPUESTO | E99: 126 | G99: array_tipo_fila(14) = 126
B100: 15 | D100: Cantidad de hijos e hijastros incapacitados para el trabajo | E100: 117 | G100: array_tipo_fila(15) = 117
B101: 16 | D101: Hijos / Hijastros incapacitados para el trabajo | E101: 118 | G101: array_tipo_fila(16) = 118
B102: 17 | D102: Deducción Especial Incrementada Primera parte del penúltimo párrafo del inciso c) del artículo 30 de la ley del gravamen | E102: 110 | G102: array_tipo_fila(17) = 110
B103: 18 | D103: Deducción Especial Incrementada Segunda parte del penúltimo párrafo del inciso c) del artículo 30 de la ley del gravamen | E103: 111 | G103: array_tipo_fila(18) = 111
A105: Registro 6
B106: 3 | C106: 105 | D106: Alícuota aplicable artículo 94 ley de impuesto a las ganancias | E106: 127 | G106: ="array_tipo_fila("&B106&") = "&E106 -> array_tipo_fila(3) = 127
B107: =+B106+1 -> 4 | C107: 106 | D107: Alícuota aplicable sin incluir horas extras | E107: 128 | G107: array_tipo_fila(4) = 128
B108: =+B107+1 -> 5 | C108: 107 | D108: IMPUESTO DETERMINADO | E108: 129 | G108: array_tipo_fila(5) = 129
B109: 6 | C109: 108 | D109: Impuesto retenido | E109: 130 | G109: array_tipo_fila(6) = 130
B110: 7 | C110: 120 | D110: Total pagos a cuenta | E110: 142 | G110: array_tipo_fila(7) = 142
B111: 8 | C111: 121 | D111: SALDO A PAGAR | E111: 143 | G111: array_tipo_fila(8) = 143
B112: 9 | C112: 109 | D112: Pagos a cuenta - Impuesto sobre créditos y débitos | E112: 131 | G112: array_tipo_fila(9) = 131
B113: 10 | C113: 110 | D113: Pagos a cuenta - Percepciones / Retenciones aduaneras | E113: 132 | G113: array_tipo_fila(10) = 132
B114: 11 | C114: 111 | D114: Pagos a cuenta - RG (AFIP) 3819/2015 - Cancelaciones en efectivo | E114: 133 | G114: array_tipo_fila(11) = 133
B115: 12 | C115: 112 | D115: Pagos a cuenta - Bono ley 27.424 | E115: 134 | G115: array_tipo_fila(12) = 134
B116: 13 | C116: 113 | D116: Pagos a cuenta - RG 4815 [LEY 27.541 Art. 35 inciso a)] | E116: 135 | G116: array_tipo_fila(13) = 135
B117: 14 | C117: 114 | D117: Pagos a cuenta - RG 4815 [LEY 27.541 Art. 35 inciso b)] | E117: 136 | G117: array_tipo_fila(14) = 136
B118: 15 | C118: 115 | D118: Pagos a cuenta - RG 4815 [LEY 27.541 Art. 35 inciso c)] | E118: 137 | G118: array_tipo_fila(15) = 137
B119: 16 | C119: 116 | D119: Pagos a cuenta - RG 4815 [LEY 27.541 Art. 35 inciso d)] | E119: 138 | G119: array_tipo_fila(16) = 138
B120: 17 | C120: 117 | D120: Pagos a cuenta - RG 4815 [LEY 27.541 Art. 35 inciso e)] | E120: 139 | G120: array_tipo_fila(17) = 139
B121: 18 | C121: 118 | D121: Pagos a cuenta - Impuesto sobre créditos y débitos - sobre movimientos de fondos propios o de terceros | E121: 140 | G121: array_tipo_fila(18) = 140
B122: 19 | D122: Pagos a cuenta - Resolución General (AFIP) 3819/2015 - Cancelaciones en Efectivo -Servicios de transporte terrestre, aéreo y por vía acuática de pasajeros con destino fuera del país | E122: 141 | G122: array_tipo_fila(19) = 141

Sheet Control
A1: ID | B1: CUIL | C1: Nombre y apellido | D1: CUIT | E1: Remuneraciones (0: error 1: bien) | F1: Deducciones (0: error 1: bien) | G1: Deducciones personales (0: error 1: bien) | H1: 0: error | I1: CUIL inválido | J1: Deducciones generales mayores a remuneraciones gravadas | K1: Error en fecha | L1: Errores
A2: 1 | B2: =Empleado01!D7 -> 20259421498 | C2: =Empleado01!D6 -> FRANCO ROBERTO ENRIQUE | D2: =IF(B2=0,"No hay CUIL",cuitValidar(B2)) -> CUIT/CUIL Válido | E2: =IF(Empleado01!D74=0,0,1) -> 1 | F2: =IF(Empleado01!D105=0,0,1) -> 1 | H2: =IF(AND(D2="CUIT/CUIL Válido",E2=1),1,0) -> 1 | I2: =IF(D2="CUIT/CUIL Válido",0,1) -> 0 | J2: =IF(D54<D87,1,0) -> 0 | K2: =IF(MONTH(Datos!$C$13)>MONTH(Empleado01!D11),1,0) -> 0 | L2: =IF(AND(H2=1,SUM(I2:K2)<>0),1,0) -> 0
A3: =+A2+1 -> 2 | B3: =Empleado02!D7 -> 20324442384 | C3: =Empleado02!D6 -> RAMOS LEANDRO | D3: =IF(B3=0,"No hay CUIL",cuitValidar(B3)) -> CUIT/CUIL Válido | E3: =IF(Empleado02!D74=0,0,1) -> 1 | F3: =IF(Empleado02!D105=0,0,1) -> 1 | H3: =IF(AND(D3="CUIT/CUIL Válido",E3=1),1,0) -> 1 | I3: =IF(D3="CUIT/CUIL Válido",0,1) -> 0 | J3: =IF(Empleado02!D54<Empleado02!D87,1,0) -> 0 | K3: =IF(MONTH(Datos!$C$13)>MONTH(Empleado02!D11),1,0) -> 1 | L3: =IF(AND(H3=1,SUM(I3:K3)<>0),1,0) -> 1
A4: =+A3+1 -> 3 | B4: =Empleado03!D7 -> 20262022618 | C4: =Empleado03!D6 -> CURTI HECTOR DAVID | D4: CUIT/CUIL Válido | E4: =IF(Empleado03!D74=0,0,1) -> 1 | F4: =IF(Empleado03!D105=0,0,1) -> 1 | H4: 1 | I4: 0 | J4: =IF(Empleado03!D54<Empleado03!D87,1,0) -> 0 | K4: =IF(MONTH(Datos!$C$13)>MONTH(Empleado03!D11),1,0) -> 1 | L4: 1
A5: 4 | B5: =Empleado04!D7 -> 20330698471 | C5: =Empleado04!D6 -> SALDIAS DAVID GUSTAVO | D5: CUIT/CUIL Válido | E5: =IF(Empleado04!D74=0,0,1) -> 1 | F5: =IF(Empleado04!D105=0,0,1) -> 1 | H5: 1 | I5: 0 | J5: =IF(Empleado04!D54<Empleado04!D87,1,0) -> 0 | K5: =IF(MONTH(Datos!$C$13)>MONTH(Empleado04!D11),1,0) -> 1 | L5: 1
A6: 5 | B6: =Empleado05!D7 -> 20291122559 | C6: =Empleado05!D6 -> CENITAGOYA ALEJANDRO | D6: CUIT/CUIL Válido | E6: =IF(Empleado05!D74=0,0,1) -> 1 | F6: =IF(Empleado05!D105=0,0,1) -> 1 | H6: 1 | I6: 0 | J6: =IF(Empleado05!D54<Empleado05!D87,1,0) -> 0 | K6: =IF(MONTH(Datos!$C$13)>MONTH(Empleado05!D11),1,0) -> 1 | L6: 1
A7: 6 | B7: =Empleado06!D7 -> 23283995739 | C7: =Empleado06!D6 -> DE LUCA LEONARDO OSCAR | D7: CUIT/CUIL Válido | E7: =IF(Empleado06!D74=0,0,1) -> 1 | F7: =IF(Empleado06!D105=0,0,1) -> 1 | H7: 1 | I7: 0 | J7: =IF(Empleado06!D54<Empleado06!D87,1,0) -> 0 | K7: =IF(MONTH(Datos!$C$13)>MONTH(Empleado06!D11),1,0) -> 1 | L7: 1
A8: 7 | B8: =Empleado07!D7 -> 20303605895 | C8: =Empleado07!D6 -> CHIESA MARCOS | D8: CUIT/CUIL Válido | E8: =IF(Empleado07!D74=0,0,1) -> 1 | F8: =IF(Empleado07!D105=0,0,1) -> 1 | H8: 1 | I8: 0 | J8: =IF(Empleado07!D54<Empleado07!D87,1,0) -> 0 | K8: =IF(MONTH(Datos!$C$13)>MONTH(Empleado07!D11),1,0) -> 1 | L8: 1
A9: 8 | B9: =Empleado08!D7 -> 20308513964 | C9: =Empleado08!D6 -> TAMAY SERGIO EDUARDO | D9: CUIT/CUIL Válido | E9: =IF(Empleado08!D74=0,0,1) -> 1 | F9: =IF(Empleado08!D105=0,0,1) -> 1 | H9: 1 | I9: 0 | J9: =IF(Empleado08!D54<Empleado08!D87,1,0) -> 0 | K9: =IF(MONTH(Datos!$C$13)>MONTH(Empleado08!D11),1,0) -> 1 | L9: 1
A10: 9 | B10: =Empleado09!D7 -> 20385987928 | C10: =Empleado09!D6 -> SARANITI ANGEL JESUS | D10: CUIT/CUIL Válido | E10: =IF(Empleado09!D74=0,0,1) -> 1 | F10: =IF(Empleado09!D105=0,0,1) -> 1 | H10: 1 | I10: 0 | J10: =IF(Empleado09!D54<Empleado09!D87,1,0) -> 0 | K10: =IF(MONTH(Datos!$C$13)>MONTH(Empleado09!D11),1,0) -> 1 | L10: 1
A11: 10 | B11: =Empleado10!D7 -> 20183399544 | C11: =Empleado10!D6 -> TORRES CESAR | D11: CUIT/CUIL Válido | E11: =IF(Empleado10!D74=0,0,1) -> 1 | F11: =IF(Empleado10!D105=0,0,1) -> 1 | H11: 1 | I11: 0 | J11: =IF(Empleado10!D54<Empleado10!D87,1,0) -> 0 | K11: =IF(MONTH(Datos!$C$13)>MONTH(Empleado10!D11),1,0) -> 1 | L11: 1
A12: 11 | B12: =Empleado11!D7 -> 20259476012 | C12: =Empleado11!D6 -> ELZAURDIA FERNANDO MARTIN | D12: CUIT/CUIL Válido | E12: =IF(Empleado11!D74=0,0,1) -> 1 | F12: =IF(Empleado11!D105=0,0,1) -> 1 | H12: 1 | I12: 0 | J12: =IF(Empleado11!D54<Empleado11!D87,1,0) -> 0 | K12: =IF(MONTH(Datos!$C$13)>MONTH(Empleado11!D11),1,0) -> 1 | L12: 1
A13: 12 | B13: =Empleado12!D7 -> 20388488116 | C13: =Empleado12!D6 -> RUIZ KLUG TOMAS GABRIEL | D13: CUIT/CUIL Válido | E13: =IF(Empleado12!D74=0,0,1) -> 1 | F13: =IF(Empleado12!D105=0,0,1) -> 1 | H13: 1 | I13: 0 | J13: =IF(Empleado12!D54<Empleado12!D87,1,0) -> 0 | K13: =IF(MONTH(Datos!$C$13)>MONTH(Empleado12!D11),1,0) -> 1 | L13: 1
A14: 13 | B14: =Empleado13!D7 -> 20316239391 | C14: =Empleado13!D6 -> HERRERO AGUSTIN | D14: CUIT/CUIL Válido | E14: =IF(Empleado13!D74=0,0,1) -> 1 | F14: =IF(Empleado13!D105=0,0,1) -> 1 | H14: 1 | I14: 0 | J14: =IF(Empleado13!D54<Empleado13!D87,1,0) -> 0 | K14: =IF(MONTH(Datos!$C$13)>MONTH(Empleado13!D11),1,0) -> 1 | L14: 1
A15: 14 | B15: =Empleado14!D7 -> 20926235517 | C15: =Empleado14!D6 -> MUÑOZ SALDIAS CRISTIAN MAURICIO | D15: CUIT/CUIL Válido | E15: =IF(Empleado14!D74=0,0,1) -> 1 | F15: =IF(Empleado14!D105=0,0,1) -> 1 | H15: 1 | I15: 0 | J15: =IF(Empleado14!D54<Empleado14!D87,1,0) -> 0 | K15: =IF(MONTH(Datos!$C$13)>MONTH(Empleado14!D11),1,0) -> 1 | L15: 1
A16: 15 | B16: =Empleado15!D7 -> 20253172615 | C16: =Empleado15!D6 -> CORREA DIEGO DANIEL | D16: CUIT/CUIL Válido | E16: =IF(Empleado15!D74=0,0,1) -> 1 | F16: =IF(Empleado15!D105=0,0,1) -> 1 | H16: 1 | I16: 0 | J16: =IF(Empleado15!D54<Empleado15!D87,1,0) -> 0 | K16: =IF(MONTH(Datos!$C$13)>MONTH(Empleado15!D11),1,0) -> 1 | L16: 1
A17: 16 | B17: =Empleado16!D7 -> 20321661441 | C17: =Empleado16!D6 -> EGUIA MENEGUZZER RENZO | D17: CUIT/CUIL Válido | E17: =IF(Empleado16!D74=0,0,1) -> 1 | F17: =IF(Empleado16!D105=0,0,1) -> 1 | H17: 1 | I17: 0 | J17: =IF(Empleado16!D54<Empleado16!D87,1,0) -> 0 | K17: =IF(MONTH(Datos!$C$13)>MONTH(Empleado16!D11),1,0) -> 1 | L17: 1
A18: 17 | B18: =Empleado17!D7 -> 23184701839 | C18: =Empleado17!D6 -> HEIMSATH DANIEL GUSTAVO | D18: CUIT/CUIL Válido | E18: =IF(Empleado17!D74=0,0,1) -> 1 | F18: =IF(Empleado17!D105=0,0,1) -> 1 | H18: 1 | I18: 0 | J18: =IF(Empleado17!D54<Empleado17!D87,1,0) -> 0 | K18: =IF(MONTH(Datos!$C$13)>MONTH(Empleado17!D11),1,0) -> 1 | L18: 1
A19: 18 | B19: =Empleado18!D7 -> 20381344437 | C19: =Empleado18!D6 -> MIGLIO EMILIANO DAVID | D19: CUIT/CUIL Válido | E19: =IF(Empleado18!D74=0,0,1) -> 1 | F19: =IF(Empleado18!D105=0,0,1) -> 1 | H19: 1 | I19: 0 | J19: =IF(Empleado18!D54<Empleado18!D87,1,0) -> 0 | K19: =IF(MONTH(Datos!$C$13)>MONTH(Empleado18!D11),1,0) -> 1 | L19: 1
A20: 19 | B20: =Empleado19!D7 -> 27385959538 | C20: =Empleado19!D6 -> LESCARAY PAZ ANA BELEN | D20: CUIT/CUIL Válido | E20: =IF(Empleado19!D74=0,0,1) -> 1 | F20: =IF(Empleado19!D105=0,0,1) -> 1 | H20: 1 | I20: 0 | J20: =IF(Empleado19!D54<Empleado19!D87,1,0) -> 0 | K20: =IF(MONTH(Datos!$C$13)>MONTH(Empleado19!D11),1,0) -> 1 | L20: 1
A21: 20 | B21: =Empleado20!D7 -> 20233894754 | C21: =Empleado20!D6 -> BRUCELLARIA CRISTIAN JOSE | D21: CUIT/CUIL Válido | E21: =IF(Empleado20!D74=0,0,1) -> 1 | F21: =IF(Empleado20!D105=0,0,1) -> 1 | H21: 1 | I21: 0 | J21: =IF(Empleado20!D54<Empleado20!D87,1,0) -> 0 | K21: =IF(MONTH(Datos!$C$13)>MONTH(Empleado20!D11),1,0) -> 1 | L21: 1
A22: 21 | B22: =Empleado21!D7 -> 20302935727 | C22: =Empleado21!D6 -> MERINO LUCIANO | D22: CUIT/CUIL Válido | E22: =IF(Empleado21!D74=0,0,1) -> 1 | F22: =IF(Empleado21!D105=0,0,1) -> 1 | H22: 1 | I22: 0 | J22: =IF(Empleado21!D54<Empleado21!D87,1,0) -> 0 | K22: =IF(MONTH(Datos!$C$13)>MONTH(Empleado21!D11),1,0) -> 1 | L22: 1
A23: 22 | B23: =Empleado22!D7 -> 27928827041 | C23: =Empleado22!D6 -> VILARIÑO MARIA LAURA | D23: CUIT/CUIL Válido | E23: =IF(Empleado22!D74=0,0,1) -> 1 | F23: =IF(Empleado22!D105=0,0,1) -> 1 | H23: 1 | I23: 0 | J23: =IF(Empleado22!D54<Empleado22!D87,1,0) -> 0 | K23: =IF(MONTH(Datos!$C$13)>MONTH(Empleado22!D11),1,0) -> 1 | L23: 1
A24: 23 | B24: =Empleado23!D7 -> 20428296789 | C24: =Empleado23!D6 -> NACIMENTO IGNACIO ISAIAS | D24: CUIT/CUIL Válido | E24: =IF(Empleado23!D74=0,0,1) -> 1 | F24: =IF(Empleado23!D105=0,0,1) -> 1 | H24: 1 | I24: 0 | J24: =IF(Empleado23!D54<Empleado23!D87,1,0) -> 0 | K24: =IF(MONTH(Datos!$C$13)>MONTH(Empleado23!D11),1,0) -> 1 | L24: 1
A25: 24 | B25: =Empleado24!D7 -> 23168649029 | C25: =Empleado24!D6 -> PERCUDANI ROBERTO OSCAR | D25: CUIT/CUIL Válido | E25: =IF(Empleado24!D74=0,0,1) -> 1 | F25: =IF(Empleado24!D105=0,0,1) -> 1 | H25: 1 | I25: 0 | J25: =IF(Empleado24!D54<Empleado24!D87,1,0) -> 0 | K25: =IF(MONTH(Datos!$C$13)>MONTH(Empleado24!D11),1,0) -> 1 | L25: 1
A26: 25 | B26: =Empleado25!D7 -> 23370761019 | C26: =Empleado25!D6 -> REYES JUAN MANUEL | D26: CUIT/CUIL Válido | E26: =IF(Empleado25!D74=0,0,1) -> 1 | F26: =IF(Empleado25!D105=0,0,1) -> 1 | H26: 1 | I26: 0 | J26: =IF(Empleado25!D54<Empleado25!D87,1,0) -> 0 | K26: =IF(MONTH(Datos!$C$13)>MONTH(Empleado25!D11),1,0) -> 1 | L26: 1
A27: 26 | B27: =Empleado26!D7 -> 20319804162 | C27: =Empleado26!D6 -> ALBERA NAHUEL FRANCISCO | D27: CUIT/CUIL Válido | E27: =IF(Empleado26!D74=0,0,1) -> 1 | F27: =IF(Empleado26!D105=0,0,1) -> 1 | H27: 1 | I27: 0 | J27: =IF(Empleado26!D54<Empleado26!D87,1,0) -> 0 | K27: =IF(MONTH(Datos!$C$13)>MONTH(Empleado26!D11),1,0) -> 1 | L27: 1
A28: 27 | B28: =Empleado27!D7 -> 20378948933 | C28: =Empleado27!D6 -> GOMEZ FRANCISCO | D28: CUIT/CUIL Válido | E28: =IF(Empleado27!D74=0,0,1) -> 1 | F28: =IF(Empleado27!D105=0,0,1) -> 1 | H28: 1 | I28: 0 | J28: =IF(Empleado27!D54<Empleado27!D87,1,0) -> 0 | K28: =IF(MONTH(Datos!$C$13)>MONTH(Empleado27!D11),1,0) -> 1 | L28: 1
A29: 28 | B29: =Empleado28!D7 -> 0 | C29: =Empleado28!D6 -> 0 | D29: No hay CUIL | E29: =IF(Empleado28!D74=0,0,1) -> 0 | F29: =IF(Empleado28!D105=0,0,1) -> 0 | H29: 0 | I29: 1 | J29: =IF(Empleado28!D54<Empleado28!D87,1,0) -> 0 | K29: =IF(MONTH(Datos!$C$13)>MONTH(Empleado28!D11),1,0) -> 1 | L29: 0
A30: 29 | B30: =Empleado29!D7 -> 0 | C30: =Empleado29!D6 -> 0 | D30: No hay CUIL | E30: =IF(Empleado29!D74=0,0,1) -> 0 | F30: =IF(Empleado29!D105=0,0,1) -> 0 | H30: 0 | I30: 1 | J30: =IF(Empleado29!D54<Empleado29!D87,1,0) -> 0 | K30: =IF(MONTH(Datos!$C$13)>MONTH(Empleado29!D11),1,0) -> 1 | L30: 0
A31: 30 | B31: =Empleado30!D7 -> 0 | C31: =Empleado30!D6 -> 0 | D31: No hay CUIL | E31: =IF(Empleado30!D74=0,0,1) -> 0 | F31: =IF(Empleado30!D105=0,0,1) -> 0 | H31: 0 | I31: 1 | J31: =IF(Empleado30!D54<Empleado30!D87,1,0) -> 0 | K31: =IF(MONTH(Datos!$C$13)>MONTH(Empleado30!D11),1,0) -> 1 | L31: 0
A32: 31 | B32: =Empleado31!D7 -> 0 | C32: =Empleado31!D6 -> 0 | D32: No hay CUIL | E32: =IF(Empleado31!D74=0,0,1) -> 0 | F32: =IF(Empleado31!D105=0,0,1) -> 0 | H32: 0 | I32: 1 | J32: =IF(Empleado31!D54<Empleado31!D87,1,0) -> 0 | K32: =IF(MONTH(Datos!$C$13)>MONTH(Empleado31!D11),1,0) -> 1 | L32: 0
A33: 32 | B33: =Empleado32!D7 -> 0 | C33: =Empleado32!D6 -> 0 | D33: No hay CUIL | E33: =IF(Empleado32!D74=0,0,1) -> 0 | F33: =IF(Empleado32!D105=0,0,1) -> 0 | H33: 0 | I33: 1 | J33: =IF(Empleado32!D54<Empleado32!D87,1,0) -> 0 | K33: =IF(MONTH(Datos!$C$13)>MONTH(Empleado32!D11),1,0) -> 1 | L33: 0
A34: 33 | B34: =Empleado33!D7 -> 0 | C34: =Empleado33!D6 -> 0 | D34: No hay CUIL | E34: =IF(Empleado33!D74=0,0,1) -> 0 | F34: =IF(Empleado33!D105=0,0,1) -> 0 | H34: 0 | I34: 1 | J34: =IF(Empleado33!D54<Empleado33!D87,1,0) -> 0 | K34: =IF(MONTH(Datos!$C$13)>MONTH(Empleado33!D11),1,0) -> 1 | L34: 0
A35: 34 | B35: =Empleado34!D7 -> 0 | C35: =Empleado34!D6 -> 0 | D35: No hay CUIL | E35: =IF(Empleado34!D74=0,0,1) -> 0 | F35: =IF(Empleado34!D105=0,0,1) -> 0 | H35: 0 | I35: 1 | J35: =IF(Empleado34!D54<Empleado34!D87,1,0) -> 0 | K35: =IF(MONTH(Datos!$C$13)>MONTH(Empleado34!D11),1,0) -> 1 | L35: 0
A36: 35 | B36: =Empleado35!D7 -> 0 | C36: =Empleado35!D6 -> 0 | D36: No hay CUIL | E36: =IF(Empleado35!D74=0,0,1) -> 0 | F36: =IF(Empleado35!D105=0,0,1) -> 0 | H36: 0 | I36: 1 | J36: =IF(Empleado35!D54<Empleado35!D87,1,0) -> 0 | K36: =IF(MONTH(Datos!$C$13)>MONTH(Empleado35!D11),1,0) -> 1 | L36: 0
A37: 36 | B37: =Empleado36!D7 -> 0 | C37: =Empleado36!D6 -> 0 | D37: No hay CUIL | E37: =IF(Empleado36!D74=0,0,1) -> 0 | F37: =IF(Empleado36!D105=0,0,1) -> 0 | H37: 0 | I37: 1 | J37: =IF(Empleado36!D54<Empleado36!D87,1,0) -> 0 | K37: =IF(MONTH(Datos!$C$13)>MONTH(Empleado36!D11),1,0) -> 1 | L37: 0
A38: 37 | B38: =Empleado37!D7 -> 0 | C38: =Empleado37!D6 -> 0 | D38: No hay CUIL | E38: =IF(Empleado37!D74=0,0,1) -> 0 | F38: =IF(Empleado37!D105=0,0,1) -> 0 | H38: 0 | I38: 1 | J38: =IF(Empleado37!D54<Empleado37!D87,1,0) -> 0 | K38: =IF(MONTH(Datos!$C$13)>MONTH(Empleado37!D11),1,0) -> 1 | L38: 0
A39: 38 | B39: =Empleado38!D7 -> 0 | C39: =Empleado38!D6 -> 0 | D39: No hay CUIL | E39: =IF(Empleado38!D74=0,0,1) -> 0 | F39: =IF(Empleado38!D105=0,0,1) -> 0 | H39: 0 | I39: 1 | J39: =IF(Empleado38!D54<Empleado38!D87,1,0) -> 0 | K39: =IF(MONTH(Datos!$C$13)>MONTH(Empleado38!D11),1,0) -> 1 | L39: 0
A40: 39 | B40: =Empleado39!D7 -> 0 | C40: =Empleado39!D6 -> 0 | D40: No hay CUIL | E40: =IF(Empleado39!D74=0,0,1) -> 0 | F40: =IF(Empleado39!D105=0,0,1) -> 0 | H40: 0 | I40: 1 | J40: =IF(Empleado39!D54<Empleado39!D87,1,0) -> 0 | K40: =IF(MONTH(Datos!$C$13)>MONTH(Empleado39!D11),1,0) -> 1 | L40: 0
A41: 40 | B41: =Empleado40!D7 -> 0 | C41: =Empleado40!D6 -> 0 | D41: No hay CUIL | E41: =IF(Empleado40!D74=0,0,1) -> 0 | F41: =IF(Empleado40!D105=0,0,1) -> 0 | H41: 0 | I41: 1 | J41: =IF(Empleado40!D54<Empleado40!D87,1,0) -> 0 | K41: =IF(MONTH(Datos!$C$13)>MONTH(Empleado40!D11),1,0) -> 1 | L41: 0
A42: 41 | B42: =Empleado41!D7 -> 0 | C42: =Empleado41!D6 -> 0 | D42: No hay CUIL | E42: =IF(Empleado41!D74=0,0,1) -> 0 | F42: =IF(Empleado41!D105=0,0,1) -> 0 | H42: 0 | I42: 1 | J42: =IF(Empleado41!D54<Empleado41!D87,1,0) -> 0 | K42: =IF(MONTH(Datos!$C$13)>MONTH(Empleado41!D11),1,0) -> 1 | L42: 0
A43: 42 | B43: =Empleado42!D7 -> 0 | C43: =Empleado42!D6 -> 0 | D43: No hay CUIL | E43: =IF(Empleado42!D74=0,0,1) -> 0 | F43: =IF(Empleado42!D105=0,0,1) -> 0 | H43: 0 | I43: 1 | J43: =IF(Empleado42!D54<Empleado42!D87,1,0) -> 0 | K43: =IF(MONTH(Datos!$C$13)>MONTH(Empleado42!D11),1,0) -> 1 | L43: 0
A44: 43 | B44: =Empleado43!D7 -> 0 | C44: =Empleado43!D6 -> 0 | D44: No hay CUIL | E44: =IF(Empleado43!D74=0,0,1) -> 0 | F44: =IF(Empleado43!D105=0,0,1) -> 0 | H44: 0 | I44: 1 | J44: =IF(Empleado43!D54<Empleado43!D87,1,0) -> 0 | K44: =IF(MONTH(Datos!$C$13)>MONTH(Empleado43!D11),1,0) -> 1 | L44: 0
A45: 44 | B45: =Empleado44!D7 -> 0 | C45: =Empleado44!D6 -> 0 | D45: No hay CUIL | E45: =IF(Empleado44!D74=0,0,1) -> 0 | F45: =IF(Empleado44!D105=0,0,1) -> 0 | H45: 0 | I45: 1 | J45: =IF(Empleado44!D54<Empleado44!D87,1,0) -> 0 | K45: =IF(MONTH(Datos!$C$13)>MONTH(Empleado44!D11),1,0) -> 1 | L45: 0
A46: 45 | B46: =Empleado45!D7 -> 0 | C46: =Empleado45!D6 -> 0 | D46: No hay CUIL | E46: =IF(Empleado45!D74=0,0,1) -> 0 | F46: =IF(Empleado45!D105=0,0,1) -> 0 | H46: 0 | I46: 1 | J46: =IF(Empleado45!D54<Empleado45!D87,1,0) -> 0 | K46: =IF(MONTH(Datos!$C$13)>MONTH(Empleado45!D11),1,0) -> 1 | L46: 0
A47: 46 | B47: =Empleado46!D7 -> 0 | C47: =Empleado46!D6 -> 0 | D47: No hay CUIL | E47: =IF(Empleado46!D74=0,0,1) -> 0 | F47: =IF(Empleado46!D105=0,0,1) -> 0 | H47: 0 | I47: 1 | J47: =IF(Empleado46!D54<Empleado46!D87,1,0) -> 0 | K47: =IF(MONTH(Datos!$C$13)>MONTH(Empleado46!D11),1,0) -> 1 | L47: 0
A48: 47 | B48: =Empleado47!D7 -> 0 | C48: =Empleado47!D6 -> 0 | D48: No hay CUIL | E48: =IF(Empleado47!D74=0,0,1) -> 0 | F48: =IF(Empleado47!D105=0,0,1) -> 0 | H48: 0 | I48: 1 | J48: =IF(Empleado47!D54<Empleado47!D87,1,0) -> 0 | K48: =IF(MONTH(Datos!$C$13)>MONTH(Empleado47!D11),1,0) -> 1 | L48: 0
A49: 48 | B49: =Empleado48!D7 -> 0 | C49: =Empleado48!D6 -> 0 | D49: No hay CUIL | E49: =IF(Empleado48!D74=0,0,1) -> 0 | F49: =IF(Empleado48!D105=0,0,1) -> 0 | H49: 0 | I49: 1 | J49: =IF(Empleado48!D54<Empleado48!D87,1,0) -> 0 | K49: =IF(MONTH(Datos!$C$13)>MONTH(Empleado48!D11),1,0) -> 1 | L49: 0
A50: 49 | B50: =Empleado49!D7 -> 0 | C50: =Empleado49!D6 -> 0 | D50: No hay CUIL | E50: =IF(Empleado49!D74=0,0,1) -> 0 | F50: =IF(Empleado49!D105=0,0,1) -> 0 | H50: 0 | I50: 1 | J50: =IF(Empleado49!D54<Empleado49!D87,1,0) -> 0 | K50: =IF(MONTH(Datos!$C$13)>MONTH(Empleado49!D11),1,0) -> 1 | L50: 0
A51: 50 | B51: =Empleado50!D7 -> 0 | C51: =Empleado50!D6 -> 0 | D51: No hay CUIL | E51: =IF(Empleado50!D74=0,0,1) -> 0 | F51: =IF(Empleado50!D105=0,0,1) -> 0 | H51: =IF(AND(D54="CUIT/CUIL Válido",E51=1),1,0) -> 0 | I51: =IF(D54="CUIT/CUIL Válido",0,1) -> 1 | J51: =IF(Empleado50!D54<Empleado50!D87,1,0) -> 0 | K51: =IF(MONTH(Datos!$C$13)>MONTH(Empleado50!D11),1,0) -> 1 | L51: 0

Sheet Tablas
A1: Concepto | B1: 2021
A2: Seguros | B2: 24000
A3: Intereses hipotecarios | B3: 20000
A4: GNI | B4: 167678.4
A5: 40 % GNI | B5: =+B4*0.4 -> 67071.36
A6: Sepelio | B6: 996.23
A8: Cónyuge | B8: 156320.63
A9: Hijos | B9: 78833.08

Sheet Empleado02
C3: LIQUIDACIÓN DE IMPUESTO A LAS GANANCIAS - 4ta. CATEGORÍA RELACIÓN DE DEPENDENCIA
C6: Empleado: Nombre y apellido | D6: RAMOS LEANDRO
C7: CUIL del empleado | D7: 20324442384 | F7: =cuitValidar(D7) -> CUIT/CUIL Válido
C8: ="Agente de Retención: " -> Agente de Retención: | D8: =Datos!C7&" - "&Datos!C5 -> 33711238269 - OPERACIONES AGROPORTUARIAS S.A.
C9: ="Período Fiscal: " -> Período Fiscal: | D9: =YEAR(Datos!C13) -> 2021
C10: Período trabajado (desde): | D10: 2021-01-01
C11: Período trabajado (hasta): | D11: 2021-09-25 | H11: =IF(MONTH(D11)>MONTH(Datos!C13),"El período trabajado no puede ser mayor al período que se informa (mes "&MONTH(Datos!C13)&")","") -> 
C12: Zona geográfica: | D12: Todo el país (excepto zona patagónica)
C13: Transporte a larga distancia | D13: No desarrolla la actividad
C14: Beneficio promocional 27424? | D14: No
C15: Beneficio de la ley 27549? | D15: No
C16: El trabajador labora bajo el régimen de teletrabajo (Ley 27555)? | D16: No
C17: El trabajador es personal militar en actividad? | D17: No
C19: REMUNERACIONES
C20: Abonadas por el agente de retención:
C21: Remuneración bruta gravada | D21: 3126645.25
C22: Retribuciones no habituales gravadas | D22: 0
C23: SAC primera cuota gravado | D23: 0
C24: SAC segunda cuota gravado | D24: 0
C25: Horas extras remuneración gravada | D25: 0 | G25: 0 | H25: % de retenciones
C26: Movilidad y viáticos remuneración gravada | D26: 0
C27: Material didáctico personal docente remuneración gravada | D27: 0
C28: Remuneración no alcanzada o exenta (sin horas extras) | D28: 0
C29: Remuneración exenta ley 27549 | D29: 0 | F29: =IF(AND($D$15="No",D29<>0),"Para que sea procedente el beneficio, modifique el valor en la celda D15","") -> 
C30: Retribuciones no habituales exentas o no alcanzadas | D30: 0
C31: Horas extras remuneración exenta | D31: 131569.27
C32: Movilidad y viáticos remuneración exenta | D32: 0
C33: Material didáctico personal docente remuneración exenta | D33: 0
C34: Bonos de productividad gravados | D34: 0
C35: Fallos de caja gravados | D35: 0
C36: Conceptos de similar naturaleza gravados | D36: 0
C37: Bonos de productividad exentos | D37: 0
C38: Fallos de caja exentos | D38: 0
C39: Conceptos de similar naturaleza exentos | D39: 0
C40: Compensación de gastos de teletrabajo exentos | D40: 0
C41: Personal militar - suplementos art. 57 ley 19.101 - exentos | D41: 0
C42: SAC primera cuota - No alcanzado o exento | D42: 0
C43: SAC segunda cuota - No alcanzado o exento | D43: 0
C44: Ajustes períodos anteriores - Remuneración gravada | D44: 0
C45: Ajustes períodos anteriores - Remuneración exenta / no alcanzada | D45: 0
C46: Otros empleos:
C47: Remuneración bruta gravada | D47: 0
C48: Retribuciones no habituales gravadas | D48: 0
C49: SAC primera cuota gravado | D49: 0
C50: SAC segunda cuota gravado | D50: 0
C51: Horas extras remuneración gravada | D51: 0 | G51: 0 | H51: % de retenciones
C52: Movilidad y viáticos remuneración gravada | D52: 0
C53: Material didáctico personal docente remuneración gravada | D53: 0
C54: Remuneración no alcanzada o exenta | D54: 0
C55: Remuneración exenta ley 27549 | D55: 0 | F55: =IF(AND($D$15="No",D55<>0),"Para que sea procedente el beneficio, modifique el valor en la celda D15","") -> 
C56: Retribuciones no habituales exentas o no alcanzadas | D56: 0
C57: Horas extras remuneración exenta o no alcanzada | D57: 0
C58: Movilidad y viáticos remuneración exenta o no alcanzada | D58: 0
C59: Material didáctico personal docente remuneración exenta o no alcanzada | D59: 0
C60: Bonos de productividad gravados | D60: 0
C61: Fallos de caja gravados | D61: 0
C62: Conceptos de similar naturaleza gravados | D62: 0
C63: Bonos de productividad exentos | D63: 0
C64: Fallos de caja exentos | D64: 0
C65: Conceptos de similar naturaleza exentos | D65: 0
C66: Compensación de gastos teletrabajo - exentos | D66: 0
C67: Personal militar - suplementos art. 57 Ley 19101 - exentos | D67: 0
C68: SAC primera cuota - No alcanzado o exento | D68: 0
C69: SAC segunda cuota - No alcanzado o exento | D69: 0
C70: Ajustes períodos anteriores - Remuneración gravada | D70: 0
C71: Ajustes períodos anteriores - Remuneración no alcanzada o exenta | D71: 0
C72: TOTAL REMUNERACIÓN GRAVADA | D72: =SUM(D21:E27,D44,D47:D53,D70) -> 3126645.25
C73: TOTAL REMUNERACIÓN NO ALCANZADA O EXENTA | D73: =SUM(D28:D43,D45,D54:D69,D71) -> 131569.27
C74: TOTAL REMUNERACIONES | D74: =IF(+D72+D73<0,0,D72+D73) -> 3258214.52
C76: DEDUCCIONES GENERALES | H76: Topes máximos legales
C77: Aportes a fondos de jubilaciones, retiros, pensiones o subsidios que se destinen a cajas nacionales, provinciales o municipales | D77: 385596.6 | F77: =validaciones(D77,H77,0)&IF(D77>$D$74," El importe no puede ser mayor a la remuneración total","") -> 
C78: Aportes a fondos de jubilaciones, retiros, pensiones o subsidios que se destinen a cajas nacionales, provinciales o municipales por otros empleos | D78: 0 | F78: =validaciones(D78,H78,0)&IF(D78>$D$74," El importe no puede ser mayor a la remuneración total","") -> 
C79: Aportes a obra sociales | D79: 82627.84 | F79: =validaciones(D79,H79,0)&IF(D79>$D$74," El importe no puede ser mayor a la remuneración total","") -> 
C80: Aportes a obra sociales por otros empleos | D80: 0 | F80: =validaciones(D80,H80,0)&IF(D80>$D$74," El importe no puede ser mayor a la remuneración total","") -> 
C81: Cuota sindical | D81: 87061.2 | F81: =validaciones(D81,H81,0)&IF(D81>$D$74," El importe no puede ser mayor a la remuneración total","") -> 
C82: Cuota sindical por otros empleos | D82: 0 | F82: =validaciones(D82,H82,0)&IF(D82>$D$74," El importe no puede ser mayor a la remuneración total","") -> 
C83: Cuotas médico asistenciales | D83: 0 | F83: =validaciones(D83,H83,0) ->  | H83: =(D72-SUM(D77:D82,D84:D89,D91,D93:D94,D95:D103))*0.05 -> 124553.1005
C84: Primas de seguro para el caso de muerte | D84: 0 | F84: =validaciones(D84,H84,0)&IF(AND(Datos!$C$11="Informativa",D84<>0),"En la DDJJ informativa, este campo debe consignarse en cero (0)","") ->  | H84: =+Tablas!B2 -> 24000
C85: Primas por riesgo de muerte y de ahorro de seguros mixtos, excepto para los casos de seguros de retiro privados administrados por entidades sujetas al control de la Superintendencia de Seguros de la Nación | D85: 0 | F85: =validaciones(D85,H85,0)&IF(AND(Datos!$C$11="Informativa",D85<>0),"En la DDJJ informativa, este campo debe consignarse en cero (0)","") ->  | H85: =+H84 -> 24000
C86: Aportes a planes de seguro de retiro privados administrados por entidades sujetas al control de la Superintendencia de Seguros de la Nación | D86: 0 | F86: =validaciones(D86,H86,0)&IF(AND(Datos!$C$11="Informativa",D86<>0),"En la DDJJ informativa, este campo debe consignarse en cero (0)","") ->  | H86: =+H85 -> 24000
C87: Cuotapartes de fondos comunes de inversión constituidos con fines de retiro | D87: 0 | F87: =validaciones(D87,H87,0)&IF(D87<>0,"Deberá consignarse en cero (0), hasta que la Autoridad de Aplicación – CNV – autorice a las Entidades a funcionar e implemente el régimen.","") ->  | H87: 0
C88: Gastos de sepelio | D88: 0 | F88: =validaciones(D88,H88,0) ->  | H88: =+Tablas!B6 -> 996.23
C89: Gastos amortización e intereses rodado para corredores y viajantes de comercio | D89: 0 | F89: =validaciones(D89,H89,0)&IF(D89>$D$74," El importe no puede ser mayor a la remuneración total","") -> 
C90: Donaciones a fiscos nacional, provinciales y municipales, y a instituciones comprendidas en el artículo 26, incisos e) y f) de la ley | D90: 0 | F90: =validaciones(D90,H90,0) ->  | H90: =(D72-SUM(D77:D82,D84:D89,D91,D93:D94,D95:D103))*0.05 -> 124553.1005
C91: Descuentos obligatorios establecidos por ley nacional, provincial o municipal | D91: 0 | F91: =validaciones(D91,H91,0)&IF(D91>$D$74," El importe no puede ser mayor a la remuneración total","") -> 
C92: Honorarios por servicios de asistencia sanitaria, médica y paramédica | D92: 0 | F92: =validaciones(D92,H92,0)&IF(AND(Datos!$C$11="Informativa",D92<>0),"En la DDJJ informativa, este campo debe consignarse en cero (0)","") ->  | H92: =(D72-SUM(D77:D82,D84:D89,D91,D93:D94,D95:D103))*0.05 -> 124553.1005
C93: Intereses de créditos hipotecarios | D93: 0 | F93: =validaciones(D93,H93,0) ->  | H93: =+Tablas!B3 -> 20000
C94: Aportes al capital social o al fondo de riesgo de socios protectores de sociedades de garantía recíproca | D94: 0 | F94: =validaciones(D94,H94,0) -> 
C95: Alquileres de inmuebles destinados a casa habitación | D95: 80297.6 | F95: =validaciones(D95,H95,0) ->  | H95: =IF(Datos!C11="Final",ROUND(Tablas!B4/12*12,2),ROUND(Tablas!B4/12*MONTH(Datos!C13),2)) -> 167678.4
C96: Empleados del servicio doméstico | D96: 0 | F96: =validaciones(D96,H96,0) ->  | H96: =Tablas!B4 -> 167678.4
C97: Gastos de movilidad, viáticos y otras compensaciones análogas abonados por el empleador | D97: 0 | F97: =validaciones(D97,H97,0) ->  | H97: =IF(D13="Desarrolla la actividad",Tablas!B4,Tablas!B4*0.4) -> 67071.36
C98: Gastos por adquisición de indumentaria y/o equipamiento de trabajo | D98: 0 | F98: =validaciones(D98,H98,0) -> 
C99: Otras deducciones - aportes a Cajas Complementarias de Previsión, Fondos Compensadores de Previsión o similares | D99: 0 | F99: =validaciones(D99,H99,0) -> 
C100: Otras deducciones - Aportes para jubilaciones, retiros y subsidios ANSES | D100: 0 | F100: =validaciones(D100,H100,0) -> 
C101: Otras deducciones - Cajas Provinciales o Municipales o de Previsión para Profesionales | D101: 0 | F101: =validaciones(D101,H101,0) -> 
C102: Otras deducciones - Actores - Retribución pagada a los representantes - RG 2442/08 | D102: 0 | F102: =validaciones(D102,H102,0) -> 
C103: Otras deducciones - Fondos compensadores de previsión | D103: 0 | F103: =validaciones(D103,H103,0) -> 
C104: Otras deducciones | D104: =+SUM(D99:E103) -> 0
C105: TOTAL DEDUCCIONES GENERALES | D105: =SUM(D77:E103) -> 635583.24 | K105: =+D72-D105 -> 2491062.01
C107: DEDUCCIONES PERSONALES | H107: Topes máximos legales
C108: Ganancia no imponible | D108: 167678.4 | F108: =validaciones(D108,H108,0) ->  | H108: =deducciones(1,Datos!C11,MONTH(Datos!$C$13),$D$12) -> 167678.4 | K108: =IF(K105-K109<=0,0,IF(K105-K109<=H108,K105-K109,H108)) -> 167678.4
C109: Deducción especial | D109: 804856.34 | F109: =validaciones(D109,H109,0) ->  | H109: =deducciones(2,Datos!$C$11,MONTH(Datos!$C$13),$D$12) -> 804856.34 | K109: =IF(K105<=H109,K105,H109) -> 804856.34
C110: Deducción Especial Incrementada Primera parte del penúltimo párrafo del inciso c) del artículo 30 de la ley del gravamen | D110: 0
C111: Deducción Especial Incrementada Segunda parte del penúltimo párrafo del inciso c) del artículo 30 de la ley del gravamen | D111: 0
C112: Deducción específica | D112: 0 | F112: =validaciones(D112,H112,0) ->  | H112: 0
C113: Cargas de familia
C114: Cónyuge | D114: 0 | F114: =validaciones(D114,H114,0) ->  | H114: =cargas_de_familia(4,Datos!$C$11,MONTH(Datos!$C$13),$D$12) -> 156320.63 | K114: =IF(K105-K108-K109>=D114,D114,K105-K108-K109) -> 0
C115: Cantidad de hijos e hijastros | D115: 1 | F115: =validaciones(D115,H115,0) ->  | H115: 99
C116: Deducción total hijos e hijastros | D116: 78833.08 | H116: =cargas_de_familia(3,Datos!$C$11,MONTH(Datos!$C$13),$D$12)*D115 -> 78833.08 | K116: =IF(K105-K108-K109-K114>=D116,D116,K105-K108-K109-K114) -> 78833.08
C117: Cantidad de hijos e hijastros incapacitados para el trabajo | D117: 0 | F117: =validaciones(D117,H117,0) ->  | H117: 99
C118: Hijos / Hijastros incapacitados para el trabajo | D118: 0 | H118: =cargas_de_familia(5,Datos!$C$11,MONTH(Datos!$C$13),$D$12) -> 157666.16
C119: Total de cargas de familia | D119: =+D114+D116+D118 -> 78833.08 | H119: 0
C120: TOTAL DEDUCCIONES PERSONALES | D120: =SUM(D108:D112,D119) -> 1051367.82
C122: DETERMINACIÓN DEL IMPUESTO
C123: REMUNERACIÓN NETA SUJETA A IMPUESTO -antes de la deducción art. 46 L. 27541- | D123: 0
C124: Deducción inciso a) primer párrafo artículo 30 de la ley (cfr. art. 46 L. 27541) | D124: 0 | H124: 0 | K124: =IF(D123-K125<=0,0,IF(D123-K125<=H124,D123-K125,H124)) -> 0
C125: Deducción inciso c) primer párrafo artículo 30 de la ley (cfr. art. 46 L. 27541) | D125: 0 | H125: 0 | K125: =IF(D123<=H125,D123,H125) -> 0
C126: REMUNERACIÓN SUJETA A IMPUESTO | D126: =IF(+D72-D105-D120<0,0,+D72-D105-D120) -> 1439694.19
C127: Alícuota aplicable artículo 94 ley de impuesto a las ganancias | D127: =IF(OR(Datos!C11="Final",Datos!C11="Anual"),impuestoAlicuota(D126,D25*(1-G25)+D51*(1-G51),12),impuestoAlicuota(D126,D25*(1-G25)+D51*(1-G51),MONTH(D11))) -> 0.35
C128: Alícuota aplicable sin incluir horas extras | D128: =IF(OR(Datos!C11="Final",Datos!C11="Anual"),impuestoAlicuota(D126,0,12),impuestoAlicuota(D126,0,MONTH(D11))) -> 0.35
C129: IMPUESTO DETERMINADO | D129: =IF(D126<0,0,IF(OR(Datos!C11="Final",Datos!C11="Anual"),impuestoDeterminado(D126,D25*(1-G25)+D51*(1-G51),12),impuestoDeterminado(D126,D25*(1-G25)+D51*(1-G51),MONTH(D11)))) -> 372891.7015
C130: Impuesto retenido | D130: 314037.45
C131: Pagos a cuenta - Impuesto sobre créditos y débitos | D131: 0 | F131: =IF(AND(Datos!$C$11="Informativa",D131<>0),"En la DDJJ informativa, este campo debe consignarse en cero (0)","") -> 
C132: Pagos a cuenta - Percepciones / Retenciones aduaneras | D132: 0 | F132: =IF(AND(Datos!$C$11="Informativa",D132<>0),"En la DDJJ informativa, este campo debe consignarse en cero (0)","") -> 
C133: Pagos a cuenta - RG (AFIP) 3819/2015 - Cancelaciones en efectivo | D133: 0 | F133: =IF(AND(Datos!$C$11="Informativa",D133<>0),"En la DDJJ informativa, este campo debe consignarse en cero (0)","") -> 
C134: Pagos a cuenta - Bono ley 27.424 | D134: 0 | F134: =IF(AND(Datos!$C$11="Informativa",D134<>0),"En la DDJJ informativa, este campo debe consignarse en cero (0)","") -> 
C135: Pagos a cuenta - RG 4815 [LEY 27.541 Art. 35 inciso a)] | D135: 58854.25 | F135: =IF(AND(Datos!$C$11="Informativa",D135<>0),"En la DDJJ informativa, este campo debe consignarse en cero (0)","") -> 
C136: Pagos a cuenta - RG 4815 [LEY 27.541 Art. 35 inciso b)] | D136: 0 | F136: =IF(AND(Datos!$C$11="Informativa",D136<>0),"En la DDJJ informativa, este campo debe consignarse en cero (0)","") -> 
C137: Pagos a cuenta - RG 4815 [LEY 27.541 Art. 35 inciso c)] | D137: 0 | F137: =IF(AND(Datos!$C$11="Informativa",D137<>0),"En la DDJJ informativa, este campo debe consignarse en cero (0)","") -> 
C138: Pagos a cuenta - RG 4815 [LEY 27.541 Art. 35 inciso d)] | D138: 0 | F138: =IF(AND(Datos!$C$11="Informativa",D138<>0),"En la DDJJ informativa, este campo debe consignarse en cero (0)","") -> 
C139: Pagos a cuenta - RG 4815 [LEY 27.541 Art. 35 inciso e)] | D139: 0 | F139: =IF(AND(Datos!$C$11="Informativa",D139<>0),"En la DDJJ informativa, este campo debe consignarse en cero (0)","") -> 
C140: Pagos a cuenta - Impuesto sobre créditos y débitos - sobre movimientos de fondos propios o de terceros | D140: 0 | F140: =IF(AND(Datos!$C$11="Informativa",D140<>0),"En la DDJJ informativa, este campo debe consignarse en cero (0)","") -> 
C141: Pagos a cuenta - Resolución General (AFIP) 3819/2015 - Cancelaciones en Efectivo -Servicios de transporte terrestre, aéreo y por vía acuática de pasajeros con destino fuera del país | D141: 0 | F141: =IF(AND(Datos!$C$11="Informativa",D141<>0),"En la DDJJ informativa, este campo debe consignarse en cero (0)","") -> 
C142: Total pagos a cuenta | D142: =SUM(D131:D141) -> 58854.25
C143: SALDO A PAGAR | D143: =+ROUND(D129,2)-D130-D142 -> 0

Sheet Empleado03
C3: LIQUIDACIÓN DE IMPUESTO A LAS GANANCIAS - 4ta. CATEGORÍA RELACIÓN DE DEPENDENCIA
C6: Empleado: Nombre y apellido | D6: CURTI HECTOR DAVID
C7: CUIL del empleado | D7: 20262022618 | F7: =cuitValidar(D7) -> CUIT/CUIL Válido
C8: ="Agente de Retención: " -> Agente de Retención: | D8: =Datos!C7&" - "&Datos!C5 -> 33711238269 - OPERACIONES AGROPORTUARIAS S.A.
C9: ="Período Fiscal: " -> Período Fiscal: | D9: =YEAR(Datos!C13) -> 2021
C10: Período trabajado (desde): | D10: 2021-01-01
C11: Período trabajado (hasta): | D11: 2021-09-25 | H11: =IF(MONTH(D11)>MONTH(Datos!C13),"El período trabajado no puede ser mayor al período que se informa (mes "&MONTH(Datos!C13)&")","") -> 
C12: Zona geográfica: | D12: Todo el país (excepto zona patagónica)
C13: Transporte a larga distancia | D13: No desarrolla la actividad
C14: Beneficio promocional 27424? | D14: No
C15: Beneficio de la ley 27549? | D15: No
C16: El trabajador labora bajo el régimen de teletrabajo (Ley 27555)? | D16: No
C17: El trabajador es personal militar en actividad? | D17: No
C19: REMUNERACIONES
C20: Abonadas por el agente de retención:
C21: Remuneración bruta gravada | D21: 3610502.7
C22: Retribuciones no habituales gravadas | D22: 0
C23: SAC primera cuota gravado | D23: 0
C24: SAC segunda cuota gravado | D24: 0
C25: Horas extras remuneración gravada | D25: 0 | G25: 0 | H25: % de retenciones
C26: Movilidad y viáticos remuneración gravada | D26: 0
C27: Material didáctico personal docente remuneración gravada | D27: 0
C28: Remuneración no alcanzada o exenta (sin horas extras) | D28: 0
C29: Remuneración exenta ley 27549 | D29: 0 | F29: =IF(AND($D$15="No",D29<>0),"Para que sea procedente el beneficio, modifique el valor en la celda D15","") -> 
C30: Retribuciones no habituales exentas o no alcanzadas | D30: 0
C31: Horas extras remuneración exenta | D31: 205657.69
C32: Movilidad y viáticos remuneración exenta | D32: 0
C33: Material didáctico personal docente remuneración exenta | D33: 0
C34: Bonos de productividad gravados | D34: 0
C35: Fallos de caja gravados | D35: 0
C36: Conceptos de similar naturaleza gravados | D36: 0
C37: Bonos de productividad exentos | D37: 0
C38: Fallos de caja exentos | D38: 0
C39: Conceptos de similar naturaleza exentos | D39: 0
C40: Compensación de gastos de teletrabajo exentos | D40: 0
C41: Personal militar - suplementos art. 57 ley 19.101 - exentos | D41: 0
C42: SAC primera cuota - No alcanzado o exento | D42: 0
C43: SAC segunda cuota - No alcanzado o exento | D43: 0
C44: Ajustes períodos anteriores - Remuneración gravada | D44: 0
C45: Ajustes períodos anteriores - Remuneración exenta / no alcanzada | D45: 0
C46: Otros empleos:
C47: Remuneración bruta gravada | D47: 0
C48: Retribuciones no habituales gravadas | D48: 0
C49: SAC primera cuota gravado | D49: 0
C50: SAC segunda cuota gravado | D50: 0
C51: Horas extras remuneración gravada | D51: 0 | G51: 0 | H51: % de retenciones
C52: Movilidad y viáticos remuneración gravada | D52: 0
C53: Material didáctico personal docente remuneración gravada | D53: 0
C54: Remuneración no alcanzada o exenta | D54: 0
C55: Remuneración exenta ley 27549 | D55: 0 | F55: =IF(AND($D$15="No",D55<>0),"Para que sea procedente el beneficio, modifique el valor en la celda D15","") -> 
C56: Retribuciones no habituales exentas o no alcanzadas | D56: 0
C57: Horas extras remuneración exenta o no alcanzada | D57: 0
C58: Movilidad y viáticos remuneración exenta o no alcanzada | D58: 0
C59: Material didáctico personal docente remuneración exenta o no alcanzada | D59: 0
C60: Bonos de productividad gravados | D60: 0
C61: Fallos de caja gravados | D61: 0
C62: Conceptos de similar naturaleza gravados | D62: 0
C63: Bonos de productividad exentos | D63: 0
C64: Fallos de caja exentos | D64: 0
C65: Conceptos de similar naturaleza exentos | D65: 0
C66: Compensación de gastos teletrabajo - exentos | D66: 0
C67: Personal militar - suplementos art. 57 Ley 19101 - exentos | D67: 0
C68: SAC primera cuota - No alcanzado o exento | D68: 0
C69: SAC segunda cuota - No alcanzado o exento | D69: 0
C70: Ajustes períodos anteriores - Remuneración gravada | D70: 0
C71: Ajustes períodos anteriores - Remuneración no alcanzada o exenta | D71: 0
C72: TOTAL REMUNERACIÓN GRAVADA | D72: =SUM(D21:E27,D44,D47:D53,D70) -> 3610502.7
C73: TOTAL REMUNERACIÓN NO ALCANZADA O EXENTA | D73: =SUM(D28:D43,D45,D54:D69,D71) -> 205657.69
C74: TOTAL REMUNERACIONES | D74: =IF(+D72+D73<0,0,D72+D73) -> 3816160.39
C76: DEDUCCIONES GENERALES | H76: Topes máximos legales
C77: Aportes a fondos de jubilaciones, retiros, pensiones o subsidios que se destinen a cajas nacionales, provinciales o municipales | D77: 454497.56 | F77: =validaciones(D77,H77,0)&IF(D77>$D$74," El importe no puede ser mayor a la remuneración total","") -> 
C78: Aportes a fondos de jubilaciones, retiros, pensiones o subsidios que se destinen a cajas nacionales, provinciales o municipales por otros empleos | D78: 0 | F78: =validaciones(D78,H78,0)&IF(D78>$D$74," El importe no puede ser mayor a la remuneración total","") -> 
C79: Aportes a obra sociales | D79: 97392.34 | F79: =validaciones(D79,H79,0)&IF(D79>$D$74," El importe no puede ser mayor a la remuneración total","") -> 
C80: Aportes a obra sociales por otros empleos | D80: 0 | F80: =validaciones(D80,H80,0)&IF(D80>$D$74," El importe no puede ser mayor a la remuneración total","") -> 
C81: Cuota sindical | D81: 65875.38 | F81: =validaciones(D81,H81,0)&IF(D81>$D$74," El importe no puede ser mayor a la remuneración total","") -> 
C82: Cuota sindical por otros empleos | D82: 0 | F82: =validaciones(D82,H82,0)&IF(D82>$D$74," El importe no puede ser mayor a la remuneración total","") -> 
C83: Cuotas médico asistenciales | D83: 149636.87 | F83: =validaciones(D83,H83,0) -> El importe no puede ser mayor al tope legal (119519,521) | H83: =(D72-SUM(D77:D82,D84:D89,D91,D93:D94,D95:D103))*0.05 -> 119519.521
C84: Primas de seguro para el caso de muerte | D84: 0 | F84: =validaciones(D84,H84,0)&IF(AND(Datos!$C$11="Informativa",D84<>0),"En la DDJJ informativa, este campo debe consignarse en cero (0)","") ->  | H84: =+Tablas!B2 -> 24000
C85: Primas por riesgo de muerte y de ahorro de seguros mixtos, excepto para los casos de seguros de retiro privados administrados por entidades sujetas al control de la Superintendencia de Seguros de la Nación | D85: 0 | F85: =validaciones(D85,H85,0)&IF(AND(Datos!$C$11="Informativa",D85<>0),"En la DDJJ informativa, este campo debe consignarse en cero (0)","") ->  | H85: =+H84 -> 24000
C86: Aportes a planes de seguro de retiro privados administrados por entidades sujetas al control de la Superintendencia de Seguros de la Nación | D86: 0 | F86: =validaciones(D86,H86,0)&IF(AND(Datos!$C$11="Informativa",D86<>0),"En la DDJJ informativa, este campo debe consignarse en cero (0)","") ->  | H86: =+H85 -> 24000
C87: Cuotapartes de fondos comunes de inversión constituidos con fines de retiro | D87: 0 | F87: =validaciones(D87,H87,0)&IF(D87<>0,"Deberá consignarse en cero (0), hasta que la Autoridad de Aplicación – CNV – autorice a las Entidades a funcionar e implemente el régimen.","") ->  | H87: 0
C88: Gastos de sepelio | D88: 0 | F88: =validaciones(D88,H88,0) ->  | H88: =+Tablas!B6 -> 996.23
C89: Gastos amortización e intereses rodado para corredores y viajantes de comercio | D89: 0 | F89: =validaciones(D89,H89,0)&IF(D89>$D$74," El importe no puede ser mayor a la remuneración total","") -> 
C90: Donaciones a fiscos nacional, provinciales y municipales, y a instituciones comprendidas en el artículo 26, incisos e) y f) de la ley | D90: 0 | F90: =validaciones(D90,H90,0) ->  | H90: =(D72-SUM(D77:D82,D84:D89,D91,D93:D94,D95:D103))*0.05 -> 119519.521
C91: Descuentos obligatorios establecidos por ley nacional, provincial o municipal | D91: 0 | F91: =validaciones(D91,H91,0)&IF(D91>$D$74," El importe no puede ser mayor a la remuneración total","") -> 
C92: Honorarios por servicios de asistencia sanitaria, médica y paramédica | D92: 0 | F92: =validaciones(D92,H92,0)&IF(AND(Datos!$C$11="Informativa",D92<>0),"En la DDJJ informativa, este campo debe consignarse en cero (0)","") ->  | H92: =(D72-SUM(D77:D82,D84:D89,D91,D93:D94,D95:D103))*0.05 -> 119519.521
C93: Intereses de créditos hipotecarios | D93: 0 | F93: =validaciones(D93,H93,0) ->  | H93: =+Tablas!B3 -> 20000
C94: Aportes al capital social o al fondo de riesgo de socios protectores de sociedades de garantía recíproca | D94: 511747 | F94: =validaciones(D94,H94,0) -> 
C95: Alquileres de inmuebles destinados a casa habitación | D95: 90600 | F95: =validaciones(D95,H95,0) ->  | H95: =IF(Datos!C11="Final",ROUND(Tablas!B4/12*12,2),ROUND(Tablas!B4/12*MONTH(Datos!C13),2)) -> 167678.4
C96: Empleados del servicio doméstico | D96: 0 | F96: =validaciones(D96,H96,0) ->  | H96: =Tablas!B4 -> 167678.4
C97: Gastos de movilidad, viáticos y otras compensaciones análogas abonados por el empleador | D97: 0 | F97: =validaciones(D97,H97,0) ->  | H97: =IF(D13="Desarrolla la actividad",Tablas!B4,Tablas!B4*0.4) -> 67071.36
C98: Gastos por adquisición de indumentaria y/o equipamiento de trabajo | D98: 0 | F98: =validaciones(D98,H98,0) -> 
C99: Otras deducciones - aportes a Cajas Complementarias de Previsión, Fondos Compensadores de Previsión o similares | D99: 0 | F99: =validaciones(D99,H99,0) -> 
C100: Otras deducciones - Aportes para jubilaciones, retiros y subsidios ANSES | D100: 0 | F100: =validaciones(D100,H100,0) -> 
C101: Otras deducciones - Cajas Provinciales o Municipales o de Previsión para Profesionales | D101: 0 | F101: =validaciones(D101,H101,0) -> 
C102: Otras deducciones - Actores - Retribución pagada a los representantes - RG 2442/08 | D102: 0 | F102: =validaciones(D102,H102,0) -> 
C103: Otras deducciones - Fondos compensadores de previsión | D103: 0 | F103: =validaciones(D103,H103,0) -> 
C104: Otras deducciones | D104: =+SUM(D99:E103) -> 0
C105: TOTAL DEDUCCIONES GENERALES | D105: =SUM(D77:E103) -> 1369749.15 | K105: =+D72-D105 -> 2240753.55
C107: DEDUCCIONES PERSONALES | H107: Topes máximos legales
C108: Ganancia no imponible | D108: 167678.4 | F108: =validaciones(D108,H108,0) ->  | H108: =deducciones(1,Datos!C11,MONTH(Datos!$C$13),$D$12) -> 167678.4 | K108: =IF(K105-K109<=0,0,IF(K105-K109<=H108,K105-K109,H108)) -> 167678.4
C109: Deducción especial | D109: 804856.34 | F109: =validaciones(D109,H109,0) ->  | H109: =deducciones(2,Datos!$C$11,MONTH(Datos!$C$13),$D$12) -> 804856.34 | K109: =IF(K105<=H109,K105,H109) -> 804856.34
C110: Deducción Especial Incrementada Primera parte del penúltimo párrafo del inciso c) del artículo 30 de la ley del gravamen | D110: 0
C111: Deducción Especial Incrementada Segunda parte del penúltimo párrafo del inciso c) del artículo 30 de la ley del gravamen | D111: 0
C112: Deducción específica | D112: 0 | F112: =validaciones(D112,H112,0) ->  | H112: 0
C113: Cargas de familia
C114: Cónyuge | D114: 156320.63 | F114: =validaciones(D114,H114,0) ->  | H114: =cargas_de_familia(4,Datos!$C$11,MONTH(Datos!$C$13),$D$12) -> 156320.63 | K114: =IF(K105-K108-K109>=D114,D114,K105-K108-K109) -> 156320.63
C115: Cantidad de hijos e hijastros | D115: 1 | F115: =validaciones(D115,H115,0) ->  | H115: 99
C116: Deducción total hijos e hijastros | D116: 78833.08 | H116: =cargas_de_familia(3,Datos!$C$11,MONTH(Datos!$C$13),$D$12)*D115 -> 78833.08 | K116: =IF(K105-K108-K109-K114>=D116,D116,K105-K108-K109-K114) -> 78833.08
C117: Cantidad de hijos e hijastros incapacitados para el trabajo | D117: 0 | F117: =validaciones(D117,H117,0) ->  | H117: 99
C118: Hijos / Hijastros incapacitados para el trabajo | D118: 0 | H118: =cargas_de_familia(5,Datos!$C$11,MONTH(Datos!$C$13),$D$12) -> 157666.16
C119: Total de cargas de familia | D119: =+D114+D116+D118 -> 235153.71 | H119: 0
C120: TOTAL DEDUCCIONES PERSONALES | D120: =SUM(D108:D112,D119) -> 1207688.45
C122: DETERMINACIÓN DEL IMPUESTO
C123: REMUNERACIÓN NETA SUJETA A IMPUESTO -antes de la deducción art. 46 L. 27541- | D123: 0
C124: Deducción inciso a) primer párrafo artículo 30 de la ley (cfr. art. 46 L. 27541) | D124: 0 | H124: 0 | K124: =IF(D123-K125<=0,0,IF(D123-K125<=H124,D123-K125,H124)) -> 0
C125: Deducción inciso c) primer párrafo artículo 30 de la ley (cfr. art. 46 L. 27541) | D125: 0 | H125: 0 | K125: =IF(D123<=H125,D123,H125) -> 0
C126: REMUNERACIÓN SUJETA A IMPUESTO | D126: =IF(+D72-D105-D120<0,0,+D72-D105-D120) -> 1033065.1
C127: Alícuota aplicable artículo 94 ley de impuesto a las ganancias | D127: =IF(OR(Datos!C11="Final",Datos!C11="Anual"),impuestoAlicuota(D126,D25*(1-G25)+D51*(1-G51),12),impuestoAlicuota(D126,D25*(1-G25)+D51*(1-G51),MONTH(D11))) -> 0.35
C128: Alícuota aplicable sin incluir horas extras | D128: =IF(OR(Datos!C11="Final",Datos!C11="Anual"),impuestoAlicuota(D126,0,12),impuestoAlicuota(D126,0,MONTH(D11))) -> 0.35
C129: IMPUESTO DETERMINADO | D129: =IF(D126<0,0,IF(OR(Datos!C11="Final",Datos!C11="Anual"),impuestoDeterminado(D126,D25*(1-G25)+D51*(1-G51),12),impuestoDeterminado(D126,D25*(1-G25)+D51*(1-G51),MONTH(D11)))) -> 230571.52
C130: Impuesto retenido | D130: 146358.02
C131: Pagos a cuenta - Impuesto sobre créditos y débitos | D131: 0 | F131: =IF(AND(Datos!$C$11="Informativa",D131<>0),"En la DDJJ informativa, este campo debe consignarse en cero (0)","") -> 
C132: Pagos a cuenta - Percepciones / Retenciones aduaneras | D132: 0 | F132: =IF(AND(Datos!$C$11="Informativa",D132<>0),"En la DDJJ informativa, este campo debe consignarse en cero (0)","") -> 
C133: Pagos a cuenta - RG (AFIP) 3819/2015 - Cancelaciones en efectivo | D133: 0 | F133: =IF(AND(Datos!$C$11="Informativa",D133<>0),"En la DDJJ informativa, este campo debe consignarse en cero (0)","") -> 
C134: Pagos a cuenta - Bono ley 27.424 | D134: 0 | F134: =IF(AND(Datos!$C$11="Informativa",D134<>0),"En la DDJJ informativa, este campo debe consignarse en cero (0)","") -> 
C135: Pagos a cuenta - RG 4815 [LEY 27.541 Art. 35 inciso a)] | D135: 84213.5 | F135: =IF(AND(Datos!$C$11="Informativa",D135<>0),"En la DDJJ informativa, este campo debe consignarse en cero (0)","") -> 
C136: Pagos a cuenta - RG 4815 [LEY 27.541 Art. 35 inciso b)] | D136: 0 | F136: =IF(AND(Datos!$C$11="Informativa",D136<>0),"En la DDJJ informativa, este campo debe consignarse en cero (0)","") -> 
C137: Pagos a cuenta - RG 4815 [LEY 27.541 Art. 35 inciso c)] | D137: 0 | F137: =IF(AND(Datos!$C$11="Informativa",D137<>0),"En la DDJJ informativa, este campo debe consignarse en cero (0)","") -> 
C138: Pagos a cuenta - RG 4815 [LEY 27.541 Art. 35 inciso d)] | D138: 0 | F138: =IF(AND(Datos!$C$11="Informativa",D138<>0),"En la DDJJ informativa, este campo debe consignarse en cero (0)","") -> 
C139: Pagos a cuenta - RG 4815 [LEY 27.541 Art. 35 inciso e)] | D139: 0 | F139: =IF(AND(Datos!$C$11="Informativa",D139<>0),"En la DDJJ informativa, este campo debe consignarse en cero (0)","") -> 
C140: Pagos a cuenta - Impuesto sobre créditos y débitos - sobre movimientos de fondos propios o de terceros | D140: 0 | F140: =IF(AND(Datos!$C$11="Informativa",D140<>0),"En la DDJJ informativa, este campo debe consignarse en cero (0)","") -> 
C141: Pagos a cuenta - Resolución General (AFIP) 3819/2015 - Cancelaciones en Efectivo -Servicios de transporte terrestre, aéreo y por vía acuática de pasajeros con destino fuera del país | D141: 0 | F141: =IF(AND(Datos!$C$11="Informativa",D141<>0),"En la DDJJ informativa, este campo debe consignarse en cero (0)","") -> 
C142: Total pagos a cuenta | D142: =SUM(D131:D141) -> 84213.5
C143: SALDO A PAGAR | D143: =+ROUND(D129,2)-D130-D142 -> 0

Sheet Empleado04
C3: LIQUIDACIÓN DE IMPUESTO A LAS GANANCIAS - 4ta. CATEGORÍA RELACIÓN DE DEPENDENCIA
C6: Empleado: Nombre y apellido | D6: SALDIAS DAVID GUSTAVO
C7: CUIL del empleado | D7: 20330698471 | F7: =cuitValidar(D7) -> CUIT/CUIL Válido
C8: ="Agente de Retención: " -> Agente de Retención: | D8: =Datos!C7&" - "&Datos!C5 -> 33711238269 - OPERACIONES AGROPORTUARIAS S.A.
C9: ="Período Fiscal: " -> Período Fiscal: | D9: =YEAR(Datos!C13) -> 2021
C10: Período trabajado (desde): | D10: 2021-01-01
C11: Período trabajado (hasta): | D11: 2021-09-25 | H11: =IF(MONTH(D11)>MONTH(Datos!C13),"El período trabajado no puede ser mayor al período que se informa (mes "&MONTH(Datos!C13)&")","") -> 
C12: Zona geográfica: | D12: Todo el país (excepto zona patagónica)
C13: Transporte a larga distancia | D13: No desarrolla la actividad
C14: Beneficio promocional 27424? | D14: No
C15: Beneficio de la ley 27549? | D15: No
C16: El trabajador labora bajo el régimen de teletrabajo (Ley 27555)? | D16: No
C17: El trabajador es personal militar en actividad? | D17: No
C19: REMUNERACIONES
C20: Abonadas por el agente de retención:
C21: Remuneración bruta gravada | D21: 2674670.68
C22: Retribuciones no habituales gravadas | D22: 0
C23: SAC primera cuota gravado | D23: 0
C24: SAC segunda cuota gravado | D24: 0
C25: Horas extras remuneración gravada | D25: 0 | G25: 0 | H25: % de retenciones
C26: Movilidad y viáticos remuneración gravada | D26: 0
C27: Material didáctico personal docente remuneración gravada | D27: 0
C28: Remuneración no alcanzada o exenta (sin horas extras) | D28: 0
C29: Remuneración exenta ley 27549 | D29: 0 | F29: =IF(AND($D$15="No",D29<>0),"Para que sea procedente el beneficio, modifique el valor en la celda D15","") -> 
C30: Retribuciones no habituales exentas o no alcanzadas | D30: 0
C31: Horas extras remuneración exenta | D31: 74116.01
C32: Movilidad y viáticos remuneración exenta | D32: 0
C33: Material didáctico personal docente remuneración exenta | D33: 0
C34: Bonos de productividad gravados | D34: 0
C35: Fallos de caja gravados | D35: 0
C36: Conceptos de similar naturaleza gravados | D36: 0
C37: Bonos de productividad exentos | D37: 0
C38: Fallos de caja exentos | D38: 0
C39: Conceptos de similar naturaleza exentos | D39: 0
C40: Compensación de gastos de teletrabajo exentos | D40: 0
C41: Personal militar - suplementos art. 57 ley 19.101 - exentos | D41: 0
C42: SAC primera cuota - No alcanzado o exento | D42: 0
C43: SAC segunda cuota - No alcanzado o exento | D43: 0
C44: Ajustes períodos anteriores - Remuneración gravada | D44: 0
C45: Ajustes períodos anteriores - Remuneración exenta / no alcanzada | D45: 0
C46: Otros empleos:
C47: Remuneración bruta gravada | D47: 0
C48: Retribuciones no habituales gravadas | D48: 0
C49: SAC primera cuota gravado | D49: 0
C50: SAC segunda cuota gravado | D50: 0
C51: Horas extras remuneración gravada | D51: 0 | G51: 0 | H51: % de retenciones
C52: Movilidad y viáticos remuneración gravada | D52: 0
C53: Material didáctico personal docente remuneración gravada | D53: 0
C54: Remuneración no alcanzada o exenta | D54: 0
C55: Remuneración exenta ley 27549 | D55: 0 | F55: =IF(AND($D$15="No",D55<>0),"Para que sea procedente el beneficio, modifique el valor en la celda D15","") -> 
C56: Retribuciones no habituales exentas o no alcanzadas | D56: 0
C57: Horas extras remuneración exenta o no alcanzada | D57: 0
C58: Movilidad y viáticos remuneración exenta o no alcanzada | D58: 0
C59: Material didáctico personal docente remuneración exenta o no alcanzada | D59: 0
C60: Bonos de productividad gravados | D60: 0
C61: Fallos de caja gravados | D61: 0
C62: Conceptos de similar naturaleza gravados | D62: 0
C63: Bonos de productividad exentos | D63: 0
C64: Fallos de caja exentos | D64: 0
C65: Conceptos de similar naturaleza exentos | D65: 0
C66: Compensación de gastos teletrabajo - exentos | D66: 0
C67: Personal militar - suplementos art. 57 Ley 19101 - exentos | D67: 0
C68: SAC primera cuota - No alcanzado o exento | D68: 0
C69: SAC segunda cuota - No alcanzado o exento | D69: 0
C70: Ajustes períodos anteriores - Remuneración gravada | D70: 0
C71: Ajustes períodos anteriores - Remuneración no alcanzada o exenta | D71: 0
C72: TOTAL REMUNERACIÓN GRAVADA | D72: =SUM(D21:E27,D44,D47:D53,D70) -> 2674670.68
C73: TOTAL REMUNERACIÓN NO ALCANZADA O EXENTA | D73: =SUM(D28:D43,D45,D54:D69,D71) -> 74116.01
C74: TOTAL REMUNERACIONES | D74: =IF(+D72+D73<0,0,D72+D73) -> 2748786.69
C76: DEDUCCIONES GENERALES | H76: Topes máximos legales
C77: Aportes a fondos de jubilaciones, retiros, pensiones o subsidios que se destinen a cajas nacionales, provinciales o municipales | D77: 330206.99 | F77: =validaciones(D77,H77,0)&IF(D77>$D$74," El importe no puede ser mayor a la remuneración total","") -> 
C78: Aportes a fondos de jubilaciones, retiros, pensiones o subsidios que se destinen a cajas nacionales, provinciales o municipales por otros empleos | D78: 0 | F78: =validaciones(D78,H78,0)&IF(D78>$D$74," El importe no puede ser mayor a la remuneración total","") -> 
C79: Aportes a obra sociales | D79: 70758.64 | F79: =validaciones(D79,H79,0)&IF(D79>$D$74," El importe no puede ser mayor a la remuneración total","") -> 
C80: Aportes a obra sociales por otros empleos | D80: 0 | F80: =validaciones(D80,H80,0)&IF(D80>$D$74," El importe no puede ser mayor a la remuneración total","") -> 
C81: Cuota sindical | D81: 74162.57 | F81: =validaciones(D81,H81,0)&IF(D81>$D$74," El importe no puede ser mayor a la remuneración total","") -> 
C82: Cuota sindical por otros empleos | D82: 0 | F82: =validaciones(D82,H82,0)&IF(D82>$D$74," El importe no puede ser mayor a la remuneración total","") -> 
C83: Cuotas médico asistenciales | D83: 0 | F83: =validaciones(D83,H83,0) ->  | H83: =(D72-SUM(D77:D82,D84:D89,D91,D93:D94,D95:D103))*0.05 -> 109092.124
C84: Primas de seguro para el caso de muerte | D84: 17700 | F84: =validaciones(D84,H84,0)&IF(AND(Datos!$C$11="Informativa",D84<>0),"En la DDJJ informativa, este campo debe consignarse en cero (0)","") ->  | H84: =+Tablas!B2 -> 24000
C85: Primas por riesgo de muerte y de ahorro de seguros mixtos, excepto para los casos de seguros de retiro privados administrados por entidades sujetas al control de la Superintendencia de Seguros de la Nación | D85: 0 | F85: =validaciones(D85,H85,0)&IF(AND(Datos!$C$11="Informativa",D85<>0),"En la DDJJ informativa, este campo debe consignarse en cero (0)","") ->  | H85: =+H84 -> 24000
C86: Aportes a planes de seguro de retiro privados administrados por entidades sujetas al control de la Superintendencia de Seguros de la Nación | D86: 0 | F86: =validaciones(D86,H86,0)&IF(AND(Datos!$C$11="Informativa",D86<>0),"En la DDJJ informativa, este campo debe consignarse en cero (0)","") ->  | H86: =+H85 -> 24000
C87: Cuotapartes de fondos comunes de inversión constituidos con fines de retiro | D87: 0 | F87: =validaciones(D87,H87,0)&IF(D87<>0,"Deberá consignarse en cero (0), hasta que la Autoridad de Aplicación – CNV – autorice a las Entidades a funcionar e implemente el régimen.","") ->  | H87: 0
C88: Gastos de sepelio | D88: 0 | F88: =validaciones(D88,H88,0) ->  | H88: =+Tablas!B6 -> 996.23
C89: Gastos amortización e intereses rodado para corredores y viajantes de comercio | D89: 0 | F89: =validaciones(D89,H89,0)&IF(D89>$D$74," El importe no puede ser mayor a la remuneración total","") -> 
C90: Donaciones a fiscos nacional, provinciales y municipales, y a instituciones comprendidas en el artículo 26, incisos e) y f) de la ley | D90: 0 | F90: =validaciones(D90,H90,0) ->  | H90: =(D72-SUM(D77:D82,D84:D89,D91,D93:D94,D95:D103))*0.05 -> 109092.124
C91: Descuentos obligatorios establecidos por ley nacional, provincial o municipal | D91: 0 | F91: =validaciones(D91,H91,0)&IF(D91>$D$74," El importe no puede ser mayor a la remuneración total","") -> 
C92: Honorarios por servicios de asistencia sanitaria, médica y paramédica | D92: 0 | F92: =validaciones(D92,H92,0)&IF(AND(Datos!$C$11="Informativa",D92<>0),"En la DDJJ informativa, este campo debe consignarse en cero (0)","") ->  | H92: =(D72-SUM(D77:D82,D84:D89,D91,D93:D94,D95:D103))*0.05 -> 109092.124
C93: Intereses de créditos hipotecarios | D93: 0 | F93: =validaciones(D93,H93,0) ->  | H93: =+Tablas!B3 -> 20000
C94: Aportes al capital social o al fondo de riesgo de socios protectores de sociedades de garantía recíproca | D94: 0 | F94: =validaciones(D94,H94,0) -> 
C95: Alquileres de inmuebles destinados a casa habitación | D95: 0 | F95: =validaciones(D95,H95,0) ->  | H95: =IF(Datos!C11="Final",ROUND(Tablas!B4/12*12,2),ROUND(Tablas!B4/12*MONTH(Datos!C13),2)) -> 167678.4
C96: Empleados del servicio doméstico | D96: 0 | F96: =validaciones(D96,H96,0) ->  | H96: =Tablas!B4 -> 167678.4
C97: Gastos de movilidad, viáticos y otras compensaciones análogas abonados por el empleador | D97: 0 | F97: =validaciones(D97,H97,0) ->  | H97: =IF(D13="Desarrolla la actividad",Tablas!B4,Tablas!B4*0.4) -> 67071.36
C98: Gastos por adquisición de indumentaria y/o equipamiento de trabajo | D98: 0 | F98: =validaciones(D98,H98,0) -> 
C99: Otras deducciones - aportes a Cajas Complementarias de Previsión, Fondos Compensadores de Previsión o similares | D99: 0 | F99: =validaciones(D99,H99,0) -> 
C100: Otras deducciones - Aportes para jubilaciones, retiros y subsidios ANSES | D100: 0 | F100: =validaciones(D100,H100,0) -> 
C101: Otras deducciones - Cajas Provinciales o Municipales o de Previsión para Profesionales | D101: 0 | F101: =validaciones(D101,H101,0) -> 
C102: Otras deducciones - Actores - Retribución pagada a los representantes - RG 2442/08 | D102: 0 | F102: =validaciones(D102,H102,0) -> 
C103: Otras deducciones - Fondos compensadores de previsión | D103: 0 | F103: =validaciones(D103,H103,0) -> 
C104: Otras deducciones | D104: =+SUM(D99:E103) -> 0
C105: TOTAL DEDUCCIONES GENERALES | D105: =SUM(D77:E103) -> 492828.2 | K105: =+D72-D105 -> 2181842.48
C107: DEDUCCIONES PERSONALES | H107: Topes máximos legales
C108: Ganancia no imponible | D108: 167678.4 | F108: =validaciones(D108,H108,0) ->  | H108: =deducciones(1,Datos!C11,MONTH(Datos!$C$13),$D$12) -> 167678.4 | K108: =IF(K105-K109<=0,0,IF(K105-K109<=H108,K105-K109,H108)) -> 167678.4
C109: Deducción especial | D109: 804856.34 | F109: =validaciones(D109,H109,0) ->  | H109: =deducciones(2,Datos!$C$11,MONTH(Datos!$C$13),$D$12) -> 804856.34 | K109: =IF(K105<=H109,K105,H109) -> 804856.34
C110: Deducción Especial Incrementada Primera parte del penúltimo párrafo del inciso c) del artículo 30 de la ley del gravamen | D110: 0
C111: Deducción Especial Incrementada Segunda parte del penúltimo párrafo del inciso c) del artículo 30 de la ley del gravamen | D111: 39804
C112: Deducción específica | D112: 0 | F112: =validaciones(D112,H112,0) ->  | H112: 0
C113: Cargas de familia
C114: Cónyuge | D114: =+H114 -> 156320.63 | F114: =validaciones(D114,H114,0) ->  | H114: =cargas_de_familia(4,Datos!$C$11,MONTH(Datos!$C$13),$D$12) -> 156320.63 | K114: =IF(K105-K108-K109>=D114,D114,K105-K108-K109) -> 156320.63
C115: Cantidad de hijos e hijastros | D115: 2 | F115: =validaciones(D115,H115,0) ->  | H115: 99
C116: Deducción total hijos e hijastros | D116: 157666.16 | H116: =cargas_de_familia(3,Datos!$C$11,MONTH(Datos!$C$13),$D$12)*D115 -> 157666.16 | K116: =IF(K105-K108-K109-K114>=D116,D116,K105-K108-K109-K114) -> 157666.16
C117: Cantidad de hijos e hijastros incapacitados para el trabajo | D117: 0 | F117: =validaciones(D117,H117,0) ->  | H117: 99
C118: Hijos / Hijastros incapacitados para el trabajo | D118: 0 | H118: =cargas_de_familia(5,Datos!$C$11,MONTH(Datos!$C$13),$D$12) -> 157666.16
C119: Total de cargas de familia | D119: =+D114+D116+D118 -> 313986.79 | H119: 0
C120: TOTAL DEDUCCIONES PERSONALES | D120: =SUM(D108:D112,D119) -> 1326325.53
C122: DETERMINACIÓN DEL IMPUESTO
C123: REMUNERACIÓN NETA SUJETA A IMPUESTO -antes de la deducción art. 46 L. 27541- | D123: 0
C124: Deducción inciso a) primer párrafo artículo 30 de la ley (cfr. art. 46 L. 27541) | D124: 0 | H124: 0 | K124: =IF(D123-K125<=0,0,IF(D123-K125<=H124,D123-K125,H124)) -> 0
C125: Deducción inciso c) primer párrafo artículo 30 de la ley (cfr. art. 46 L. 27541) | D125: 0 | H125: 0 | K125: =IF(D123<=H125,D123,H125) -> 0
C126: REMUNERACIÓN SUJETA A IMPUESTO | D126: =IF(+D72-D105-D120<0,0,+D72-D105-D120) -> 855516.95
C127: Alícuota aplicable artículo 94 ley de impuesto a las ganancias | D127: =IF(OR(Datos!C11="Final",Datos!C11="Anual"),impuestoAlicuota(D126,D25*(1-G25)+D51*(1-G51),12),impuestoAlicuota(D126,D25*(1-G25)+D51*(1-G51),MONTH(D11))) -> 0.31
C128: Alícuota aplicable sin incluir horas extras | D128: =IF(OR(Datos!C11="Final",Datos!C11="Anual"),impuestoAlicuota(D126,0,12),impuestoAlicuota(D126,0,MONTH(D11))) -> 0.31
C129: IMPUESTO DETERMINADO | D129: =IF(D126<0,0,IF(OR(Datos!C11="Final",Datos!C11="Anual"),impuestoDeterminado(D126,D25*(1-G25)+D51*(1-G51),12),impuestoDeterminado(D126,D25*(1-G25)+D51*(1-G51),MONTH(D11)))) -> 175509.8844
C130: Impuesto retenido | D130: 175509.88
C131: Pagos a cuenta - Impuesto sobre créditos y débitos | D131: 0 | F131: =IF(AND(Datos!$C$11="Informativa",D131<>0),"En la DDJJ informativa, este campo debe consignarse en cero (0)","") -> 
C132: Pagos a cuenta - Percepciones / Retenciones aduaneras | D132: 0 | F132: =IF(AND(Datos!$C$11="Informativa",D132<>0),"En la DDJJ informativa, este campo debe consignarse en cero (0)","") -> 
C133: Pagos a cuenta - RG (AFIP) 3819/2015 - Cancelaciones en efectivo | D133: 0 | F133: =IF(AND(Datos!$C$11="Informativa",D133<>0),"En la DDJJ informativa, este campo debe consignarse en cero (0)","") -> 
C134: Pagos a cuenta - Bono ley 27.424 | D134: 0 | F134: =IF(AND(Datos!$C$11="Informativa",D134<>0),"En la DDJJ informativa, este campo debe consignarse en cero (0)","") -> 
C135: Pagos a cuenta - RG 4815 [LEY 27.541 Art. 35 inciso a)] | D135: 0 | F135: =IF(AND(Datos!$C$11="Informativa",D135<>0),"En la DDJJ informativa, este campo debe consignarse en cero (0)","") -> 
C136: Pagos a cuenta - RG 4815 [LEY 27.541 Art. 35 inciso b)] | D136: 0 | F136: =IF(AND(Datos!$C$11="Informativa",D136<>0),"En la DDJJ informativa, este campo debe consignarse en cero (0)","") -> 
C137: Pagos a cuenta - RG 4815 [LEY 27.541 Art. 35 inciso c)] | D137: 0 | F137: =IF(AND(Datos!$C$11="Informativa",D137<>0),"En la DDJJ informativa, este campo debe consignarse en cero (0)","") -> 
C138: Pagos a cuenta - RG 4815 [LEY 27.541 Art. 35 inciso d)] | D138: 0 | F138: =IF(AND(Datos!$C$11="Informativa",D138<>0),"En la DDJJ informativa, este campo debe consignarse en cero (0)","") -> 
C139: Pagos a cuenta - RG 4815 [LEY 27.541 Art. 35 inciso e)] | D139: 0 | F139: =IF(AND(Datos!$C$11="Informativa",D139<>0),"En la DDJJ informativa, este campo debe consignarse en cero (0)","") -> 
C140: Pagos a cuenta - Impuesto sobre créditos y débitos - sobre movimientos de fondos propios o de terceros | D140: 0 | F140: =IF(AND(Datos!$C$11="Informativa",D140<>0),"En la DDJJ informativa, este campo debe consignarse en cero (0)","") -> 
C141: Pagos a cuenta - Resolución General (AFIP) 3819/2015 - Cancelaciones en Efectivo -Servicios de transporte terrestre, aéreo y por vía acuática de pasajeros con destino fuera del país | D141: 0 | F141: =IF(AND(Datos!$C$11="Informativa",D141<>0),"En la DDJJ informativa, este campo debe consignarse en cero (0)","") -> 
C142: Total pagos a cuenta | D142: =SUM(D131:D141) -> 0
C143: SALDO A PAGAR | D143: =+ROUND(D129,2)-D130-D142 -> 0

Sheet Empleado05
C3: LIQUIDACIÓN DE IMPUESTO A LAS GANANCIAS - 4ta. CATEGORÍA RELACIÓN DE DEPENDENCIA
C6: Empleado: Nombre y apellido | D6: CENITAGOYA ALEJANDRO
C7: CUIL del empleado | D7: 20291122559 | F7: =cuitValidar(D7) -> CUIT/CUIL Válido
C8: ="Agente de Retención: " -> Agente de Retención: | D8: =Datos!C7&" - "&Datos!C5 -> 33711238269 - OPERACIONES AGROPORTUARIAS S.A.
C9: ="Período Fiscal: " -> Período Fiscal: | D9: =YEAR(Datos!C13) -> 2021
C10: Período trabajado (desde): | D10: 2021-01-01
C11: Período trabajado (hasta): | D11: 2021-09-25 | H11: =IF(MONTH(D11)>MONTH(Datos!C13),"El período trabajado no puede ser mayor al período que se informa (mes "&MONTH(Datos!C13)&")","") -> 
C12: Zona geográfica: | D12: Todo el país (excepto zona patagónica)
C13: Transporte a larga distancia | D13: No desarrolla la actividad
C14: Beneficio promocional 27424? | D14: No
C15: Beneficio de la ley 27549? | D15: No
C16: El trabajador labora bajo el régimen de teletrabajo (Ley 27555)? | D16: No
C17: El trabajador es personal militar en actividad? | D17: No
C19: REMUNERACIONES
C20: Abonadas por el agente de retención:
C21: Remuneración bruta gravada | D21: 2610666.85
C22: Retribuciones no habituales gravadas | D22: 0
C23: SAC primera cuota gravado | D23: 0
C24: SAC segunda cuota gravado | D24: 0
C25: Horas extras remuneración gravada | D25: 0 | G25: 0 | H25: % de retenciones
C26: Movilidad y viáticos remuneración gravada | D26: 0
C27: Material didáctico personal docente remuneración gravada | D27: 0
C28: Remuneración no alcanzada o exenta (sin horas extras) | D28: 0
C29: Remuneración exenta ley 27549 | D29: 0 | F29: =IF(AND($D$15="No",D29<>0),"Para que sea procedente el beneficio, modifique el valor en la celda D15","") -> 
C30: Retribuciones no habituales exentas o no alcanzadas | D30: 0
C31: Horas extras remuneración exenta | D31: 46148.64
C32: Movilidad y viáticos remuneración exenta | D32: 0
C33: Material didáctico personal docente remuneración exenta | D33: 0
C34: Bonos de productividad gravados | D34: 0
C35: Fallos de caja gravados | D35: 0
C36: Conceptos de similar naturaleza gravados | D36: 0
C37: Bonos de productividad exentos | D37: 0
C38: Fallos de caja exentos | D38: 0
C39: Conceptos de similar naturaleza exentos | D39: 0
C40: Compensación de gastos de teletrabajo exentos | D40: 0
C41: Personal militar - suplementos art. 57 ley 19.101 - exentos | D41: 0
C42: SAC primera cuota - No alcanzado o exento | D42: 0
C43: SAC segunda cuota - No alcanzado o exento | D43: 0
C44: Ajustes períodos anteriores - Remuneración gravada | D44: 0
C45: Ajustes períodos anteriores - Remuneración exenta / no alcanzada | D45: 0
C46: Otros empleos:
C47: Remuneración bruta gravada | D47: 0
C48: Retribuciones no habituales gravadas | D48: 0
C49: SAC primera cuota gravado | D49: 0
C50: SAC segunda cuota gravado | D50: 0
C51: Horas extras remuneración gravada | D51: 0 | G51: 0 | H51: % de retenciones
C52: Movilidad y viáticos remuneración gravada | D52: 0
C53: Material didáctico personal docente remuneración gravada | D53: 0
C54: Remuneración no alcanzada o exenta | D54: 0
C55: Remuneración exenta ley 27549 | D55: 0 | F55: =IF(AND($D$15="No",D55<>0),"Para que sea procedente el beneficio, modifique el valor en la celda D15","") -> 
C56: Retribuciones no habituales exentas o no alcanzadas | D56: 0
C57: Horas extras remuneración exenta o no alcanzada | D57: 0
C58: Movilidad y viáticos remuneración exenta o no alcanzada | D58: 0
C59: Material didáctico personal docente remuneración exenta o no alcanzada | D59: 0
C60: Bonos de productividad gravados | D60: 0
C61: Fallos de caja gravados | D61: 0
C62: Conceptos de similar naturaleza gravados | D62: 0
C63: Bonos de productividad exentos | D63: 0
C64: Fallos de caja exentos | D64: 0
C65: Conceptos de similar naturaleza exentos | D65: 0
C66: Compensación de gastos teletrabajo - exentos | D66: 0
C67: Personal militar - suplementos art. 57 Ley 19101 - exentos | D67: 0
C68: SAC primera cuota - No alcanzado o exento | D68: 0
C69: SAC segunda cuota - No alcanzado o exento | D69: 0
C70: Ajustes períodos anteriores - Remuneración gravada | D70: 0
C71: Ajustes períodos anteriores - Remuneración no alcanzada o exenta | D71: 0
C72: TOTAL REMUNERACIÓN GRAVADA | D72: =SUM(D21:E27,D44,D47:D53,D70) -> 2610666.85
C73: TOTAL REMUNERACIÓN NO ALCANZADA O EXENTA | D73: =SUM(D28:D43,D45,D54:D69,D71) -> 46148.64
C74: TOTAL REMUNERACIONES | D74: =IF(+D72+D73<0,0,D72+D73) -> 2656815.49
C76: DEDUCCIONES GENERALES | H76: Topes máximos legales
C77: Aportes a fondos de jubilaciones, retiros, pensiones o subsidios que se destinen a cajas nacionales, provinciales o municipales | D77: 314588.53 | F77: =validaciones(D77,H77,0)&IF(D77>$D$74," El importe no puede ser mayor a la remuneración total","") -> 
C78: Aportes a fondos de jubilaciones, retiros, pensiones o subsidios que se destinen a cajas nacionales, provinciales o municipales por otros empleos | D78: 0 | F78: =validaciones(D78,H78,0)&IF(D78>$D$74," El importe no puede ser mayor a la remuneración total","") -> 
C79: Aportes a obra sociales | D79: 67411.83 | F79: =validaciones(D79,H79,0)&IF(D79>$D$74," El importe no puede ser mayor a la remuneración total","") -> 
C80: Aportes a obra sociales por otros empleos | D80: 0 | F80: =validaciones(D80,H80,0)&IF(D80>$D$74," El importe no puede ser mayor a la remuneración total","") -> 
C81: Cuota sindical | D81: 46185.67 | F81: =validaciones(D81,H81,0)&IF(D81>$D$74," El importe no puede ser mayor a la remuneración total","") -> 
C82: Cuota sindical por otros empleos | D82: 0 | F82: =validaciones(D82,H82,0)&IF(D82>$D$74," El importe no puede ser mayor a la remuneración total","") -> 
C83: Cuotas médico asistenciales | D83: 0 | F83: =validaciones(D83,H83,0) ->  | H83: =(D72-SUM(D77:D82,D84:D89,D91,D93:D94,D95:D103))*0.05 -> 108304.041
C84: Primas de seguro para el caso de muerte | D84: 16400 | F84: =validaciones(D84,H84,0)&IF(AND(Datos!$C$11="Informativa",D84<>0),"En la DDJJ informativa, este campo debe consignarse en cero (0)","") ->  | H84: =+Tablas!B2 -> 24000
C85: Primas por riesgo de muerte y de ahorro de seguros mixtos, excepto para los casos de seguros de retiro privados administrados por entidades sujetas al control de la Superintendencia de Seguros de la Nación | D85: 0 | F85: =validaciones(D85,H85,0)&IF(AND(Datos!$C$11="Informativa",D85<>0),"En la DDJJ informativa, este campo debe consignarse en cero (0)","") ->  | H85: =+H84 -> 24000
C86: Aportes a planes de seguro de retiro privados administrados por entidades sujetas al control de la Superintendencia de Seguros de la Nación | D86: 0 | F86: =validaciones(D86,H86,0)&IF(AND(Datos!$C$11="Informativa",D86<>0),"En la DDJJ informativa, este campo debe consignarse en cero (0)","") ->  | H86: =+H85 -> 24000
C87: Cuotapartes de fondos comunes de inversión constituidos con fines de retiro | D87: 0 | F87: =validaciones(D87,H87,0)&IF(D87<>0,"Deberá consignarse en cero (0), hasta que la Autoridad de Aplicación – CNV – autorice a las Entidades a funcionar e implemente el régimen.","") ->  | H87: 0
C88: Gastos de sepelio | D88: 0 | F88: =validaciones(D88,H88,0) ->  | H88: =+Tablas!B6 -> 996.23
C89: Gastos amortización e intereses rodado para corredores y viajantes de comercio | D89: 0 | F89: =validaciones(D89,H89,0)&IF(D89>$D$74," El importe no puede ser mayor a la remuneración total","") -> 
C90: Donaciones a fiscos nacional, provinciales y municipales, y a instituciones comprendidas en el artículo 26, incisos e) y f) de la ley | D90: 0 | F90: =validaciones(D90,H90,0) ->  | H90: =(D72-SUM(D77:D82,D84:D89,D91,D93:D94,D95:D103))*0.05 -> 108304.041
C91: Descuentos obligatorios establecidos por ley nacional, provincial o municipal | D91: 0 | F91: =validaciones(D91,H91,0)&IF(D91>$D$74," El importe no puede ser mayor a la remuneración total","") -> 
C92: Honorarios por servicios de asistencia sanitaria, médica y paramédica | D92: 0 | F92: =validaciones(D92,H92,0)&IF(AND(Datos!$C$11="Informativa",D92<>0),"En la DDJJ informativa, este campo debe consignarse en cero (0)","") ->  | H92: =(D72-SUM(D77:D82,D84:D89,D91,D93:D94,D95:D103))*0.05 -> 108304.041
C93: Intereses de créditos hipotecarios | D93: 0 | F93: =validaciones(D93,H93,0) ->  | H93: =+Tablas!B3 -> 20000
C94: Aportes al capital social o al fondo de riesgo de socios protectores de sociedades de garantía recíproca | D94: 0 | F94: =validaciones(D94,H94,0) -> 
C95: Alquileres de inmuebles destinados a casa habitación | D95: 0 | F95: =validaciones(D95,H95,0) ->  | H95: =IF(Datos!C11="Final",ROUND(Tablas!B4/12*12,2),ROUND(Tablas!B4/12*MONTH(Datos!C13),2)) -> 167678.4
C96: Empleados del servicio doméstico | D96: 0 | F96: =validaciones(D96,H96,0) ->  | H96: =Tablas!B4 -> 167678.4
C97: Gastos de movilidad, viáticos y otras compensaciones análogas abonados por el empleador | D97: 0 | F97: =validaciones(D97,H97,0) ->  | H97: =IF(D13="Desarrolla la actividad",Tablas!B4,Tablas!B4*0.4) -> 67071.36
C98: Gastos por adquisición de indumentaria y/o equipamiento de trabajo | D98: 0 | F98: =validaciones(D98,H98,0) -> 
C99: Otras deducciones - aportes a Cajas Complementarias de Previsión, Fondos Compensadores de Previsión o similares | D99: 0 | F99: =validaciones(D99,H99,0) -> 
C100: Otras deducciones - Aportes para jubilaciones, retiros y subsidios ANSES | D100: 0 | F100: =validaciones(D100,H100,0) -> 
C101: Otras deducciones - Cajas Provinciales o Municipales o de Previsión para Profesionales | D101: 0 | F101: =validaciones(D101,H101,0) -> 
C102: Otras deducciones - Actores - Retribución pagada a los representantes - RG 2442/08 | D102: 0 | F102: =validaciones(D102,H102,0) -> 
C103: Otras deducciones - Fondos compensadores de previsión | D103: 0 | F103: =validaciones(D103,H103,0) -> 
C104: Otras deducciones | D104: =+SUM(D99:E103) -> 0
C105: TOTAL DEDUCCIONES GENERALES | D105: =SUM(D77:E103) -> 444586.03 | K105: =+D72-D105 -> 2166080.82
C107: DEDUCCIONES PERSONALES | H107: Topes máximos legales
C108: Ganancia no imponible | D108: 167678.4 | F108: =validaciones(D108,H108,0) ->  | H108: =deducciones(1,Datos!C11,MONTH(Datos!$C$13),$D$12) -> 167678.4 | K108: =IF(K105-K109<=0,0,IF(K105-K109<=H108,K105-K109,H108)) -> 167678.4
C109: Deducción especial | D109: 804856.34 | F109: =validaciones(D109,H109,0) ->  | H109: =deducciones(2,Datos!$C$11,MONTH(Datos!$C$13),$D$12) -> 804856.34 | K109: =IF(K105<=H109,K105,H109) -> 804856.34
C110: Deducción Especial Incrementada Primera parte del penúltimo párrafo del inciso c) del artículo 30 de la ley del gravamen | D110: 0
C111: Deducción Especial Incrementada Segunda parte del penúltimo párrafo del inciso c) del artículo 30 de la ley del gravamen | D111: 0
C112: Deducción específica | D112: 0 | F112: =validaciones(D112,H112,0) ->  | H112: 0
C113: Cargas de familia
C114: Cónyuge | D114: 0 | F114: =validaciones(D114,H114,0) ->  | H114: =cargas_de_familia(4,Datos!$C$11,MONTH(Datos!$C$13),$D$12) -> 156320.63 | K114: =IF(K105-K108-K109>=D114,D114,K105-K108-K109) -> 0
C115: Cantidad de hijos e hijastros | D115: 0 | F115: =validaciones(D115,H115,0) ->  | H115: 99
C116: Deducción total hijos e hijastros | D116: 0 | H116: =cargas_de_familia(3,Datos!$C$11,MONTH(Datos!$C$13),$D$12)*D115 -> 0 | K116: =IF(K105-K108-K109-K114>=D116,D116,K105-K108-K109-K114) -> 0
C117: Cantidad de hijos e hijastros incapacitados para el trabajo | D117: 0 | F117: =validaciones(D117,H117,0) ->  | H117: 99
C118: Hijos / Hijastros incapacitados para el trabajo | D118: 0 | H118: =cargas_de_familia(5,Datos!$C$11,MONTH(Datos!$C$13),$D$12) -> 157666.16
C119: Total de cargas de familia | D119: =+D114+D116+D118 -> 0 | H119: 0
C120: TOTAL DEDUCCIONES PERSONALES | D120: =SUM(D108:D112,D119) -> 972534.74
C122: DETERMINACIÓN DEL IMPUESTO
C123: REMUNERACIÓN NETA SUJETA A IMPUESTO -antes de la deducción art. 46 L. 27541- | D123: 0
C124: Deducción inciso a) primer párrafo artículo 30 de la ley (cfr. art. 46 L. 27541) | D124: 0 | H124: 0 | K124: =IF(D123-K125<=0,0,IF(D123-K125<=H124,D123-K125,H124)) -> 0
C125: Deducción inciso c) primer párrafo artículo 30 de la ley (cfr. art. 46 L. 27541) | D125: 0 | H125: 0 | K125: =IF(D123<=H125,D123,H125) -> 0
C126: REMUNERACIÓN SUJETA A IMPUESTO | D126: =IF(+D72-D105-D120<0,0,+D72-D105-D120) -> 1193546.08
C127: Alícuota aplicable artículo 94 ley de impuesto a las ganancias | D127: =IF(OR(Datos!C11="Final",Datos!C11="Anual"),impuestoAlicuota(D126,D25*(1-G25)+D51*(1-G51),12),impuestoAlicuota(D126,D25*(1-G25)+D51*(1-G51),MONTH(D11))) -> 0.35
C128: Alícuota aplicable sin incluir horas extras | D128: =IF(OR(Datos!C11="Final",Datos!C11="Anual"),impuestoAlicuota(D126,0,12),impuestoAlicuota(D126,0,MONTH(D11))) -> 0.35
C129: IMPUESTO DETERMINADO | D129: =IF(D126<0,0,IF(OR(Datos!C11="Final",Datos!C11="Anual"),impuestoDeterminado(D126,D25*(1-G25)+D51*(1-G51),12),impuestoDeterminado(D126,D25*(1-G25)+D51*(1-G51),MONTH(D11)))) -> 286739.863
C130: Impuesto retenido | D130: 286739.86
C131: Pagos a cuenta - Impuesto sobre créditos y débitos | D131: 0 | F131: =IF(AND(Datos!$C$11="Informativa",D131<>0),"En la DDJJ informativa, este campo debe consignarse en cero (0)","") -> 
C132: Pagos a cuenta - Percepciones / Retenciones aduaneras | D132: 0 | F132: =IF(AND(Datos!$C$11="Informativa",D132<>0),"En la DDJJ informativa, este campo debe consignarse en cero (0)","") -> 
C133: Pagos a cuenta - RG (AFIP) 3819/2015 - Cancelaciones en efectivo | D133: 0 | F133: =IF(AND(Datos!$C$11="Informativa",D133<>0),"En la DDJJ informativa, este campo debe consignarse en cero (0)","") -> 
C134: Pagos a cuenta - Bono ley 27.424 | D134: 0 | F134: =IF(AND(Datos!$C$11="Informativa",D134<>0),"En la DDJJ informativa, este campo debe consignarse en cero (0)","") -> 
C135: Pagos a cuenta - RG 4815 [LEY 27.541 Art. 35 inciso a)] | D135: 0 | F135: =IF(AND(Datos!$C$11="Informativa",D135<>0),"En la DDJJ informativa, este campo debe consignarse en cero (0)","") -> 
C136: Pagos a cuenta - RG 4815 [LEY 27.541 Art. 35 inciso b)] | D136: 0 | F136: =IF(AND(Datos!$C$11="Informativa",D136<>0),"En la DDJJ informativa, este campo debe consignarse en cero (0)","") -> 
C137: Pagos a cuenta - RG 4815 [LEY 27.541 Art. 35 inciso c)] | D137: 0 | F137: =IF(AND(Datos!$C$11="Informativa",D137<>0),"En la DDJJ informativa, este campo debe consignarse en cero (0)","") -> 
C138: Pagos a cuenta - RG 4815 [LEY 27.541 Art. 35 inciso d)] | D138: 0 | F138: =IF(AND(Datos!$C$11="Informativa",D138<>0),"En la DDJJ informativa, este campo debe consignarse en cero (0)","") -> 
C139: Pagos a cuenta - RG 4815 [LEY 27.541 Art. 35 inciso e)] | D139: 0 | F139: =IF(AND(Datos!$C$11="Informativa",D139<>0),"En la DDJJ informativa, este campo debe consignarse en cero (0)","") -> 
C140: Pagos a cuenta - Impuesto sobre créditos y débitos - sobre movimientos de fondos propios o de terceros | D140: 0 | F140: =IF(AND(Datos!$C$11="Informativa",D140<>0),"En la DDJJ informativa, este campo debe consignarse en cero (0)","") -> 
C141: Pagos a cuenta - Resolución General (AFIP) 3819/2015 - Cancelaciones en Efectivo -Servicios de transporte terrestre, aéreo y por vía acuática de pasajeros con destino fuera del país | D141: 0 | F141: =IF(AND(Datos!$C$11="Informativa",D141<>0),"En la DDJJ informativa, este campo debe consignarse en cero (0)","") -> 
C142: Total pagos a cuenta | D142: =SUM(D131:D141) -> 0
C143: SALDO A PAGAR | D143: =+ROUND(D129,2)-D130-D142 -> 0

Sheet Empleado06
C3: LIQUIDACIÓN DE IMPUESTO A LAS GANANCIAS - 4ta. CATEGORÍA RELACIÓN DE DEPENDENCIA
C6: Empleado: Nombre y apellido | D6: DE LUCA LEONARDO OSCAR
C7: CUIL del empleado | D7: 23283995739 | F7: =cuitValidar(D7) -> CUIT/CUIL Válido
C8: ="Agente de Retención: " -> Agente de Retención: | D8: =Datos!C7&" - "&Datos!C5 -> 33711238269 - OPERACIONES AGROPORTUARIAS S.A.
C9: ="Período Fiscal: " -> Período Fiscal: | D9: =YEAR(Datos!C13) -> 2021
C10: Período trabajado (desde): | D10: 2021-01-01
C11: Período trabajado (hasta): | D11: 2021-09-25 | H11: =IF(MONTH(D11)>MONTH(Datos!C13),"El período trabajado no puede ser mayor al período que se informa (mes "&MONTH(Datos!C13)&")","") -> 
C12: Zona geográfica: | D12: Todo el país (excepto zona patagónica)
C13: Transporte a larga distancia | D13: No desarrolla la actividad
C14: Beneficio promocional 27424? | D14: No
C15: Beneficio de la ley 27549? | D15: No
C16: El trabajador labora bajo el régimen de teletrabajo (Ley 27555)? | D16: No
C17: El trabajador es personal militar en actividad? | D17: No
C19: REMUNERACIONES
C20: Abonadas por el agente de retención:
C21: Remuneración bruta gravada | D21: 3167193.04
C22: Retribuciones no habituales gravadas | D22: 0
C23: SAC primera cuota gravado | D23: 0
C24: SAC segunda cuota gravado | D24: 0
C25: Horas extras remuneración gravada | D25: 0 | G25: 0 | H25: % de retenciones
C26: Movilidad y viáticos remuneración gravada | D26: 0
C27: Material didáctico personal docente remuneración gravada | D27: 0
C28: Remuneración no alcanzada o exenta (sin horas extras) | D28: 0
C29: Remuneración exenta ley 27549 | D29: 0 | F29: =IF(AND($D$15="No",D29<>0),"Para que sea procedente el beneficio, modifique el valor en la celda D15","") -> 
C30: Retribuciones no habituales exentas o no alcanzadas | D30: 0
C31: Horas extras remuneración exenta | D31: 229696.85
C32: Movilidad y viáticos remuneración exenta | D32: 0
C33: Material didáctico personal docente remuneración exenta | D33: 0
C34: Bonos de productividad gravados | D34: 0
C35: Fallos de caja gravados | D35: 0
C36: Conceptos de similar naturaleza gravados | D36: 0
C37: Bonos de productividad exentos | D37: 0
C38: Fallos de caja exentos | D38: 0
C39: Conceptos de similar naturaleza exentos | D39: 0
C40: Compensación de gastos de teletrabajo exentos | D40: 0
C41: Personal militar - suplementos art. 57 ley 19.101 - exentos | D41: 0
C42: SAC primera cuota - No alcanzado o exento | D42: 0
C43: SAC segunda cuota - No alcanzado o exento | D43: 0
C44: Ajustes períodos anteriores - Remuneración gravada | D44: 0
C45: Ajustes períodos anteriores - Remuneración exenta / no alcanzada | D45: 0
C46: Otros empleos:
C47: Remuneración bruta gravada | D47: 0
C48: Retribuciones no habituales gravadas | D48: 0
C49: SAC primera cuota gravado | D49: 0
C50: SAC segunda cuota gravado | D50: 0
C51: Horas extras remuneración gravada | D51: 0 | G51: 0 | H51: % de retenciones
C52: Movilidad y viáticos remuneración gravada | D52: 0
C53: Material didáctico personal docente remuneración gravada | D53: 0
C54: Remuneración no alcanzada o exenta | D54: 0
C55: Remuneración exenta ley 27549 | D55: 0 | F55: =IF(AND($D$15="No",D55<>0),"Para que sea procedente el beneficio, modifique el valor en la celda D15","") -> 
C56: Retribuciones no habituales exentas o no alcanzadas | D56: 0
C57: Horas extras remuneración exenta o no alcanzada | D57: 0
C58: Movilidad y viáticos remuneración exenta o no alcanzada | D58: 0
C59: Material didáctico personal docente remuneración exenta o no alcanzada | D59: 0
C60: Bonos de productividad gravados | D60: 0
C61: Fallos de caja gravados | D61: 0
C62: Conceptos de similar naturaleza gravados | D62: 0
C63: Bonos de productividad exentos | D63: 0
C64: Fallos de caja exentos | D64: 0
C65: Conceptos de similar naturaleza exentos | D65: 0
C66: Compensación de gastos teletrabajo - exentos | D66: 0
C67: Personal militar - suplementos art. 57 Ley 19101 - exentos | D67: 0
C68: SAC primera cuota - No alcanzado o exento | D68: 0
C69: SAC segunda cuota - No alcanzado o exento | D69: 0
C70: Ajustes períodos anteriores - Remuneración gravada | D70: 0
C71: Ajustes períodos anteriores - Remuneración no alcanzada o exenta | D71: 0
C72: TOTAL REMUNERACIÓN GRAVADA | D72: =SUM(D21:E27,D44,D47:D53,D70) -> 3167193.04
C73: TOTAL REMUNERACIÓN NO ALCANZADA O EXENTA | D73: =SUM(D28:D43,D45,D54:D69,D71) -> 229696.85
C74: TOTAL REMUNERACIONES | D74: =IF(+D72+D73<0,0,D72+D73) -> 3396889.89
C76: DEDUCCIONES GENERALES | H76: Topes máximos legales
C77: Aportes a fondos de jubilaciones, retiros, pensiones o subsidios que se destinen a cajas nacionales, provinciales o municipales | D77: 393779.49 | F77: =validaciones(D77,H77,0)&IF(D77>$D$74," El importe no puede ser mayor a la remuneración total","") -> 
C78: Aportes a fondos de jubilaciones, retiros, pensiones o subsidios que se destinen a cajas nacionales, provinciales o municipales por otros empleos | D78: 0 | F78: =validaciones(D78,H78,0)&IF(D78>$D$74," El importe no puede ser mayor a la remuneración total","") -> 
C79: Aportes a obra sociales | D79: 84381.32 | F79: =validaciones(D79,H79,0)&IF(D79>$D$74," El importe no puede ser mayor a la remuneración total","") -> 
C80: Aportes a obra sociales por otros empleos | D80: 0 | F80: =validaciones(D80,H80,0)&IF(D80>$D$74," El importe no puede ser mayor a la remuneración total","") -> 
C81: Cuota sindical | D81: 87788.17 | F81: =validaciones(D81,H81,0)&IF(D81>$D$74," El importe no puede ser mayor a la remuneración total","") -> 
C82: Cuota sindical por otros empleos | D82: 0 | F82: =validaciones(D82,H82,0)&IF(D82>$D$74," El importe no puede ser mayor a la remuneración total","") -> 
C83: Cuotas médico asistenciales | D83: 51744.09 | F83: =validaciones(D83,H83,0) ->  | H83: =(D72-SUM(D77:D82,D84:D89,D91,D93:D94,D95:D103))*0.05 -> 128979.703
C84: Primas de seguro para el caso de muerte | D84: 21650 | F84: =validaciones(D84,H84,0)&IF(AND(Datos!$C$11="Informativa",D84<>0),"En la DDJJ informativa, este campo debe consignarse en cero (0)","") ->  | H84: =+Tablas!B2 -> 24000
C85: Primas por riesgo de muerte y de ahorro de seguros mixtos, excepto para los casos de seguros de retiro privados administrados por entidades sujetas al control de la Superintendencia de Seguros de la Nación | D85: 0 | F85: =validaciones(D85,H85,0)&IF(AND(Datos!$C$11="Informativa",D85<>0),"En la DDJJ informativa, este campo debe consignarse en cero (0)","") ->  | H85: =+H84 -> 24000
C86: Aportes a planes de seguro de retiro privados administrados por entidades sujetas al control de la Superintendencia de Seguros de la Nación | D86: 0 | F86: =validaciones(D86,H86,0)&IF(AND(Datos!$C$11="Informativa",D86<>0),"En la DDJJ informativa, este campo debe consignarse en cero (0)","") ->  | H86: =+H85 -> 24000
C87: Cuotapartes de fondos comunes de inversión constituidos con fines de retiro | D87: 0 | F87: =validaciones(D87,H87,0)&IF(D87<>0,"Deberá consignarse en cero (0), hasta que la Autoridad de Aplicación – CNV – autorice a las Entidades a funcionar e implemente el régimen.","") ->  | H87: 0
C88: Gastos de sepelio | D88: 0 | F88: =validaciones(D88,H88,0) ->  | H88: =+Tablas!B6 -> 996.23
C89: Gastos amortización e intereses rodado para corredores y viajantes de comercio | D89: 0 | F89: =validaciones(D89,H89,0)&IF(D89>$D$74," El importe no puede ser mayor a la remuneración total","") -> 
C90: Donaciones a fiscos nacional, provinciales y municipales, y a instituciones comprendidas en el artículo 26, incisos e) y f) de la ley | D90: 0 | F90: =validaciones(D90,H90,0) ->  | H90: =(D72-SUM(D77:D82,D84:D89,D91,D93:D94,D95:D103))*0.05 -> 128979.703
C91: Descuentos obligatorios establecidos por ley nacional, provincial o municipal | D91: 0 | F91: =validaciones(D91,H91,0)&IF(D91>$D$74," El importe no puede ser mayor a la remuneración total","") -> 
C92: Honorarios por servicios de asistencia sanitaria, médica y paramédica | D92: 0 | F92: =validaciones(D92,H92,0)&IF(AND(Datos!$C$11="Informativa",D92<>0),"En la DDJJ informativa, este campo debe consignarse en cero (0)","") ->  | H92: =(D72-SUM(D77:D82,D84:D89,D91,D93:D94,D95:D103))*0.05 -> 128979.703
C93: Intereses de créditos hipotecarios | D93: 0 | F93: =validaciones(D93,H93,0) ->  | H93: =+Tablas!B3 -> 20000
C94: Aportes al capital social o al fondo de riesgo de socios protectores de sociedades de garantía recíproca | D94: 0 | F94: =validaciones(D94,H94,0) -> 
C95: Alquileres de inmuebles destinados a casa habitación | D95: 0 | F95: =validaciones(D95,H95,0) ->  | H95: =IF(Datos!C11="Final",ROUND(Tablas!B4/12*12,2),ROUND(Tablas!B4/12*MONTH(Datos!C13),2)) -> 167678.4
C96: Empleados del servicio doméstico | D96: 0 | F96: =validaciones(D96,H96,0) ->  | H96: =Tablas!B4 -> 167678.4
C97: Gastos de movilidad, viáticos y otras compensaciones análogas abonados por el empleador | D97: 0 | F97: =validaciones(D97,H97,0) ->  | H97: =IF(D13="Desarrolla la actividad",Tablas!B4,Tablas!B4*0.4) -> 67071.36
C98: Gastos por adquisición de indumentaria y/o equipamiento de trabajo | D98: 0 | F98: =validaciones(D98,H98,0) -> 
C99: Otras deducciones - aportes a Cajas Complementarias de Previsión, Fondos Compensadores de Previsión o similares | D99: 0 | F99: =validaciones(D99,H99,0) -> 
C100: Otras deducciones - Aportes para jubilaciones, retiros y subsidios ANSES | D100: 0 | F100: =validaciones(D100,H100,0) -> 
C101: Otras deducciones - Cajas Provinciales o Municipales o de Previsión para Profesionales | D101: 0 | F101: =validaciones(D101,H101,0) -> 
C102: Otras deducciones - Actores - Retribución pagada a los representantes - RG 2442/08 | D102: 0 | F102: =validaciones(D102,H102,0) -> 
C103: Otras deducciones - Fondos compensadores de previsión | D103: 0 | F103: =validaciones(D103,H103,0) -> 
C104: Otras deducciones | D104: =+SUM(D99:E103) -> 0
C105: TOTAL DEDUCCIONES GENERALES | D105: =SUM(D77:E103) -> 639343.07 | K105: =+D72-D105 -> 2527849.97
C107: DEDUCCIONES PERSONALES | H107: Topes máximos legales
C108: Ganancia no imponible | D108: 167678.4 | F108: =validaciones(D108,H108,0) ->  | H108: =deducciones(1,Datos!C11,MONTH(Datos!$C$13),$D$12) -> 167678.4 | K108: =IF(K105-K109<=0,0,IF(K105-K109<=H108,K105-K109,H108)) -> 167678.4
C109: Deducción especial | D109: 804856.34 | F109: =validaciones(D109,H109,0) ->  | H109: =deducciones(2,Datos!$C$11,MONTH(Datos!$C$13),$D$12) -> 804856.34 | K109: =IF(K105<=H109,K105,H109) -> 804856.34
C110: Deducción Especial Incrementada Primera parte del penúltimo párrafo del inciso c) del artículo 30 de la ley del gravamen | D110: 0
C111: Deducción Especial Incrementada Segunda parte del penúltimo párrafo del inciso c) del artículo 30 de la ley del gravamen | D111: 0
C112: Deducción específica | D112: 0 | F112: =validaciones(D112,H112,0) ->  | H112: 0
C113: Cargas de familia
C114: Cónyuge | D114: 156320.63 | F114: =validaciones(D114,H114,0) ->  | H114: =cargas_de_familia(4,Datos!$C$11,MONTH(Datos!$C$13),$D$12) -> 156320.63 | K114: =IF(K105-K108-K109>=D114,D114,K105-K108-K109) -> 156320.63
C115: Cantidad de hijos e hijastros | D115: 1 | F115: =validaciones(D115,H115,0) ->  | H115: 99
C116: Deducción total hijos e hijastros | D116: 78833.08 | H116: =cargas_de_familia(3,Datos!$C$11,MONTH(Datos!$C$13),$D$12)*D115 -> 78833.08 | K116: =IF(K105-K108-K109-K114>=D116,D116,K105-K108-K109-K114) -> 78833.08
C117: Cantidad de hijos e hijastros incapacitados para el trabajo | D117: 0 | F117: =validaciones(D117,H117,0) ->  | H117: 99
C118: Hijos / Hijastros incapacitados para el trabajo | D118: 0 | H118: =cargas_de_familia(5,Datos!$C$11,MONTH(Datos!$C$13),$D$12) -> 157666.16
C119: Total de cargas de familia | D119: =+D114+D116+D118 -> 235153.71 | H119: 0
C120: TOTAL DEDUCCIONES PERSONALES | D120: =SUM(D108:D112,D119) -> 1207688.45
C122: DETERMINACIÓN DEL IMPUESTO
C123: REMUNERACIÓN NETA SUJETA A IMPUESTO -antes de la deducción art. 46 L. 27541- | D123: 0
C124: Deducción inciso a) primer párrafo artículo 30 de la ley (cfr. art. 46 L. 27541) | D124: 0 | H124: 0 | K124: =IF(D123-K125<=0,0,IF(D123-K125<=H124,D123-K125,H124)) -> 0
C125: Deducción inciso c) primer párrafo artículo 30 de la ley (cfr. art. 46 L. 27541) | D125: 0 | H125: 0 | K125: =IF(D123<=H125,D123,H125) -> 0
C126: REMUNERACIÓN SUJETA A IMPUESTO | D126: =IF(+D72-D105-D120<0,0,+D72-D105-D120) -> 1320161.52
C127: Alícuota aplicable artículo 94 ley de impuesto a las ganancias | D127: =IF(OR(Datos!C11="Final",Datos!C11="Anual"),impuestoAlicuota(D126,D25*(1-G25)+D51*(1-G51),12),impuestoAlicuota(D126,D25*(1-G25)+D51*(1-G51),MONTH(D11))) -> 0.35
C128: Alícuota aplicable sin incluir horas extras | D128: =IF(OR(Datos!C11="Final",Datos!C11="Anual"),impuestoAlicuota(D126,0,12),impuestoAlicuota(D126,0,MONTH(D11))) -> 0.35
C129: IMPUESTO DETERMINADO | D129: =IF(D126<0,0,IF(OR(Datos!C11="Final",Datos!C11="Anual"),impuestoDeterminado(D126,D25*(1-G25)+D51*(1-G51),12),impuestoDeterminado(D126,D25*(1-G25)+D51*(1-G51),MONTH(D11)))) -> 331055.267
C130: Impuesto retenido | D130: 286707.81
C131: Pagos a cuenta - Impuesto sobre créditos y débitos | D131: 0 | F131: =IF(AND(Datos!$C$11="Informativa",D131<>0),"En la DDJJ informativa, este campo debe consignarse en cero (0)","") -> 
C132: Pagos a cuenta - Percepciones / Retenciones aduaneras | D132: 0 | F132: =IF(AND(Datos!$C$11="Informativa",D132<>0),"En la DDJJ informativa, este campo debe consignarse en cero (0)","") -> 
C133: Pagos a cuenta - RG (AFIP) 3819/2015 - Cancelaciones en efectivo | D133: 0 | F133: =IF(AND(Datos!$C$11="Informativa",D133<>0),"En la DDJJ informativa, este campo debe consignarse en cero (0)","") -> 
C134: Pagos a cuenta - Bono ley 27.424 | D134: 0 | F134: =IF(AND(Datos!$C$11="Informativa",D134<>0),"En la DDJJ informativa, este campo debe consignarse en cero (0)","") -> 
C135: Pagos a cuenta - RG 4815 [LEY 27.541 Art. 35 inciso a)] | D135: 42168 | F135: =IF(AND(Datos!$C$11="Informativa",D135<>0),"En la DDJJ informativa, este campo debe consignarse en cero (0)","") -> 
C136: Pagos a cuenta - RG 4815 [LEY 27.541 Art. 35 inciso b)] | D136: 2179.46 | F136: =IF(AND(Datos!$C$11="Informativa",D136<>0),"En la DDJJ informativa, este campo debe consignarse en cero (0)","") -> 
C137: Pagos a cuenta - RG 4815 [LEY 27.541 Art. 35 inciso c)] | D137: 0 | F137: =IF(AND(Datos!$C$11="Informativa",D137<>0),"En la DDJJ informativa, este campo debe consignarse en cero (0)","") -> 
C138: Pagos a cuenta - RG 4815 [LEY 27.541 Art. 35 inciso d)] | D138: 0 | F138: =IF(AND(Datos!$C$11="Informativa",D138<>0),"En la DDJJ informativa, este campo debe consignarse en cero (0)","") -> 
C139: Pagos a cuenta - RG 4815 [LEY 27.541 Art. 35 inciso e)] | D139: 0 | F139: =IF(AND(Datos!$C$11="Informativa",D139<>0),"En la DDJJ informativa, este campo debe consignarse en cero (0)","") -> 
C140: Pagos a cuenta - Impuesto sobre créditos y débitos - sobre movimientos de fondos propios o de terceros | D140: 0 | F140: =IF(AND(Datos!$C$11="Informativa",D140<>0),"En la DDJJ informativa, este campo debe consignarse en cero (0)","") -> 
C141: Pagos a cuenta - Resolución General (AFIP) 3819/2015 - Cancelaciones en Efectivo -Servicios de transporte terrestre, aéreo y por vía acuática de pasajeros con destino fuera del país | D141: 0 | F141: =IF(AND(Datos!$C$11="Informativa",D141<>0),"En la DDJJ informativa, este campo debe consignarse en cero (0)","") -> 
C142: Total pagos a cuenta | D142: =SUM(D131:D141) -> 44347.46
C143: SALDO A PAGAR | D143: =+ROUND(D129,2)-D130-D142 -> 0

Sheet Empleado07
C3: LIQUIDACIÓN DE IMPUESTO A LAS GANANCIAS - 4ta. CATEGORÍA RELACIÓN DE DEPENDENCIA
C6: Empleado: Nombre y apellido | D6: CHIESA MARCOS
C7: CUIL del empleado | D7: 20303605895 | F7: =cuitValidar(D7) -> CUIT/CUIL Válido
C8: ="Agente de Retención: " -> Agente de Retención: | D8: =Datos!C7&" - "&Datos!C5 -> 33711238269 - OPERACIONES AGROPORTUARIAS S.A.
C9: ="Período Fiscal: " -> Período Fiscal: | D9: =YEAR(Datos!C13) -> 2021
C10: Período trabajado (desde): | D10: 2021-01-01
C11: Período trabajado (hasta): | D11: 2021-09-25 | H11: =IF(MONTH(D11)>MONTH(Datos!C13),"El período trabajado no puede ser mayor al período que se informa (mes "&MONTH(Datos!C13)&")","") -> 
C12: Zona geográfica: | D12: Todo el país (excepto zona patagónica)
C13: Transporte a larga distancia | D13: No desarrolla la actividad
C14: Beneficio promocional 27424? | D14: No
C15: Beneficio de la ley 27549? | D15: No
C16: El trabajador labora bajo el régimen de teletrabajo (Ley 27555)? | D16: No
C17: El trabajador es personal militar en actividad? | D17: No
C19: REMUNERACIONES
C20: Abonadas por el agente de retención:
C21: Remuneración bruta gravada | D21: 3367579.1
C22: Retribuciones no habituales gravadas | D22: 0
C23: SAC primera cuota gravado | D23: 0
C24: SAC segunda cuota gravado | D24: 0
C25: Horas extras remuneración gravada | D25: 0 | G25: 0 | H25: % de retenciones
C26: Movilidad y viáticos remuneración gravada | D26: 0
C27: Material didáctico personal docente remuneración gravada | D27: 0
C28: Remuneración no alcanzada o exenta (sin horas extras) | D28: 0
C29: Remuneración exenta ley 27549 | D29: 0 | F29: =IF(AND($D$15="No",D29<>0),"Para que sea procedente el beneficio, modifique el valor en la celda D15","") -> 
C30: Retribuciones no habituales exentas o no alcanzadas | D30: 0
C31: Horas extras remuneración exenta | D31: 130696.28
C32: Movilidad y viáticos remuneración exenta | D32: 0
C33: Material didáctico personal docente remuneración exenta | D33: 0
C34: Bonos de productividad gravados | D34: 0
C35: Fallos de caja gravados | D35: 0
C36: Conceptos de similar naturaleza gravados | D36: 0
C37: Bonos de productividad exentos | D37: 0
C38: Fallos de caja exentos | D38: 0
C39: Conceptos de similar naturaleza exentos | D39: 0
C40: Compensación de gastos de teletrabajo exentos | D40: 0
C41: Personal militar - suplementos art. 57 ley 19.101 - exentos | D41: 0
C42: SAC primera cuota - No alcanzado o exento | D42: 0
C43: SAC segunda cuota - No alcanzado o exento | D43: 0
C44: Ajustes períodos anteriores - Remuneración gravada | D44: 0
C45: Ajustes períodos anteriores - Remuneración exenta / no alcanzada | D45: 0
C46: Otros empleos:
C47: Remuneración bruta gravada | D47: 0
C48: Retribuciones no habituales gravadas | D48: 0
C49: SAC primera cuota gravado | D49: 0
C50: SAC segunda cuota gravado | D50: 0
C51: Horas extras remuneración gravada | D51: 0 | G51: 0 | H51: % de retenciones
C52: Movilidad y viáticos remuneración gravada | D52: 0
C53: Material didáctico personal docente remuneración gravada | D53: 0
C54: Remuneración no alcanzada o exenta | D54: 0
C55: Remuneración exenta ley 27549 | D55: 0 | F55: =IF(AND($D$15="No",D55<>0),"Para que sea procedente el beneficio, modifique el valor en la celda D15","") -> 
C56: Retribuciones no habituales exentas o no alcanzadas | D56: 0
C57: Horas extras remuneración exenta o no alcanzada | D57: 0
C58: Movilidad y viáticos remuneración exenta o no alcanzada | D58: 0
C59: Material didáctico personal docente remuneración exenta o no alcanzada | D59: 0
C60: Bonos de productividad gravados | D60: 0
C61: Fallos de caja gravados | D61: 0
C62: Conceptos de similar naturaleza gravados | D62: 0
C63: Bonos de productividad exentos | D63: 0
C64: Fallos de caja exentos | D64: 0
C65: Conceptos de similar naturaleza exentos | D65: 0
C66: Compensación de gastos teletrabajo - exentos | D66: 0
C67: Personal militar - suplementos art. 57 Ley 19101 - exentos | D67: 0
C68: SAC primera cuota - No alcanzado o exento | D68: 0
C69: SAC segunda cuota - No alcanzado o exento | D69: 0
C70: Ajustes períodos anteriores - Remuneración gravada | D70: 0
C71: Ajustes períodos anteriores - Remuneración no alcanzada o exenta | D71: 0
C72: TOTAL REMUNERACIÓN GRAVADA | D72: =SUM(D21:E27,D44,D47:D53,D70) -> 3367579.1
C73: TOTAL REMUNERACIÓN NO ALCANZADA O EXENTA | D73: =SUM(D28:D43,D45,D54:D69,D71) -> 130696.28
C74: TOTAL REMUNERACIONES | D74: =IF(+D72+D73<0,0,D72+D73) -> 3498275.38
C76: DEDUCCIONES GENERALES | H76: Topes máximos legales
C77: Aportes a fondos de jubilaciones, retiros, pensiones o subsidios que se destinen a cajas nacionales, provinciales o municipales | D77: 423553.52 | F77: =validaciones(D77,H77,0)&IF(D77>$D$74," El importe no puede ser mayor a la remuneración total","") -> 
C78: Aportes a fondos de jubilaciones, retiros, pensiones o subsidios que se destinen a cajas nacionales, provinciales o municipales por otros empleos | D78: 0 | F78: =validaciones(D78,H78,0)&IF(D78>$D$74," El importe no puede ser mayor a la remuneración total","") -> 
C79: Aportes a obra sociales | D79: 90761.47 | F79: =validaciones(D79,H79,0)&IF(D79>$D$74," El importe no puede ser mayor a la remuneración total","") -> 
C80: Aportes a obra sociales por otros empleos | D80: 0 | F80: =validaciones(D80,H80,0)&IF(D80>$D$74," El importe no puede ser mayor a la remuneración total","") -> 
C81: Cuota sindical | D81: 93364.38 | F81: =validaciones(D81,H81,0)&IF(D81>$D$74," El importe no puede ser mayor a la remuneración total","") -> 
C82: Cuota sindical por otros empleos | D82: 0 | F82: =validaciones(D82,H82,0)&IF(D82>$D$74," El importe no puede ser mayor a la remuneración total","") -> 
C83: Cuotas médico asistenciales | D83: 2280 | F83: =validaciones(D83,H83,0) ->  | H83: =(D72-SUM(D77:D82,D84:D89,D91,D93:D94,D95:D103))*0.05 -> 133308.2185
C84: Primas de seguro para el caso de muerte | D84: 0 | F84: =validaciones(D84,H84,0)&IF(AND(Datos!$C$11="Informativa",D84<>0),"En la DDJJ informativa, este campo debe consignarse en cero (0)","") ->  | H84: =+Tablas!B2 -> 24000
C85: Primas por riesgo de muerte y de ahorro de seguros mixtos, excepto para los casos de seguros de retiro privados administrados por entidades sujetas al control de la Superintendencia de Seguros de la Nación | D85: 0 | F85: =validaciones(D85,H85,0)&IF(AND(Datos!$C$11="Informativa",D85<>0),"En la DDJJ informativa, este campo debe consignarse en cero (0)","") ->  | H85: =+H84 -> 24000
C86: Aportes a planes de seguro de retiro privados administrados por entidades sujetas al control de la Superintendencia de Seguros de la Nación | D86: 0 | F86: =validaciones(D86,H86,0)&IF(AND(Datos!$C$11="Informativa",D86<>0),"En la DDJJ informativa, este campo debe consignarse en cero (0)","") ->  | H86: =+H85 -> 24000
C87: Cuotapartes de fondos comunes de inversión constituidos con fines de retiro | D87: 0 | F87: =validaciones(D87,H87,0)&IF(D87<>0,"Deberá consignarse en cero (0), hasta que la Autoridad de Aplicación – CNV – autorice a las Entidades a funcionar e implemente el régimen.","") ->  | H87: 0
C88: Gastos de sepelio | D88: 0 | F88: =validaciones(D88,H88,0) ->  | H88: =+Tablas!B6 -> 996.23
C89: Gastos amortización e intereses rodado para corredores y viajantes de comercio | D89: 0 | F89: =validaciones(D89,H89,0)&IF(D89>$D$74," El importe no puede ser mayor a la remuneración total","") -> 
C90: Donaciones a fiscos nacional, provinciales y municipales, y a instituciones comprendidas en el artículo 26, incisos e) y f) de la ley | D90: 0 | F90: =validaciones(D90,H90,0) ->  | H90: =(D72-SUM(D77:D82,D84:D89,D91,D93:D94,D95:D103))*0.05 -> 133308.2185
C91: Descuentos obligatorios establecidos por ley nacional, provincial o municipal | D91: 0 | F91: =validaciones(D91,H91,0)&IF(D91>$D$74," El importe no puede ser mayor a la remuneración total","") -> 
C92: Honorarios por servicios de asistencia sanitaria, médica y paramédica | D92: 0 | F92: =validaciones(D92,H92,0)&IF(AND(Datos!$C$11="Informativa",D92<>0),"En la DDJJ informativa, este campo debe consignarse en cero (0)","") ->  | H92: =(D72-SUM(D77:D82,D84:D89,D91,D93:D94,D95:D103))*0.05 -> 133308.2185
C93: Intereses de créditos hipotecarios | D93: 0 | F93: =validaciones(D93,H93,0) ->  | H93: =+Tablas!B3 -> 20000
C94: Aportes al capital social o al fondo de riesgo de socios protectores de sociedades de garantía recíproca | D94: 0 | F94: =validaciones(D94,H94,0) -> 
C95: Alquileres de inmuebles destinados a casa habitación | D95: 0 | F95: =validaciones(D95,H95,0) ->  | H95: =IF(Datos!C11="Final",ROUND(Tablas!B4/12*12,2),ROUND(Tablas!B4/12*MONTH(Datos!C13),2)) -> 167678.4
C96: Empleados del servicio doméstico | D96: 0 | F96: =validaciones(D96,H96,0) ->  | H96: =Tablas!B4 -> 167678.4
C97: Gastos de movilidad, viáticos y otras compensaciones análogas abonados por el empleador | D97: 0 | F97: =validaciones(D97,H97,0) ->  | H97: =IF(D13="Desarrolla la actividad",Tablas!B4,Tablas!B4*0.4) -> 67071.36
C98: Gastos por adquisición de indumentaria y/o equipamiento de trabajo | D98: 93735.36 | F98: =validaciones(D98,H98,0) -> 
C99: Otras deducciones - aportes a Cajas Complementarias de Previsión, Fondos Compensadores de Previsión o similares | D99: 0 | F99: =validaciones(D99,H99,0) -> 
C100: Otras deducciones - Aportes para jubilaciones, retiros y subsidios ANSES | D100: 0 | F100: =validaciones(D100,H100,0) -> 
C101: Otras deducciones - Cajas Provinciales o Municipales o de Previsión para Profesionales | D101: 0 | F101: =validaciones(D101,H101,0) -> 
C102: Otras deducciones - Actores - Retribución pagada a los representantes - RG 2442/08 | D102: 0 | F102: =validaciones(D102,H102,0) -> 
C103: Otras deducciones - Fondos compensadores de previsión | D103: 0 | F103: =validaciones(D103,H103,0) -> 
C104: Otras deducciones | D104: =+SUM(D99:E103) -> 0
C105: TOTAL DEDUCCIONES GENERALES | D105: =SUM(D77:E103) -> 703694.73 | K105: =+D72-D105 -> 2663884.37
C107: DEDUCCIONES PERSONALES | H107: Topes máximos legales
C108: Ganancia no imponible | D108: 167678.4 | F108: =validaciones(D108,H108,0) ->  | H108: =deducciones(1,Datos!C11,MONTH(Datos!$C$13),$D$12) -> 167678.4 | K108: =IF(K105-K109<=0,0,IF(K105-K109<=H108,K105-K109,H108)) -> 167678.4
C109: Deducción especial | D109: 804856.34 | F109: =validaciones(D109,H109,0) ->  | H109: =deducciones(2,Datos!$C$11,MONTH(Datos!$C$13),$D$12) -> 804856.34 | K109: =IF(K105<=H109,K105,H109) -> 804856.34
C110: Deducción Especial Incrementada Primera parte del penúltimo párrafo del inciso c) del artículo 30 de la ley del gravamen | D110: 0
C111: Deducción Especial Incrementada Segunda parte del penúltimo párrafo del inciso c) del artículo 30 de la ley del gravamen | D111: 0
C112: Deducción específica | D112: 0 | F112: =validaciones(D112,H112,0) ->  | H112: 0
C113: Cargas de familia
C114: Cónyuge | D114: 0 | F114: =validaciones(D114,H114,0) ->  | H114: =cargas_de_familia(4,Datos!$C$11,MONTH(Datos!$C$13),$D$12) -> 156320.63 | K114: =IF(K105-K108-K109>=D114,D114,K105-K108-K109) -> 0
C115: Cantidad de hijos e hijastros | D115: 3 | F115: =validaciones(D115,H115,0) ->  | H115: 99
C116: Deducción total hijos e hijastros | D116: 236499.24 | H116: =cargas_de_familia(3,Datos!$C$11,MONTH(Datos!$C$13),$D$12)*D115 -> 236499.24 | K116: =IF(K105-K108-K109-K114>=D116,D116,K105-K108-K109-K114) -> 236499.24
C117: Cantidad de hijos e hijastros incapacitados para el trabajo | D117: 0 | F117: =validaciones(D117,H117,0) ->  | H117: 99
C118: Hijos / Hijastros incapacitados para el trabajo | D118: 0 | H118: =cargas_de_familia(5,Datos!$C$11,MONTH(Datos!$C$13),$D$12) -> 157666.16
C119: Total de cargas de familia | D119: =+D114+D116+D118 -> 236499.24 | H119: 0
C120: TOTAL DEDUCCIONES PERSONALES | D120: =SUM(D108:D112,D119) -> 1209033.98
C122: DETERMINACIÓN DEL IMPUESTO
C123: REMUNERACIÓN NETA SUJETA A IMPUESTO -antes de la deducción art. 46 L. 27541- | D123: 0
C124: Deducción inciso a) primer párrafo artículo 30 de la ley (cfr. art. 46 L. 27541) | D124: 0 | H124: 0 | K124: =IF(D123-K125<=0,0,IF(D123-K125<=H124,D123-K125,H124)) -> 0
C125: Deducción inciso c) primer párrafo artículo 30 de la ley (cfr. art. 46 L. 27541) | D125: 0 | H125: 0 | K125: =IF(D123<=H125,D123,H125) -> 0
C126: REMUNERACIÓN SUJETA A IMPUESTO | D126: =IF(+D72-D105-D120<0,0,+D72-D105-D120) -> 1454850.39
C127: Alícuota aplicable artículo 94 ley de impuesto a las ganancias | D127: =IF(OR(Datos!C11="Final",Datos!C11="Anual"),impuestoAlicuota(D126,D25*(1-G25)+D51*(1-G51),12),impuestoAlicuota(D126,D25*(1-G25)+D51*(1-G51),MONTH(D11))) -> 0.35
C128: Alícuota aplicable sin incluir horas extras | D128: =IF(OR(Datos!C11="Final",Datos!C11="Anual"),impuestoAlicuota(D126,0,12),impuestoAlicuota(D126,0,MONTH(D11))) -> 0.35
C129: IMPUESTO DETERMINADO | D129: =IF(D126<0,0,IF(OR(Datos!C11="Final",Datos!C11="Anual"),impuestoDeterminado(D126,D25*(1-G25)+D51*(1-G51),12),impuestoDeterminado(D126,D25*(1-G25)+D51*(1-G51),MONTH(D11)))) -> 378196.3715
C130: Impuesto retenido | D130: 378196.37
C131: Pagos a cuenta - Impuesto sobre créditos y débitos | D131: 0 | F131: =IF(AND(Datos!$C$11="Informativa",D131<>0),"En la DDJJ informativa, este campo debe consignarse en cero (0)","") -> 
C132: Pagos a cuenta - Percepciones / Retenciones aduaneras | D132: 0 | F132: =IF(AND(Datos!$C$11="Informativa",D132<>0),"En la DDJJ informativa, este campo debe consignarse en cero (0)","") -> 
C133: Pagos a cuenta - RG (AFIP) 3819/2015 - Cancelaciones en efectivo | D133: 0 | F133: =IF(AND(Datos!$C$11="Informativa",D133<>0),"En la DDJJ informativa, este campo debe consignarse en cero (0)","") -> 
C134: Pagos a cuenta - Bono ley 27.424 | D134: 0 | F134: =IF(AND(Datos!$C$11="Informativa",D134<>0),"En la DDJJ informativa, este campo debe consignarse en cero (0)","") -> 
C135: Pagos a cuenta - RG 4815 [LEY 27.541 Art. 35 inciso a)] | D135: 0 | F135: =IF(AND(Datos!$C$11="Informativa",D135<>0),"En la DDJJ informativa, este campo debe consignarse en cero (0)","") -> 
C136: Pagos a cuenta - RG 4815 [LEY 27.541 Art. 35 inciso b)] | D136: 0 | F136: =IF(AND(Datos!$C$11="Informativa",D136<>0),"En la DDJJ informativa, este campo debe consignarse en cero (0)","") -> 
C137: Pagos a cuenta - RG 4815 [LEY 27.541 Art. 35 inciso c)] | D137: 0 | F137: =IF(AND(Datos!$C$11="Informativa",D137<>0),"En la DDJJ informativa, este campo debe consignarse en cero (0)","") -> 
C138: Pagos a cuenta - RG 4815 [LEY 27.541 Art. 35 inciso d)] | D138: 0 | F138: =IF(AND(Datos!$C$11="Informativa",D138<>0),"En la DDJJ informativa, este campo debe consignarse en cero (0)","") -> 
C139: Pagos a cuenta - RG 4815 [LEY 27.541 Art. 35 inciso e)] | D139: 0 | F139: =IF(AND(Datos!$C$11="Informativa",D139<>0),"En la DDJJ informativa, este campo debe consignarse en cero (0)","") -> 
C140: Pagos a cuenta - Impuesto sobre créditos y débitos - sobre movimientos de fondos propios o de terceros | D140: 0 | F140: =IF(AND(Datos!$C$11="Informativa",D140<>0),"En la DDJJ informativa, este campo debe consignarse en cero (0)","") -> 
C141: Pagos a cuenta - Resolución General (AFIP) 3819/2015 - Cancelaciones en Efectivo -Servicios de transporte terrestre, aéreo y por vía acuática de pasajeros con destino fuera del país | D141: 0 | F141: =IF(AND(Datos!$C$11="Informativa",D141<>0),"En la DDJJ informativa, este campo debe consignarse en cero (0)","") -> 
C142: Total pagos a cuenta | D142: =SUM(D131:D141) -> 0
C143: SALDO A PAGAR | D143: =+ROUND(D129,2)-D130-D142 -> 0

Sheet Empleado08
C3: LIQUIDACIÓN DE IMPUESTO A LAS GANANCIAS - 4ta. CATEGORÍA RELACIÓN DE DEPENDENCIA
C6: Empleado: Nombre y apellido | D6: TAMAY SERGIO EDUARDO
C7: CUIL del empleado | D7: 20308513964 | F7: =cuitValidar(D7) -> CUIT/CUIL Válido
C8: ="Agente de Retención: " -> Agente de Retención: | D8: =Datos!C7&" - "&Datos!C5 -> 33711238269 - OPERACIONES AGROPORTUARIAS S.A.
C9: ="Período Fiscal: " -> Período Fiscal: | D9: =YEAR(Datos!C13) -> 2021
C10: Período trabajado (desde): | D10: 2021-01-01
C11: Período trabajado (hasta): | D11: 2021-09-25 | H11: =IF(MONTH(D11)>MONTH(Datos!C13),"El período trabajado no puede ser mayor al período que se informa (mes "&MONTH(Datos!C13)&")","") -> 
C12: Zona geográfica: | D12: Todo el país (excepto zona patagónica)
C13: Transporte a larga distancia | D13: No desarrolla la actividad
C14: Beneficio promocional 27424? | D14: No
C15: Beneficio de la ley 27549? | D15: No
C16: El trabajador labora bajo el régimen de teletrabajo (Ley 27555)? | D16: No
C17: El trabajador es personal militar en actividad? | D17: No
C19: REMUNERACIONES
C20: Abonadas por el agente de retención:
C21: Remuneración bruta gravada | D21: 3269000.12
C22: Retribuciones no habituales gravadas | D22: 0
C23: SAC primera cuota gravado | D23: 0
C24: SAC segunda cuota gravado | D24: 0
C25: Horas extras remuneración gravada | D25: 0 | G25: 0 | H25: % de retenciones
C26: Movilidad y viáticos remuneración gravada | D26: 0
C27: Material didáctico personal docente remuneración gravada | D27: 0
C28: Remuneración no alcanzada o exenta (sin horas extras) | D28: 0
C29: Remuneración exenta ley 27549 | D29: 0 | F29: =IF(AND($D$15="No",D29<>0),"Para que sea procedente el beneficio, modifique el valor en la celda D15","") -> 
C30: Retribuciones no habituales exentas o no alcanzadas | D30: 0
C31: Horas extras remuneración exenta | D31: 234183.35
C32: Movilidad y viáticos remuneración exenta | D32: 0
C33: Material didáctico personal docente remuneración exenta | D33: 0
C34: Bonos de productividad gravados | D34: 0
C35: Fallos de caja gravados | D35: 0
C36: Conceptos de similar naturaleza gravados | D36: 0
C37: Bonos de productividad exentos | D37: 0
C38: Fallos de caja exentos | D38: 0
C39: Conceptos de similar naturaleza exentos | D39: 0
C40: Compensación de gastos de teletrabajo exentos | D40: 0
C41: Personal militar - suplementos art. 57 ley 19.101 - exentos | D41: 0
C42: SAC primera cuota - No alcanzado o exento | D42: 0
C43: SAC segunda cuota - No alcanzado o exento | D43: 0
C44: Ajustes períodos anteriores - Remuneración gravada | D44: 0
C45: Ajustes períodos anteriores - Remuneración exenta / no alcanzada | D45: 0
C46: Otros empleos:
C47: Remuneración bruta gravada | D47: 0
C48: Retribuciones no habituales gravadas | D48: 0
C49: SAC primera cuota gravado | D49: 0
C50: SAC segunda cuota gravado | D50: 0
C51: Horas extras remuneración gravada | D51: 0 | G51: 0 | H51: % de retenciones
C52: Movilidad y viáticos remuneración gravada | D52: 0
C53: Material didáctico personal docente remuneración gravada | D53: 0
C54: Remuneración no alcanzada o exenta | D54: 0
C55: Remuneración exenta ley 27549 | D55: 0 | F55: =IF(AND($D$15="No",D55<>0),"Para que sea procedente el beneficio, modifique el valor en la celda D15","") -> 
C56: Retribuciones no habituales exentas o no alcanzadas | D56: 0
C57: Horas extras remuneración exenta o no alcanzada | D57: 0
C58: Movilidad y viáticos remuneración exenta o no alcanzada | D58: 0
C59: Material didáctico personal docente remuneración exenta o no alcanzada | D59: 0
C60: Bonos de productividad gravados | D60: 0
C61: Fallos de caja gravados | D61: 0
C62: Conceptos de similar naturaleza gravados | D62: 0
C63: Bonos de productividad exentos | D63: 0
C64: Fallos de caja exentos | D64: 0
C65: Conceptos de similar naturaleza exentos | D65: 0
C66: Compensación de gastos teletrabajo - exentos | D66: 0
C67: Personal militar - suplementos art. 57 Ley 19101 - exentos | D67: 0
C68: SAC primera cuota - No alcanzado o exento | D68: 0
C69: SAC segunda cuota - No alcanzado o exento | D69: 0
C70: Ajustes períodos anteriores - Remuneración gravada | D70: 0
C71: Ajustes períodos anteriores - Remuneración no alcanzada o exenta | D71: 0
C72: TOTAL REMUNERACIÓN GRAVADA | D72: =SUM(D21:E27,D44,D47:D53,D70) -> 3269000.12
C73: TOTAL REMUNERACIÓN NO ALCANZADA O EXENTA | D73: =SUM(D28:D43,D45,D54:D69,D71) -> 234183.35
C74: TOTAL REMUNERACIONES | D74: =IF(+D72+D73<0,0,D72+D73) -> 3503183.47
C76: DEDUCCIONES GENERALES | H76: Topes máximos legales
C77: Aportes a fondos de jubilaciones, retiros, pensiones o subsidios que se destinen a cajas nacionales, provinciales o municipales | D77: 407012.74 | F77: =validaciones(D77,H77,0)&IF(D77>$D$74," El importe no puede ser mayor a la remuneración total","") -> 
C78: Aportes a fondos de jubilaciones, retiros, pensiones o subsidios que se destinen a cajas nacionales, provinciales o municipales por otros empleos | D78: 0 | F78: =validaciones(D78,H78,0)&IF(D78>$D$74," El importe no puede ser mayor a la remuneración total","") -> 
C79: Aportes a obra sociales | D79: 87217.02 | F79: =validaciones(D79,H79,0)&IF(D79>$D$74," El importe no puede ser mayor a la remuneración total","") -> 
C80: Aportes a obra sociales por otros empleos | D80: 0 | F80: =validaciones(D80,H80,0)&IF(D80>$D$74," El importe no puede ser mayor a la remuneración total","") -> 
C81: Cuota sindical | D81: 60462.61 | F81: =validaciones(D81,H81,0)&IF(D81>$D$74," El importe no puede ser mayor a la remuneración total","") -> 
C82: Cuota sindical por otros empleos | D82: 0 | F82: =validaciones(D82,H82,0)&IF(D82>$D$74," El importe no puede ser mayor a la remuneración total","") -> 
C83: Cuotas médico asistenciales | D83: 115908.36 | F83: =validaciones(D83,H83,0) ->  | H83: =(D72-SUM(D77:D82,D84:D89,D91,D93:D94,D95:D103))*0.05 -> 127331.4675
C84: Primas de seguro para el caso de muerte | D84: 0 | F84: =validaciones(D84,H84,0)&IF(AND(Datos!$C$11="Informativa",D84<>0),"En la DDJJ informativa, este campo debe consignarse en cero (0)","") ->  | H84: =+Tablas!B2 -> 24000
C85: Primas por riesgo de muerte y de ahorro de seguros mixtos, excepto para los casos de seguros de retiro privados administrados por entidades sujetas al control de la Superintendencia de Seguros de la Nación | D85: 0 | F85: =validaciones(D85,H85,0)&IF(AND(Datos!$C$11="Informativa",D85<>0),"En la DDJJ informativa, este campo debe consignarse en cero (0)","") ->  | H85: =+H84 -> 24000
C86: Aportes a planes de seguro de retiro privados administrados por entidades sujetas al control de la Superintendencia de Seguros de la Nación | D86: 0 | F86: =validaciones(D86,H86,0)&IF(AND(Datos!$C$11="Informativa",D86<>0),"En la DDJJ informativa, este campo debe consignarse en cero (0)","") ->  | H86: =+H85 -> 24000
C87: Cuotapartes de fondos comunes de inversión constituidos con fines de retiro | D87: 0 | F87: =validaciones(D87,H87,0)&IF(D87<>0,"Deberá consignarse en cero (0), hasta que la Autoridad de Aplicación – CNV – autorice a las Entidades a funcionar e implemente el régimen.","") ->  | H87: 0
C88: Gastos de sepelio | D88: 0 | F88: =validaciones(D88,H88,0) ->  | H88: =+Tablas!B6 -> 996.23
C89: Gastos amortización e intereses rodado para corredores y viajantes de comercio | D89: 0 | F89: =validaciones(D89,H89,0)&IF(D89>$D$74," El importe no puede ser mayor a la remuneración total","") -> 
C90: Donaciones a fiscos nacional, provinciales y municipales, y a instituciones comprendidas en el artículo 26, incisos e) y f) de la ley | D90: 0 | F90: =validaciones(D90,H90,0) ->  | H90: =(D72-SUM(D77:D82,D84:D89,D91,D93:D94,D95:D103))*0.05 -> 127331.4675
C91: Descuentos obligatorios establecidos por ley nacional, provincial o municipal | D91: 0 | F91: =validaciones(D91,H91,0)&IF(D91>$D$74," El importe no puede ser mayor a la remuneración total","") -> 
C92: Honorarios por servicios de asistencia sanitaria, médica y paramédica | D92: 0 | F92: =validaciones(D92,H92,0)&IF(AND(Datos!$C$11="Informativa",D92<>0),"En la DDJJ informativa, este campo debe consignarse en cero (0)","") ->  | H92: =(D72-SUM(D77:D82,D84:D89,D91,D93:D94,D95:D103))*0.05 -> 127331.4675
C93: Intereses de créditos hipotecarios | D93: 0 | F93: =validaciones(D93,H93,0) ->  | H93: =+Tablas!B3 -> 20000
C94: Aportes al capital social o al fondo de riesgo de socios protectores de sociedades de garantía recíproca | D94: 0 | F94: =validaciones(D94,H94,0) -> 
C95: Alquileres de inmuebles destinados a casa habitación | D95: 0 | F95: =validaciones(D95,H95,0) ->  | H95: =IF(Datos!C11="Final",ROUND(Tablas!B4/12*12,2),ROUND(Tablas!B4/12*MONTH(Datos!C13),2)) -> 167678.4
C96: Empleados del servicio doméstico | D96: 167678.4 | F96: =validaciones(D96,H96,0) ->  | H96: =Tablas!B4 -> 167678.4
C97: Gastos de movilidad, viáticos y otras compensaciones análogas abonados por el empleador | D97: 0 | F97: =validaciones(D97,H97,0) ->  | H97: =IF(D13="Desarrolla la actividad",Tablas!B4,Tablas!B4*0.4) -> 67071.36
C98: Gastos por adquisición de indumentaria y/o equipamiento de trabajo | D98: 0 | F98: =validaciones(D98,H98,0) -> 
C99: Otras deducciones - aportes a Cajas Complementarias de Previsión, Fondos Compensadores de Previsión o similares | D99: 0 | F99: =validaciones(D99,H99,0) -> 
C100: Otras deducciones - Aportes para jubilaciones, retiros y subsidios ANSES | D100: 0 | F100: =validaciones(D100,H100,0) -> 
C101: Otras deducciones - Cajas Provinciales o Municipales o de Previsión para Profesionales | D101: 0 | F101: =validaciones(D101,H101,0) -> 
C102: Otras deducciones - Actores - Retribución pagada a los representantes - RG 2442/08 | D102: 0 | F102: =validaciones(D102,H102,0) -> 
C103: Otras deducciones - Fondos compensadores de previsión | D103: 0 | F103: =validaciones(D103,H103,0) -> 
C104: Otras deducciones | D104: =+SUM(D99:E103) -> 0
C105: TOTAL DEDUCCIONES GENERALES | D105: =SUM(D77:E103) -> 838279.13 | K105: =+D72-D105 -> 2430720.99
C107: DEDUCCIONES PERSONALES | H107: Topes máximos legales
C108: Ganancia no imponible | D108: 167678.4 | F108: =validaciones(D108,H108,0) ->  | H108: =deducciones(1,Datos!C11,MONTH(Datos!$C$13),$D$12) -> 167678.4 | K108: =IF(K105-K109<=0,0,IF(K105-K109<=H108,K105-K109,H108)) -> 167678.4
C109: Deducción especial | D109: 804856.34 | F109: =validaciones(D109,H109,0) ->  | H109: =deducciones(2,Datos!$C$11,MONTH(Datos!$C$13),$D$12) -> 804856.34 | K109: =IF(K105<=H109,K105,H109) -> 804856.34
C110: Deducción Especial Incrementada Primera parte del penúltimo párrafo del inciso c) del artículo 30 de la ley del gravamen | D110: 0
C111: Deducción Especial Incrementada Segunda parte del penúltimo párrafo del inciso c) del artículo 30 de la ley del gravamen | D111: 0
C112: Deducción específica | D112: 0 | F112: =validaciones(D112,H112,0) ->  | H112: 0
C113: Cargas de familia
C114: Cónyuge | D114: 0 | F114: =validaciones(D114,H114,0) ->  | H114: =cargas_de_familia(4,Datos!$C$11,MONTH(Datos!$C$13),$D$12) -> 156320.63 | K114: =IF(K105-K108-K109>=D114,D114,K105-K108-K109) -> 0
C115: Cantidad de hijos e hijastros | D115: 1 | F115: =validaciones(D115,H115,0) ->  | H115: 99
C116: Deducción total hijos e hijastros | D116: 78833.08 | H116: =cargas_de_familia(3,Datos!$C$11,MONTH(Datos!$C$13),$D$12)*D115 -> 78833.08 | K116: =IF(K105-K108-K109-K114>=D116,D116,K105-K108-K109-K114) -> 78833.08
C117: Cantidad de hijos e hijastros incapacitados para el trabajo | D117: 0 | F117: =validaciones(D117,H117,0) ->  | H117: 99
C118: Hijos / Hijastros incapacitados para el trabajo | D118: 0 | H118: =cargas_de_familia(5,Datos!$C$11,MONTH(Datos!$C$13),$D$12) -> 157666.16
C119: Total de cargas de familia | D119: =+D114+D116+D118 -> 78833.08 | H119: 0
C120: TOTAL DEDUCCIONES PERSONALES | D120: =SUM(D108:D112,D119) -> 1051367.82
C122: DETERMINACIÓN DEL IMPUESTO
C123: REMUNERACIÓN NETA SUJETA A IMPUESTO -antes de la deducción art. 46 L. 27541- | D123: 0
C124: Deducción inciso a) primer párrafo artículo 30 de la ley (cfr. art. 46 L. 27541) | D124: 0 | H124: 0 | K124: =IF(D123-K125<=0,0,IF(D123-K125<=H124,D123-K125,H124)) -> 0
C125: Deducción inciso c) primer párrafo artículo 30 de la ley (cfr. art. 46 L. 27541) | D125: 0 | H125: 0 | K125: =IF(D123<=H125,D123,H125) -> 0
C126: REMUNERACIÓN SUJETA A IMPUESTO | D126: =IF(+D72-D105-D120<0,0,+D72-D105-D120) -> 1379353.17
C127: Alícuota aplicable artículo 94 ley de impuesto a las ganancias | D127: =IF(OR(Datos!C11="Final",Datos!C11="Anual"),impuestoAlicuota(D126,D25*(1-G25)+D51*(1-G51),12),impuestoAlicuota(D126,D25*(1-G25)+D51*(1-G51),MONTH(D11))) -> 0.35
C128: Alícuota aplicable sin incluir horas extras | D128: =IF(OR(Datos!C11="Final",Datos!C11="Anual"),impuestoAlicuota(D126,0,12),impuestoAlicuota(D126,0,MONTH(D11))) -> 0.35
C129: IMPUESTO DETERMINADO | D129: =IF(D126<0,0,IF(OR(Datos!C11="Final",Datos!C11="Anual"),impuestoDeterminado(D126,D25*(1-G25)+D51*(1-G51),12),impuestoDeterminado(D126,D25*(1-G25)+D51*(1-G51),MONTH(D11)))) -> 351772.3445
C130: Impuesto retenido | D130: 267453.84
C131: Pagos a cuenta - Impuesto sobre créditos y débitos | D131: 0 | F131: =IF(AND(Datos!$C$11="Informativa",D131<>0),"En la DDJJ informativa, este campo debe consignarse en cero (0)","") -> 
C132: Pagos a cuenta - Percepciones / Retenciones aduaneras | D132: 0 | F132: =IF(AND(Datos!$C$11="Informativa",D132<>0),"En la DDJJ informativa, este campo debe consignarse en cero (0)","") -> 
C133: Pagos a cuenta - RG (AFIP) 3819/2015 - Cancelaciones en efectivo | D133: 0 | F133: =IF(AND(Datos!$C$11="Informativa",D133<>0),"En la DDJJ informativa, este campo debe consignarse en cero (0)","") -> 
C134: Pagos a cuenta - Bono ley 27.424 | D134: 0 | F134: =IF(AND(Datos!$C$11="Informativa",D134<>0),"En la DDJJ informativa, este campo debe consignarse en cero (0)","") -> 
C135: Pagos a cuenta - RG 4815 [LEY 27.541 Art. 35 inciso a)] | D135: 84318.5 | F135: =IF(AND(Datos!$C$11="Informativa",D135<>0),"En la DDJJ informativa, este campo debe consignarse en cero (0)","") -> 
C136: Pagos a cuenta - RG 4815 [LEY 27.541 Art. 35 inciso b)] | D136: 0 | F136: =IF(AND(Datos!$C$11="Informativa",D136<>0),"En la DDJJ informativa, este campo debe consignarse en cero (0)","") -> 
C137: Pagos a cuenta - RG 4815 [LEY 27.541 Art. 35 inciso c)] | D137: 0 | F137: =IF(AND(Datos!$C$11="Informativa",D137<>0),"En la DDJJ informativa, este campo debe consignarse en cero (0)","") -> 
C138: Pagos a cuenta - RG 4815 [LEY 27.541 Art. 35 inciso d)] | D138: 0 | F138: =IF(AND(Datos!$C$11="Informativa",D138<>0),"En la DDJJ informativa, este campo debe consignarse en cero (0)","") -> 
C139: Pagos a cuenta - RG 4815 [LEY 27.541 Art. 35 inciso e)] | D139: 0 | F139: =IF(AND(Datos!$C$11="Informativa",D139<>0),"En la DDJJ informativa, este campo debe consignarse en cero (0)","") -> 
C140: Pagos a cuenta - Impuesto sobre créditos y débitos - sobre movimientos de fondos propios o de terceros | D140: 0 | F140: =IF(AND(Datos!$C$11="Informativa",D140<>0),"En la DDJJ informativa, este campo debe consignarse en cero (0)","") -> 
C141: Pagos a cuenta - Resolución General (AFIP) 3819/2015 - Cancelaciones en Efectivo -Servicios de transporte terrestre, aéreo y por vía acuática de pasajeros con destino fuera del país | D141: 0 | F141: =IF(AND(Datos!$C$11="Informativa",D141<>0),"En la DDJJ informativa, este campo debe consignarse en cero (0)","") -> 
C142: Total pagos a cuenta | D142: =SUM(D131:D141) -> 84318.5
C143: SALDO A PAGAR | D143: =+ROUND(D129,2)-D130-D142 -> 0

Sheet Empleado09
C3: LIQUIDACIÓN DE IMPUESTO A LAS GANANCIAS - 4ta. CATEGORÍA RELACIÓN DE DEPENDENCIA
C6: Empleado: Nombre y apellido | D6: SARANITI ANGEL JESUS
C7: CUIL del empleado | D7: 20385987928 | F7: =cuitValidar(D7) -> CUIT/CUIL Válido
C8: ="Agente de Retención: " -> Agente de Retención: | D8: =Datos!C7&" - "&Datos!C5 -> 33711238269 - OPERACIONES AGROPORTUARIAS S.A.
C9: ="Período Fiscal: " -> Período Fiscal: | D9: =YEAR(Datos!C13) -> 2021
C10: Período trabajado (desde): | D10: 2021-01-01
C11: Período trabajado (hasta): | D11: 2021-09-25 | H11: =IF(MONTH(D11)>MONTH(Datos!C13),"El período trabajado no puede ser mayor al período que se informa (mes "&MONTH(Datos!C13)&")","") -> 
C12: Zona geográfica: | D12: Todo el país (excepto zona patagónica)
C13: Transporte a larga distancia | D13: No desarrolla la actividad
C14: Beneficio promocional 27424? | D14: No
C15: Beneficio de la ley 27549? | D15: No
C16: El trabajador labora bajo el régimen de teletrabajo (Ley 27555)? | D16: No
C17: El trabajador es personal militar en actividad? | D17: No
C19: REMUNERACIONES
C20: Abonadas por el agente de retención:
C21: Remuneración bruta gravada | D21: 3343195.99
C22: Retribuciones no habituales gravadas | D22: 0
C23: SAC primera cuota gravado | D23: 0
C24: SAC segunda cuota gravado | D24: 0
C25: Horas extras remuneración gravada | D25: 0 | G25: 0 | H25: % de retenciones
C26: Movilidad y viáticos remuneración gravada | D26: 0
C27: Material didáctico personal docente remuneración gravada | D27: 0
C28: Remuneración no alcanzada o exenta (sin horas extras) | D28: 0
C29: Remuneración exenta ley 27549 | D29: 0 | F29: =IF(AND($D$15="No",D29<>0),"Para que sea procedente el beneficio, modifique el valor en la celda D15","") -> 
C30: Retribuciones no habituales exentas o no alcanzadas | D30: 0
C31: Horas extras remuneración exenta | D31: 279652.47
C32: Movilidad y viáticos remuneración exenta | D32: 0
C33: Material didáctico personal docente remuneración exenta | D33: 0
C34: Bonos de productividad gravados | D34: 0
C35: Fallos de caja gravados | D35: 0
C36: Conceptos de similar naturaleza gravados | D36: 0
C37: Bonos de productividad exentos | D37: 0
C38: Fallos de caja exentos | D38: 0
C39: Conceptos de similar naturaleza exentos | D39: 0
C40: Compensación de gastos de teletrabajo exentos | D40: 0
C41: Personal militar - suplementos art. 57 ley 19.101 - exentos | D41: 0
C42: SAC primera cuota - No alcanzado o exento | D42: 0
C43: SAC segunda cuota - No alcanzado o exento | D43: 0
C44: Ajustes períodos anteriores - Remuneración gravada | D44: 0
C45: Ajustes períodos anteriores - Remuneración exenta / no alcanzada | D45: 0
C46: Otros empleos:
C47: Remuneración bruta gravada | D47: 0
C48: Retribuciones no habituales gravadas | D48: 0
C49: SAC primera cuota gravado | D49: 0
C50: SAC segunda cuota gravado | D50: 0
C51: Horas extras remuneración gravada | D51: 0 | G51: 0 | H51: % de retenciones
C52: Movilidad y viáticos remuneración gravada | D52: 0
C53: Material didáctico personal docente remuneración gravada | D53: 0
C54: Remuneración no alcanzada o exenta | D54: 0
C55: Remuneración exenta ley 27549 | D55: 0 | F55: =IF(AND($D$15="No",D55<>0),"Para que sea procedente el beneficio, modifique el valor en la celda D15","") -> 
C56: Retribuciones no habituales exentas o no alcanzadas | D56: 0
C57: Horas extras remuneración exenta o no alcanzada | D57: 0
C58: Movilidad y viáticos remuneración exenta o no alcanzada | D58: 0
C59: Material didáctico personal docente remuneración exenta o no alcanzada | D59: 0
C60: Bonos de productividad gravados | D60: 0
C61: Fallos de caja gravados | D61: 0
C62: Conceptos de similar naturaleza gravados | D62: 0
C63: Bonos de productividad exentos | D63: 0
C64: Fallos de caja exentos | D64: 0
C65: Conceptos de similar naturaleza exentos | D65: 0
C66: Compensación de gastos teletrabajo - exentos | D66: 0
C67: Personal militar - suplementos art. 57 Ley 19101 - exentos | D67: 0
C68: SAC primera cuota - No alcanzado o exento | D68: 0
C69: SAC segunda cuota - No alcanzado o exento | D69: 0
C70: Ajustes períodos anteriores - Remuneración gravada | D70: 0
C71: Ajustes períodos anteriores - Remuneración no alcanzada o exenta | D71: 0
C72: TOTAL REMUNERACIÓN GRAVADA | D72: =SUM(D21:E27,D44,D47:D53,D70) -> 3343195.99
C73: TOTAL REMUNERACIÓN NO ALCANZADA O EXENTA | D73: =SUM(D28:D43,D45,D54:D69,D71) -> 279652.47
C74: TOTAL REMUNERACIONES | D74: =IF(+D72+D73<0,0,D72+D73) -> 3622848.46
C76: DEDUCCIONES GENERALES | H76: Topes máximos legales
C77: Aportes a fondos de jubilaciones, retiros, pensiones o subsidios que se destinen a cajas nacionales, provinciales o municipales | D77: 415878.33 | F77: =validaciones(D77,H77,0)&IF(D77>$D$74," El importe no puede ser mayor a la remuneración total","") -> 
C78: Aportes a fondos de jubilaciones, retiros, pensiones o subsidios que se destinen a cajas nacionales, provinciales o municipales por otros empleos | D78: 0 | F78: =validaciones(D78,H78,0)&IF(D78>$D$74," El importe no puede ser mayor a la remuneración total","") -> 
C79: Aportes a obra sociales | D79: 89116.78 | F79: =validaciones(D79,H79,0)&IF(D79>$D$74," El importe no puede ser mayor a la remuneración total","") -> 
C80: Aportes a obra sociales por otros empleos | D80: 0 | F80: =validaciones(D80,H80,0)&IF(D80>$D$74," El importe no puede ser mayor a la remuneración total","") -> 
C81: Cuota sindical | D81: 63802.12 | F81: =validaciones(D81,H81,0)&IF(D81>$D$74," El importe no puede ser mayor a la remuneración total","") -> 
C82: Cuota sindical por otros empleos | D82: 0 | F82: =validaciones(D82,H82,0)&IF(D82>$D$74," El importe no puede ser mayor a la remuneración total","") -> 
C83: Cuotas médico asistenciales | D83: 0 | F83: =validaciones(D83,H83,0) ->  | H83: =(D72-SUM(D77:D82,D84:D89,D91,D93:D94,D95:D103))*0.05 -> 138719.938
C84: Primas de seguro para el caso de muerte | D84: 0 | F84: =validaciones(D84,H84,0)&IF(AND(Datos!$C$11="Informativa",D84<>0),"En la DDJJ informativa, este campo debe consignarse en cero (0)","") ->  | H84: =+Tablas!B2 -> 24000
C85: Primas por riesgo de muerte y de ahorro de seguros mixtos, excepto para los casos de seguros de retiro privados administrados por entidades sujetas al control de la Superintendencia de Seguros de la Nación | D85: 0 | F85: =validaciones(D85,H85,0)&IF(AND(Datos!$C$11="Informativa",D85<>0),"En la DDJJ informativa, este campo debe consignarse en cero (0)","") ->  | H85: =+H84 -> 24000
C86: Aportes a planes de seguro de retiro privados administrados por entidades sujetas al control de la Superintendencia de Seguros de la Nación | D86: 0 | F86: =validaciones(D86,H86,0)&IF(AND(Datos!$C$11="Informativa",D86<>0),"En la DDJJ informativa, este campo debe consignarse en cero (0)","") ->  | H86: =+H85 -> 24000
C87: Cuotapartes de fondos comunes de inversión constituidos con fines de retiro | D87: 0 | F87: =validaciones(D87,H87,0)&IF(D87<>0,"Deberá consignarse en cero (0), hasta que la Autoridad de Aplicación – CNV – autorice a las Entidades a funcionar e implemente el régimen.","") ->  | H87: 0
C88: Gastos de sepelio | D88: 0 | F88: =validaciones(D88,H88,0) ->  | H88: =+Tablas!B6 -> 996.23
C89: Gastos amortización e intereses rodado para corredores y viajantes de comercio | D89: 0 | F89: =validaciones(D89,H89,0)&IF(D89>$D$74," El importe no puede ser mayor a la remuneración total","") -> 
C90: Donaciones a fiscos nacional, provinciales y municipales, y a instituciones comprendidas en el artículo 26, incisos e) y f) de la ley | D90: 0 | F90: =validaciones(D90,H90,0) ->  | H90: =(D72-SUM(D77:D82,D84:D89,D91,D93:D94,D95:D103))*0.05 -> 138719.938
C91: Descuentos obligatorios establecidos por ley nacional, provincial o municipal | D91: 0 | F91: =validaciones(D91,H91,0)&IF(D91>$D$74," El importe no puede ser mayor a la remuneración total","") -> 
C92: Honorarios por servicios de asistencia sanitaria, médica y paramédica | D92: 0 | F92: =validaciones(D92,H92,0)&IF(AND(Datos!$C$11="Informativa",D92<>0),"En la DDJJ informativa, este campo debe consignarse en cero (0)","") ->  | H92: =(D72-SUM(D77:D82,D84:D89,D91,D93:D94,D95:D103))*0.05 -> 138719.938
C93: Intereses de créditos hipotecarios | D93: 0 | F93: =validaciones(D93,H93,0) ->  | H93: =+Tablas!B3 -> 20000
C94: Aportes al capital social o al fondo de riesgo de socios protectores de sociedades de garantía recíproca | D94: 0 | F94: =validaciones(D94,H94,0) -> 
C95: Alquileres de inmuebles destinados a casa habitación | D95: 0 | F95: =validaciones(D95,H95,0) ->  | H95: =IF(Datos!C11="Final",ROUND(Tablas!B4/12*12,2),ROUND(Tablas!B4/12*MONTH(Datos!C13),2)) -> 167678.4
C96: Empleados del servicio doméstico | D96: 0 | F96: =validaciones(D96,H96,0) ->  | H96: =Tablas!B4 -> 167678.4
C97: Gastos de movilidad, viáticos y otras compensaciones análogas abonados por el empleador | D97: 0 | F97: =validaciones(D97,H97,0) ->  | H97: =IF(D13="Desarrolla la actividad",Tablas!B4,Tablas!B4*0.4) -> 67071.36
C98: Gastos por adquisición de indumentaria y/o equipamiento de trabajo | D98: 0 | F98: =validaciones(D98,H98,0) -> 
C99: Otras deducciones - aportes a Cajas Complementarias de Previsión, Fondos Compensadores de Previsión o similares | D99: 0 | F99: =validaciones(D99,H99,0) -> 
C100: Otras deducciones - Aportes para jubilaciones, retiros y subsidios ANSES | D100: 0 | F100: =validaciones(D100,H100,0) -> 
C101: Otras deducciones - Cajas Provinciales o Municipales o de Previsión para Profesionales | D101: 0 | F101: =validaciones(D101,H101,0) -> 
C102: Otras deducciones - Actores - Retribución pagada a los representantes - RG 2442/08 | D102: 0 | F102: =validaciones(D102,H102,0) -> 
C103: Otras deducciones - Fondos compensadores de previsión | D103: 0 | F103: =validaciones(D103,H103,0) -> 
C104: Otras deducciones | D104: =+SUM(D99:E103) -> 0
C105: TOTAL DEDUCCIONES GENERALES | D105: =SUM(D77:E103) -> 568797.23 | K105: =+D72-D105 -> 2774398.76
C107: DEDUCCIONES PERSONALES | H107: Topes máximos legales
C108: Ganancia no imponible | D108: 167678.4 | F108: =validaciones(D108,H108,0) ->  | H108: =deducciones(1,Datos!C11,MONTH(Datos!$C$13),$D$12) -> 167678.4 | K108: =IF(K105-K109<=0,0,IF(K105-K109<=H108,K105-K109,H108)) -> 167678.4
C109: Deducción especial | D109: 804856.34 | F109: =validaciones(D109,H109,0) ->  | H109: =deducciones(2,Datos!$C$11,MONTH(Datos!$C$13),$D$12) -> 804856.34 | K109: =IF(K105<=H109,K105,H109) -> 804856.34
C110: Deducción Especial Incrementada Primera parte del penúltimo párrafo del inciso c) del artículo 30 de la ley del gravamen | D110: 0
C111: Deducción Especial Incrementada Segunda parte del penúltimo párrafo del inciso c) del artículo 30 de la ley del gravamen | D111: 0
C112: Deducción específica | D112: 0 | F112: =validaciones(D112,H112,0) ->  | H112: 0
C113: Cargas de familia
C114: Cónyuge | D114: 0 | F114: =validaciones(D114,H114,0) ->  | H114: =cargas_de_familia(4,Datos!$C$11,MONTH(Datos!$C$13),$D$12) -> 156320.63 | K114: =IF(K105-K108-K109>=D114,D114,K105-K108-K109) -> 0
C115: Cantidad de hijos e hijastros | D115: 0 | F115: =validaciones(D115,H115,0) ->  | H115: 99
C116: Deducción total hijos e hijastros | D116: 0 | H116: =cargas_de_familia(3,Datos!$C$11,MONTH(Datos!$C$13),$D$12)*D115 -> 0 | K116: =IF(K105-K108-K109-K114>=D116,D116,K105-K108-K109-K114) -> 0
C117: Cantidad de hijos e hijastros incapacitados para el trabajo | D117: 0 | F117: =validaciones(D117,H117,0) ->  | H117: 99
C118: Hijos / Hijastros incapacitados para el trabajo | D118: 0 | H118: =cargas_de_familia(5,Datos!$C$11,MONTH(Datos!$C$13),$D$12) -> 157666.16
C119: Total de cargas de familia | D119: =+D114+D116+D118 -> 0 | H119: 0
C120: TOTAL DEDUCCIONES PERSONALES | D120: =SUM(D108:D112,D119) -> 972534.74
C122: DETERMINACIÓN DEL IMPUESTO
C123: REMUNERACIÓN NETA SUJETA A IMPUESTO -antes de la deducción art. 46 L. 27541- | D123: 0
C124: Deducción inciso a) primer párrafo artículo 30 de la ley (cfr. art. 46 L. 27541) | D124: 0 | H124: 0 | K124: =IF(D123-K125<=0,0,IF(D123-K125<=H124,D123-K125,H124)) -> 0
C125: Deducción inciso c) primer párrafo artículo 30 de la ley (cfr. art. 46 L. 27541) | D125: 0 | H125: 0 | K125: =IF(D123<=H125,D123,H125) -> 0
C126: REMUNERACIÓN SUJETA A IMPUESTO | D126: =IF(+D72-D105-D120<0,0,+D72-D105-D120) -> 1801864.02
C127: Alícuota aplicable artículo 94 ley de impuesto a las ganancias | D127: =IF(OR(Datos!C11="Final",Datos!C11="Anual"),impuestoAlicuota(D126,D25*(1-G25)+D51*(1-G51),12),impuestoAlicuota(D126,D25*(1-G25)+D51*(1-G51),MONTH(D11))) -> 0.35
C128: Alícuota aplicable sin incluir horas extras | D128: =IF(OR(Datos!C11="Final",Datos!C11="Anual"),impuestoAlicuota(D126,0,12),impuestoAlicuota(D126,0,MONTH(D11))) -> 0.35
C129: IMPUESTO DETERMINADO | D129: =IF(D126<0,0,IF(OR(Datos!C11="Final",Datos!C11="Anual"),impuestoDeterminado(D126,D25*(1-G25)+D51*(1-G51),12),impuestoDeterminado(D126,D25*(1-G25)+D51*(1-G51),MONTH(D11)))) -> 499651.142
C130: Impuesto retenido | D130: 499651.14
C131: Pagos a cuenta - Impuesto sobre créditos y débitos | D131: 0 | F131: =IF(AND(Datos!$C$11="Informativa",D131<>0),"En la DDJJ informativa, este campo debe consignarse en cero (0)","") -> 
C132: Pagos a cuenta - Percepciones / Retenciones aduaneras | D132: 0 | F132: =IF(AND(Datos!$C$11="Informativa",D132<>0),"En la DDJJ informativa, este campo debe consignarse en cero (0)","") -> 
C133: Pagos a cuenta - RG (AFIP) 3819/2015 - Cancelaciones en efectivo | D133: 0 | F133: =IF(AND(Datos!$C$11="Informativa",D133<>0),"En la DDJJ informativa, este campo debe consignarse en cero (0)","") -> 
C134: Pagos a cuenta - Bono ley 27.424 | D134: 0 | F134: =IF(AND(Datos!$C$11="Informativa",D134<>0),"En la DDJJ informativa, este campo debe consignarse en cero (0)","") -> 
C135: Pagos a cuenta - RG 4815 [LEY 27.541 Art. 35 inciso a)] | D135: 0 | F135: =IF(AND(Datos!$C$11="Informativa",D135<>0),"En la DDJJ informativa, este campo debe consignarse en cero (0)","") -> 
C136: Pagos a cuenta - RG 4815 [LEY 27.541 Art. 35 inciso b)] | D136: 0 | F136: =IF(AND(Datos!$C$11="Informativa",D136<>0),"En la DDJJ informativa, este campo debe consignarse en cero (0)","") -> 
C137: Pagos a cuenta - RG 4815 [LEY 27.541 Art. 35 inciso c)] | D137: 0 | F137: =IF(AND(Datos!$C$11="Informativa",D137<>0),"En la DDJJ informativa, este campo debe consignarse en cero (0)","") -> 
C138: Pagos a cuenta - RG 4815 [LEY 27.541 Art. 35 inciso d)] | D138: 0 | F138: =IF(AND(Datos!$C$11="Informativa",D138<>0),"En la DDJJ informativa, este campo debe consignarse en cero (0)","") -> 
C139: Pagos a cuenta - RG 4815 [LEY 27.541 Art. 35 inciso e)] | D139: 0 | F139: =IF(AND(Datos!$C$11="Informativa",D139<>0),"En la DDJJ informativa, este campo debe consignarse en cero (0)","") -> 
C140: Pagos a cuenta - Impuesto sobre créditos y débitos - sobre movimientos de fondos propios o de terceros | D140: 0 | F140: =IF(AND(Datos!$C$11="Informativa",D140<>0),"En la DDJJ informativa, este campo debe consignarse en cero (0)","") -> 
C141: Pagos a cuenta - Resolución General (AFIP) 3819/2015 - Cancelaciones en Efectivo -Servicios de transporte terrestre, aéreo y por vía acuática de pasajeros con destino fuera del país | D141: 0 | F141: =IF(AND(Datos!$C$11="Informativa",D141<>0),"En la DDJJ informativa, este campo debe consignarse en cero (0)","") -> 
C142: Total pagos a cuenta | D142: =SUM(D131:D141) -> 0
C143: SALDO A PAGAR | D143: =+ROUND(D129,2)-D130-D142 -> 0

Sheet Empleado10
C3: LIQUIDACIÓN DE IMPUESTO A LAS GANANCIAS - 4ta. CATEGORÍA RELACIÓN DE DEPENDENCIA
C6: Empleado: Nombre y apellido | D6: TORRES CESAR
C7: CUIL del empleado | D7: 20183399544 | F7: =cuitValidar(D7) -> CUIT/CUIL Válido
C8: ="Agente de Retención: " -> Agente de Retención: | D8: =Datos!C7&" - "&Datos!C5 -> 33711238269 - OPERACIONES AGROPORTUARIAS S.A.
C9: ="Período Fiscal: " -> Período Fiscal: | D9: =YEAR(Datos!C13) -> 2021
C10: Período trabajado (desde): | D10: 2021-01-01
C11: Período trabajado (hasta): | D11: 2021-09-25 | H11: =IF(MONTH(D11)>MONTH(Datos!C13),"El período trabajado no puede ser mayor al período que se informa (mes "&MONTH(Datos!C13)&")","") -> 
C12: Zona geográfica: | D12: Todo el país (excepto zona patagónica)
C13: Transporte a larga distancia | D13: No desarrolla la actividad
C14: Beneficio promocional 27424? | D14: No
C15: Beneficio de la ley 27549? | D15: No
C16: El trabajador labora bajo el régimen de teletrabajo (Ley 27555)? | D16: No
C17: El trabajador es personal militar en actividad? | D17: No
C19: REMUNERACIONES
C20: Abonadas por el agente de retención:
C21: Remuneración bruta gravada | D21: 2958428.81
C22: Retribuciones no habituales gravadas | D22: 0
C23: SAC primera cuota gravado | D23: 0
C24: SAC segunda cuota gravado | D24: 0
C25: Horas extras remuneración gravada | D25: 0 | G25: 0 | H25: % de retenciones
C26: Movilidad y viáticos remuneración gravada | D26: 0
C27: Material didáctico personal docente remuneración gravada | D27: 0
C28: Remuneración no alcanzada o exenta (sin horas extras) | D28: 0
C29: Remuneración exenta ley 27549 | D29: 0 | F29: =IF(AND($D$15="No",D29<>0),"Para que sea procedente el beneficio, modifique el valor en la celda D15","") -> 
C30: Retribuciones no habituales exentas o no alcanzadas | D30: 0
C31: Horas extras remuneración exenta | D31: 0
C32: Movilidad y viáticos remuneración exenta | D32: 0
C33: Material didáctico personal docente remuneración exenta | D33: 0
C34: Bonos de productividad gravados | D34: 0
C35: Fallos de caja gravados | D35: 0
C36: Conceptos de similar naturaleza gravados | D36: 0
C37: Bonos de productividad exentos | D37: 0
C38: Fallos de caja exentos | D38: 0
C39: Conceptos de similar naturaleza exentos | D39: 0
C40: Compensación de gastos de teletrabajo exentos | D40: 0
C41: Personal militar - suplementos art. 57 ley 19.101 - exentos | D41: 0
C42: SAC primera cuota - No alcanzado o exento | D42: 0
C43: SAC segunda cuota - No alcanzado o exento | D43: 0
C44: Ajustes períodos anteriores - Remuneración gravada | D44: 0
C45: Ajustes períodos anteriores - Remuneración exenta / no alcanzada | D45: 0
C46: Otros empleos:
C47: Remuneración bruta gravada | D47: 0
C48: Retribuciones no habituales gravadas | D48: 0
C49: SAC primera cuota gravado | D49: 0
C50: SAC segunda cuota gravado | D50: 0
C51: Horas extras remuneración gravada | D51: 0 | G51: 0 | H51: % de retenciones
C52: Movilidad y viáticos remuneración gravada | D52: 0
C53: Material didáctico personal docente remuneración gravada | D53: 0
C54: Remuneración no alcanzada o exenta | D54: 0
C55: Remuneración exenta ley 27549 | D55: 0 | F55: =IF(AND($D$15="No",D55<>0),"Para que sea procedente el beneficio, modifique el valor en la celda D15","") -> 
C56: Retribuciones no habituales exentas o no alcanzadas | D56: 0
C57: Horas extras remuneración exenta o no alcanzada | D57: 0
C58: Movilidad y viáticos remuneración exenta o no alcanzada | D58: 0
C59: Material didáctico personal docente remuneración exenta o no alcanzada | D59: 0
C60: Bonos de productividad gravados | D60: 0
C61: Fallos de caja gravados | D61: 0
C62: Conceptos de similar naturaleza gravados | D62: 0
C63: Bonos de productividad exentos | D63: 0
C64: Fallos de caja exentos | D64: 0
C65: Conceptos de similar naturaleza exentos | D65: 0
C66: Compensación de gastos teletrabajo - exentos | D66: 0
C67: Personal militar - suplementos art. 57 Ley 19101 - exentos | D67: 0
C68: SAC primera cuota - No alcanzado o exento | D68: 0
C69: SAC segunda cuota - No alcanzado o exento | D69: 0
C70: Ajustes períodos anteriores - Remuneración gravada | D70: 0
C71: Ajustes períodos anteriores - Remuneración no alcanzada o exenta | D71: 0
C72: TOTAL REMUNERACIÓN GRAVADA | D72: =SUM(D21:E27,D44,D47:D53,D70) -> 2958428.81
C73: TOTAL REMUNERACIÓN NO ALCANZADA O EXENTA | D73: =SUM(D28:D43,D45,D54:D69,D71) -> 0
C74: TOTAL REMUNERACIONES | D74: =IF(+D72+D73<0,0,D72+D73) -> 2958428.81
C76: DEDUCCIONES GENERALES | H76: Topes máximos legales
C77: Aportes a fondos de jubilaciones, retiros, pensiones o subsidios que se destinen a cajas nacionales, provinciales o municipales | D77: 409403.23 | F77: =validaciones(D77,H77,0)&IF(D77>$D$74," El importe no puede ser mayor a la remuneración total","") -> 
C78: Aportes a fondos de jubilaciones, retiros, pensiones o subsidios que se destinen a cajas nacionales, provinciales o municipales por otros empleos | D78: 0 | F78: =validaciones(D78,H78,0)&IF(D78>$D$74," El importe no puede ser mayor a la remuneración total","") -> 
C79: Aportes a obra sociales | D79: 87729.26 | F79: =validaciones(D79,H79,0)&IF(D79>$D$74," El importe no puede ser mayor a la remuneración total","") -> 
C80: Aportes a obra sociales por otros empleos | D80: 0 | F80: =validaciones(D80,H80,0)&IF(D80>$D$74," El importe no puede ser mayor a la remuneración total","") -> 
C81: Cuota sindical | D81: 0 | F81: =validaciones(D81,H81,0)&IF(D81>$D$74," El importe no puede ser mayor a la remuneración total","") -> 
C82: Cuota sindical por otros empleos | D82: 0 | F82: =validaciones(D82,H82,0)&IF(D82>$D$74," El importe no puede ser mayor a la remuneración total","") -> 
C83: Cuotas médico asistenciales | D83: 0 | F83: =validaciones(D83,H83,0) ->  | H83: =(D72-SUM(D77:D82,D84:D89,D91,D93:D94,D95:D103))*0.05 -> 123064.816
C84: Primas de seguro para el caso de muerte | D84: 0 | F84: =validaciones(D84,H84,0)&IF(AND(Datos!$C$11="Informativa",D84<>0),"En la DDJJ informativa, este campo debe consignarse en cero (0)","") ->  | H84: =+Tablas!B2 -> 24000
C85: Primas por riesgo de muerte y de ahorro de seguros mixtos, excepto para los casos de seguros de retiro privados administrados por entidades sujetas al control de la Superintendencia de Seguros de la Nación | D85: 0 | F85: =validaciones(D85,H85,0)&IF(AND(Datos!$C$11="Informativa",D85<>0),"En la DDJJ informativa, este campo debe consignarse en cero (0)","") ->  | H85: =+H84 -> 24000
C86: Aportes a planes de seguro de retiro privados administrados por entidades sujetas al control de la Superintendencia de Seguros de la Nación | D86: 0 | F86: =validaciones(D86,H86,0)&IF(AND(Datos!$C$11="Informativa",D86<>0),"En la DDJJ informativa, este campo debe consignarse en cero (0)","") ->  | H86: =+H85 -> 24000
C87: Cuotapartes de fondos comunes de inversión constituidos con fines de retiro | D87: 0 | F87: =validaciones(D87,H87,0)&IF(D87<>0,"Deberá consignarse en cero (0), hasta que la Autoridad de Aplicación – CNV – autorice a las Entidades a funcionar e implemente el régimen.","") ->  | H87: 0
C88: Gastos de sepelio | D88: 0 | F88: =validaciones(D88,H88,0) ->  | H88: =+Tablas!B6 -> 996.23
C89: Gastos amortización e intereses rodado para corredores y viajantes de comercio | D89: 0 | F89: =validaciones(D89,H89,0)&IF(D89>$D$74," El importe no puede ser mayor a la remuneración total","") -> 
C90: Donaciones a fiscos nacional, provinciales y municipales, y a instituciones comprendidas en el artículo 26, incisos e) y f) de la ley | D90: 0 | F90: =validaciones(D90,H90,0) ->  | H90: =(D72-SUM(D77:D82,D84:D89,D91,D93:D94,D95:D103))*0.05 -> 123064.816
C91: Descuentos obligatorios establecidos por ley nacional, provincial o municipal | D91: 0 | F91: =validaciones(D91,H91,0)&IF(D91>$D$74," El importe no puede ser mayor a la remuneración total","") -> 
C92: Honorarios por servicios de asistencia sanitaria, médica y paramédica | D92: 0 | F92: =validaciones(D92,H92,0)&IF(AND(Datos!$C$11="Informativa",D92<>0),"En la DDJJ informativa, este campo debe consignarse en cero (0)","") ->  | H92: =(D72-SUM(D77:D82,D84:D89,D91,D93:D94,D95:D103))*0.05 -> 123064.816
C93: Intereses de créditos hipotecarios | D93: 0 | F93: =validaciones(D93,H93,0) ->  | H93: =+Tablas!B3 -> 20000
C94: Aportes al capital social o al fondo de riesgo de socios protectores de sociedades de garantía recíproca | D94: 0 | F94: =validaciones(D94,H94,0) -> 
C95: Alquileres de inmuebles destinados a casa habitación | D95: 0 | F95: =validaciones(D95,H95,0) ->  | H95: =IF(Datos!C11="Final",ROUND(Tablas!B4/12*12,2),ROUND(Tablas!B4/12*MONTH(Datos!C13),2)) -> 167678.4
C96: Empleados del servicio doméstico | D96: 0 | F96: =validaciones(D96,H96,0) ->  | H96: =Tablas!B4 -> 167678.4
C97: Gastos de movilidad, viáticos y otras compensaciones análogas abonados por el empleador | D97: 0 | F97: =validaciones(D97,H97,0) ->  | H97: =IF(D13="Desarrolla la actividad",Tablas!B4,Tablas!B4*0.4) -> 67071.36
C98: Gastos por adquisición de indumentaria y/o equipamiento de trabajo | D98: 0 | F98: =validaciones(D98,H98,0) -> 
C99: Otras deducciones - aportes a Cajas Complementarias de Previsión, Fondos Compensadores de Previsión o similares | D99: 0 | F99: =validaciones(D99,H99,0) -> 
C100: Otras deducciones - Aportes para jubilaciones, retiros y subsidios ANSES | D100: 0 | F100: =validaciones(D100,H100,0) -> 
C101: Otras deducciones - Cajas Provinciales o Municipales o de Previsión para Profesionales | D101: 0 | F101: =validaciones(D101,H101,0) -> 
C102: Otras deducciones - Actores - Retribución pagada a los representantes - RG 2442/08 | D102: 0 | F102: =validaciones(D102,H102,0) -> 
C103: Otras deducciones - Fondos compensadores de previsión | D103: 0 | F103: =validaciones(D103,H103,0) -> 
C104: Otras deducciones | D104: =+SUM(D99:E103) -> 0
C105: TOTAL DEDUCCIONES GENERALES | D105: =SUM(D77:E103) -> 497132.49 | K105: =+D72-D105 -> 2461296.32
C107: DEDUCCIONES PERSONALES | H107: Topes máximos legales
C108: Ganancia no imponible | D108: 167678.4 | F108: =validaciones(D108,H108,0) ->  | H108: =deducciones(1,Datos!C11,MONTH(Datos!$C$13),$D$12) -> 167678.4 | K108: =IF(K105-K109<=0,0,IF(K105-K109<=H108,K105-K109,H108)) -> 167678.4
C109: Deducción especial | D109: 804856.34 | F109: =validaciones(D109,H109,0) ->  | H109: =deducciones(2,Datos!$C$11,MONTH(Datos!$C$13),$D$12) -> 804856.34 | K109: =IF(K105<=H109,K105,H109) -> 804856.34
C110: Deducción Especial Incrementada Primera parte del penúltimo párrafo del inciso c) del artículo 30 de la ley del gravamen | D110: 0
C111: Deducción Especial Incrementada Segunda parte del penúltimo párrafo del inciso c) del artículo 30 de la ley del gravamen | D111: 0
C112: Deducción específica | D112: 0 | F112: =validaciones(D112,H112,0) ->  | H112: 0
C113: Cargas de familia
C114: Cónyuge | D114: 0 | F114: =validaciones(D114,H114,0) ->  | H114: =cargas_de_familia(4,Datos!$C$11,MONTH(Datos!$C$13),$D$12) -> 156320.63 | K114: =IF(K105-K108-K109>=D114,D114,K105-K108-K109) -> 0
C115: Cantidad de hijos e hijastros | D115: 0 | F115: =validaciones(D115,H115,0) ->  | H115: 99
C116: Deducción total hijos e hijastros | D116: 0 | H116: =cargas_de_familia(3,Datos!$C$11,MONTH(Datos!$C$13),$D$12)*D115 -> 0 | K116: =IF(K105-K108-K109-K114>=D116,D116,K105-K108-K109-K114) -> 0
C117: Cantidad de hijos e hijastros incapacitados para el trabajo | D117: 0 | F117: =validaciones(D117,H117,0) ->  | H117: 99
C118: Hijos / Hijastros incapacitados para el trabajo | D118: 0 | H118: =cargas_de_familia(5,Datos!$C$11,MONTH(Datos!$C$13),$D$12) -> 157666.16
C119: Total de cargas de familia | D119: =+D114+D116+D118 -> 0 | H119: 0
C120: TOTAL DEDUCCIONES PERSONALES | D120: =SUM(D108:D112,D119) -> 972534.74
C122: DETERMINACIÓN DEL IMPUESTO
C123: REMUNERACIÓN NETA SUJETA A IMPUESTO -antes de la deducción art. 46 L. 27541- | D123: 0
C124: Deducción inciso a) primer párrafo artículo 30 de la ley (cfr. art. 46 L. 27541) | D124: 0 | H124: 0 | K124: =IF(D123-K125<=0,0,IF(D123-K125<=H124,D123-K125,H124)) -> 0
C125: Deducción inciso c) primer párrafo artículo 30 de la ley (cfr. art. 46 L. 27541) | D125: 0 | H125: 0 | K125: =IF(D123<=H125,D123,H125) -> 0
C126: REMUNERACIÓN SUJETA A IMPUESTO | D126: =IF(+D72-D105-D120<0,0,+D72-D105-D120) -> 1488761.58
C127: Alícuota aplicable artículo 94 ley de impuesto a las ganancias | D127: =IF(OR(Datos!C11="Final",Datos!C11="Anual"),impuestoAlicuota(D126,D25*(1-G25)+D51*(1-G51),12),impuestoAlicuota(D126,D25*(1-G25)+D51*(1-G51),MONTH(D11))) -> 0.35
C128: Alícuota aplicable sin incluir horas extras | D128: =IF(OR(Datos!C11="Final",Datos!C11="Anual"),impuestoAlicuota(D126,0,12),impuestoAlicuota(D126,0,MONTH(D11))) -> 0.35
C129: IMPUESTO DETERMINADO | D129: =IF(D126<0,0,IF(OR(Datos!C11="Final",Datos!C11="Anual"),impuestoDeterminado(D126,D25*(1-G25)+D51*(1-G51),12),impuestoDeterminado(D126,D25*(1-G25)+D51*(1-G51),MONTH(D11)))) -> 390065.288
C130: Impuesto retenido | D130: 349339.29
C131: Pagos a cuenta - Impuesto sobre créditos y débitos | D131: 0 | F131: =IF(AND(Datos!$C$11="Informativa",D131<>0),"En la DDJJ informativa, este campo debe consignarse en cero (0)","") -> 
C132: Pagos a cuenta - Percepciones / Retenciones aduaneras | D132: 0 | F132: =IF(AND(Datos!$C$11="Informativa",D132<>0),"En la DDJJ informativa, este campo debe consignarse en cero (0)","") -> 
C133: Pagos a cuenta - RG (AFIP) 3819/2015 - Cancelaciones en efectivo | D133: 0 | F133: =IF(AND(Datos!$C$11="Informativa",D133<>0),"En la DDJJ informativa, este campo debe consignarse en cero (0)","") -> 
C134: Pagos a cuenta - Bono ley 27.424 | D134: 0 | F134: =IF(AND(Datos!$C$11="Informativa",D134<>0),"En la DDJJ informativa, este campo debe consignarse en cero (0)","") -> 
C135: Pagos a cuenta - RG 4815 [LEY 27.541 Art. 35 inciso a)] | D135: 40726 | F135: =IF(AND(Datos!$C$11="Informativa",D135<>0),"En la DDJJ informativa, este campo debe consignarse en cero (0)","") -> 
C136: Pagos a cuenta - RG 4815 [LEY 27.541 Art. 35 inciso b)] | D136: 0 | F136: =IF(AND(Datos!$C$11="Informativa",D136<>0),"En la DDJJ informativa, este campo debe consignarse en cero (0)","") -> 
C137: Pagos a cuenta - RG 4815 [LEY 27.541 Art. 35 inciso c)] | D137: 0 | F137: =IF(AND(Datos!$C$11="Informativa",D137<>0),"En la DDJJ informativa, este campo debe consignarse en cero (0)","") -> 
C138: Pagos a cuenta - RG 4815 [LEY 27.541 Art. 35 inciso d)] | D138: 0 | F138: =IF(AND(Datos!$C$11="Informativa",D138<>0),"En la DDJJ informativa, este campo debe consignarse en cero (0)","") -> 
C139: Pagos a cuenta - RG 4815 [LEY 27.541 Art. 35 inciso e)] | D139: 0 | F139: =IF(AND(Datos!$C$11="Informativa",D139<>0),"En la DDJJ informativa, este campo debe consignarse en cero (0)","") -> 
C140: Pagos a cuenta - Impuesto sobre créditos y débitos - sobre movimientos de fondos propios o de terceros | D140: 0 | F140: =IF(AND(Datos!$C$11="Informativa",D140<>0),"En la DDJJ informativa, este campo debe consignarse en cero (0)","") -> 
C141: Pagos a cuenta - Resolución General (AFIP) 3819/2015 - Cancelaciones en Efectivo -Servicios de transporte terrestre, aéreo y por vía acuática de pasajeros con destino fuera del país | D141: 0 | F141: =IF(AND(Datos!$C$11="Informativa",D141<>0),"En la DDJJ informativa, este campo debe consignarse en cero (0)","") -> 
C142: Total pagos a cuenta | D142: =SUM(D131:D141) -> 40726
C143: SALDO A PAGAR | D143: =+ROUND(D129,2)-D130-D142 -> 0

Sheet Empleado11
C3: LIQUIDACIÓN DE IMPUESTO A LAS GANANCIAS - 4ta. CATEGORÍA RELACIÓN DE DEPENDENCIA
C6: Empleado: Nombre y apellido | D6: ELZAURDIA FERNANDO MARTIN
C7: CUIL del empleado | D7: 20259476012 | F7: =cuitValidar(D7) -> CUIT/CUIL Válido
C8: ="Agente de Retención: " -> Agente de Retención: | D8: =Datos!C7&" - "&Datos!C5 -> 33711238269 - OPERACIONES AGROPORTUARIAS S.A.
C9: ="Período Fiscal: " -> Período Fiscal: | D9: =YEAR(Datos!C13) -> 2021
C10: Período trabajado (desde): | D10: 2021-01-01
C11: Período trabajado (hasta): | D11: 2021-09-25 | H11: =IF(MONTH(D11)>MONTH(Datos!C13),"El período trabajado no puede ser mayor al período que se informa (mes "&MONTH(Datos!C13)&")","") -> 
C12: Zona geográfica: | D12: Todo el país (excepto zona patagónica)
C13: Transporte a larga distancia | D13: No desarrolla la actividad
C14: Beneficio promocional 27424? | D14: No
C15: Beneficio de la ley 27549? | D15: No
C16: El trabajador labora bajo el régimen de teletrabajo (Ley 27555)? | D16: No
C17: El trabajador es personal militar en actividad? | D17: No
C19: REMUNERACIONES
C20: Abonadas por el agente de retención:
C21: Remuneración bruta gravada | D21: 2697517.05
C22: Retribuciones no habituales gravadas | D22: 0
C23: SAC primera cuota gravado | D23: 0
C24: SAC segunda cuota gravado | D24: 0
C25: Horas extras remuneración gravada | D25: 0 | G25: 0 | H25: % de retenciones
C26: Movilidad y viáticos remuneración gravada | D26: 0
C27: Material didáctico personal docente remuneración gravada | D27: 0
C28: Remuneración no alcanzada o exenta (sin horas extras) | D28: 0
C29: Remuneración exenta ley 27549 | D29: 0 | F29: =IF(AND($D$15="No",D29<>0),"Para que sea procedente el beneficio, modifique el valor en la celda D15","") -> 
C30: Retribuciones no habituales exentas o no alcanzadas | D30: 0
C31: Horas extras remuneración exenta | D31: 105903.28
C32: Movilidad y viáticos remuneración exenta | D32: 0
C33: Material didáctico personal docente remuneración exenta | D33: 0
C34: Bonos de productividad gravados | D34: 0
C35: Fallos de caja gravados | D35: 0
C36: Conceptos de similar naturaleza gravados | D36: 0
C37: Bonos de productividad exentos | D37: 0
C38: Fallos de caja exentos | D38: 0
C39: Conceptos de similar naturaleza exentos | D39: 0
C40: Compensación de gastos de teletrabajo exentos | D40: 0
C41: Personal militar - suplementos art. 57 ley 19.101 - exentos | D41: 0
C42: SAC primera cuota - No alcanzado o exento | D42: 0
C43: SAC segunda cuota - No alcanzado o exento | D43: 0
C44: Ajustes períodos anteriores - Remuneración gravada | D44: 0
C45: Ajustes períodos anteriores - Remuneración exenta / no alcanzada | D45: 0
C46: Otros empleos:
C47: Remuneración bruta gravada | D47: 0
C48: Retribuciones no habituales gravadas | D48: 0
C49: SAC primera cuota gravado | D49: 0
C50: SAC segunda cuota gravado | D50: 0
C51: Horas extras remuneración gravada | D51: 0 | G51: 0 | H51: % de retenciones
C52: Movilidad y viáticos remuneración gravada | D52: 0
C53: Material didáctico personal docente remuneración gravada | D53: 0
C54: Remuneración no alcanzada o exenta | D54: 0
C55: Remuneración exenta ley 27549 | D55: 0 | F55: =IF(AND($D$15="No",D55<>0),"Para que sea procedente el beneficio, modifique el valor en la celda D15","") -> 
C56: Retribuciones no habituales exentas o no alcanzadas | D56: 0
C57: Horas extras remuneración exenta o no alcanzada | D57: 0
C58: Movilidad y viáticos remuneración exenta o no alcanzada | D58: 0
C59: Material didáctico personal docente remuneración exenta o no alcanzada | D59: 0
C60: Bonos de productividad gravados | D60: 0
C61: Fallos de caja gravados | D61: 0
C62: Conceptos de similar naturaleza gravados | D62: 0
C63: Bonos de productividad exentos | D63: 0
C64: Fallos de caja exentos | D64: 0
C65: Conceptos de similar naturaleza exentos | D65: 0
C66: Compensación de gastos teletrabajo - exentos | D66: 0
C67: Personal militar - suplementos art. 57 Ley 19101 - exentos | D67: 0
C68: SAC primera cuota - No alcanzado o exento | D68: 0
C69: SAC segunda cuota - No alcanzado o exento | D69: 0
C70: Ajustes períodos anteriores - Remuneración gravada | D70: 0
C71: Ajustes períodos anteriores - Remuneración no alcanzada o exenta | D71: 0
C72: TOTAL REMUNERACIÓN GRAVADA | D72: =SUM(D21:E27,D44,D47:D53,D70) -> 2697517.05
C73: TOTAL REMUNERACIÓN NO ALCANZADA O EXENTA | D73: =SUM(D28:D43,D45,D54:D69,D71) -> 105903.28
C74: TOTAL REMUNERACIONES | D74: =IF(+D72+D73<0,0,D72+D73) -> 2803420.33 | E74: =+D72-D105 -> 2244097.57
C76: DEDUCCIONES GENERALES | H76: Topes máximos legales
C77: Aportes a fondos de jubilaciones, retiros, pensiones o subsidios que se destinen a cajas nacionales, provinciales o municipales | D77: 334027.9 | F77: =validaciones(D77,H77,0)&IF(D77>$D$74," El importe no puede ser mayor a la remuneración total","") -> 
C78: Aportes a fondos de jubilaciones, retiros, pensiones o subsidios que se destinen a cajas nacionales, provinciales o municipales por otros empleos | D78: 0 | F78: =validaciones(D78,H78,0)&IF(D78>$D$74," El importe no puede ser mayor a la remuneración total","") -> 
C79: Aportes a obra sociales | D79: 71577.41 | F79: =validaciones(D79,H79,0)&IF(D79>$D$74," El importe no puede ser mayor a la remuneración total","") -> 
C80: Aportes a obra sociales por otros empleos | D80: 0 | F80: =validaciones(D80,H80,0)&IF(D80>$D$74," El importe no puede ser mayor a la remuneración total","") -> 
C81: Cuota sindical | D81: 47814.17 | F81: =validaciones(D81,H81,0)&IF(D81>$D$74," El importe no puede ser mayor a la remuneración total","") -> 
C82: Cuota sindical por otros empleos | D82: 0 | F82: =validaciones(D82,H82,0)&IF(D82>$D$74," El importe no puede ser mayor a la remuneración total","") -> 
C83: Cuotas médico asistenciales | D83: 0 | F83: =validaciones(D83,H83,0) ->  | H83: =(D72-SUM(D77:D82,D84:D89,D91,D93:D94,D95:D103))*0.05 -> 112204.8785
C84: Primas de seguro para el caso de muerte | D84: 0 | F84: =validaciones(D84,H84,0)&IF(AND(Datos!$C$11="Informativa",D84<>0),"En la DDJJ informativa, este campo debe consignarse en cero (0)","") ->  | H84: =+Tablas!B2 -> 24000
C85: Primas por riesgo de muerte y de ahorro de seguros mixtos, excepto para los casos de seguros de retiro privados administrados por entidades sujetas al control de la Superintendencia de Seguros de la Nación | D85: 0 | F85: =validaciones(D85,H85,0)&IF(AND(Datos!$C$11="Informativa",D85<>0),"En la DDJJ informativa, este campo debe consignarse en cero (0)","") ->  | H85: =+H84 -> 24000
C86: Aportes a planes de seguro de retiro privados administrados por entidades sujetas al control de la Superintendencia de Seguros de la Nación | D86: 0 | F86: =validaciones(D86,H86,0)&IF(AND(Datos!$C$11="Informativa",D86<>0),"En la DDJJ informativa, este campo debe consignarse en cero (0)","") ->  | H86: =+H85 -> 24000
C87: Cuotapartes de fondos comunes de inversión constituidos con fines de retiro | D87: 0 | F87: =validaciones(D87,H87,0)&IF(D87<>0,"Deberá consignarse en cero (0), hasta que la Autoridad de Aplicación – CNV – autorice a las Entidades a funcionar e implemente el régimen.","") ->  | H87: 0
C88: Gastos de sepelio | D88: 0 | F88: =validaciones(D88,H88,0) ->  | H88: =+Tablas!B6 -> 996.23
C89: Gastos amortización e intereses rodado para corredores y viajantes de comercio | D89: 0 | F89: =validaciones(D89,H89,0)&IF(D89>$D$74," El importe no puede ser mayor a la remuneración total","") -> 
C90: Donaciones a fiscos nacional, provinciales y municipales, y a instituciones comprendidas en el artículo 26, incisos e) y f) de la ley | D90: 0 | F90: =validaciones(D90,H90,0) ->  | H90: =(D72-SUM(D77:D82,D84:D89,D91,D93:D94,D95:D103))*0.05 -> 112204.8785
C91: Descuentos obligatorios establecidos por ley nacional, provincial o municipal | D91: 0 | F91: =validaciones(D91,H91,0)&IF(D91>$D$74," El importe no puede ser mayor a la remuneración total","") -> 
C92: Honorarios por servicios de asistencia sanitaria, médica y paramédica | D92: 0 | F92: =validaciones(D92,H92,0)&IF(AND(Datos!$C$11="Informativa",D92<>0),"En la DDJJ informativa, este campo debe consignarse en cero (0)","") ->  | H92: =(D72-SUM(D77:D82,D84:D89,D91,D93:D94,D95:D103))*0.05 -> 112204.8785
C93: Intereses de créditos hipotecarios | D93: 0 | F93: =validaciones(D93,H93,0) ->  | H93: =+Tablas!B3 -> 20000
C94: Aportes al capital social o al fondo de riesgo de socios protectores de sociedades de garantía recíproca | D94: 0 | F94: =validaciones(D94,H94,0) -> 
C95: Alquileres de inmuebles destinados a casa habitación | D95: 0 | F95: =validaciones(D95,H95,0) ->  | H95: =IF(Datos!C11="Final",ROUND(Tablas!B4/12*12,2),ROUND(Tablas!B4/12*MONTH(Datos!C13),2)) -> 167678.4
C96: Empleados del servicio doméstico | D96: 0 | F96: =validaciones(D96,H96,0) ->  | H96: =Tablas!B4 -> 167678.4
C97: Gastos de movilidad, viáticos y otras compensaciones análogas abonados por el empleador | D97: 0 | F97: =validaciones(D97,H97,0) ->  | H97: =IF(D13="Desarrolla la actividad",Tablas!B4,Tablas!B4*0.4) -> 67071.36
C98: Gastos por adquisición de indumentaria y/o equipamiento de trabajo | D98: 0 | F98: =validaciones(D98,H98,0) -> 
C99: Otras deducciones - aportes a Cajas Complementarias de Previsión, Fondos Compensadores de Previsión o similares | D99: 0 | F99: =validaciones(D99,H99,0) -> 
C100: Otras deducciones - Aportes para jubilaciones, retiros y subsidios ANSES | D100: 0 | F100: =validaciones(D100,H100,0) -> 
C101: Otras deducciones - Cajas Provinciales o Municipales o de Previsión para Profesionales | D101: 0 | F101: =validaciones(D101,H101,0) -> 
C102: Otras deducciones - Actores - Retribución pagada a los representantes - RG 2442/08 | D102: 0 | F102: =validaciones(D102,H102,0) -> 
C103: Otras deducciones - Fondos compensadores de previsión | D103: 0 | F103: =validaciones(D103,H103,0) -> 
C104: Otras deducciones | D104: =+SUM(D99:E103) -> 0
C105: TOTAL DEDUCCIONES GENERALES | D105: =SUM(D77:E103) -> 453419.48 | K105: =+D72-D105 -> 2244097.57
C107: DEDUCCIONES PERSONALES | H107: Topes máximos legales
C108: Ganancia no imponible | D108: 167678.4 | F108: =validaciones(D108,H108,0) ->  | H108: =deducciones(1,Datos!C11,MONTH(Datos!$C$13),$D$12) -> 167678.4 | K108: =IF(K105-K109<=0,0,IF(K105-K109<=H108,K105-K109,H108)) -> 167678.4
C109: Deducción especial | D109: 804856.34 | F109: =validaciones(D109,H109,0) ->  | H109: =deducciones(2,Datos!$C$11,MONTH(Datos!$C$13),$D$12) -> 804856.34 | K109: =IF(K105<=H109,K105,H109) -> 804856.34
C110: Deducción Especial Incrementada Primera parte del penúltimo párrafo del inciso c) del artículo 30 de la ley del gravamen | D110: 0
C111: Deducción Especial Incrementada Segunda parte del penúltimo párrafo del inciso c) del artículo 30 de la ley del gravamen | D111: 28712
C112: Deducción específica | D112: 0 | F112: =validaciones(D112,H112,0) ->  | H112: 0
C113: Cargas de familia
C114: Cónyuge | D114: 156320.63 | F114: =validaciones(D114,H114,0) ->  | H114: =cargas_de_familia(4,Datos!$C$11,MONTH(Datos!$C$13),$D$12) -> 156320.63 | K114: =IF(K105-K108-K109>=D114,D114,K105-K108-K109) -> 156320.63
C115: Cantidad de hijos e hijastros | D115: 2 | F115: =validaciones(D115,H115,0) ->  | H115: 99
C116: Deducción total hijos e hijastros | D116: 157666.16 | H116: =cargas_de_familia(3,Datos!$C$11,MONTH(Datos!$C$13),$D$12)*D115 -> 157666.16 | K116: =IF(K105-K108-K109-K114>=D116,D116,K105-K108-K109-K114) -> 157666.16
C117: Cantidad de hijos e hijastros incapacitados para el trabajo | D117: 0 | F117: =validaciones(D117,H117,0) ->  | H117: 99
C118: Hijos / Hijastros incapacitados para el trabajo | D118: 0 | H118: =cargas_de_familia(5,Datos!$C$11,MONTH(Datos!$C$13),$D$12) -> 157666.16
C119: Total de cargas de familia | D119: =+D114+D116+D118 -> 313986.79 | H119: 0
C120: TOTAL DEDUCCIONES PERSONALES | D120: =SUM(D108:D112,D119) -> 1315233.53
C122: DETERMINACIÓN DEL IMPUESTO
C123: REMUNERACIÓN NETA SUJETA A IMPUESTO -antes de la deducción art. 46 L. 27541- | D123: 0
C124: Deducción inciso a) primer párrafo artículo 30 de la ley (cfr. art. 46 L. 27541) | D124: 0 | H124: 0 | K124: =IF(D123-K125<=0,0,IF(D123-K125<=H124,D123-K125,H124)) -> 0
C125: Deducción inciso c) primer párrafo artículo 30 de la ley (cfr. art. 46 L. 27541) | D125: 0 | H125: 0 | K125: =IF(D123<=H125,D123,H125) -> 0
C126: REMUNERACIÓN SUJETA A IMPUESTO | D126: =IF(+D72-D105-D120<0,0,+D72-D105-D120) -> 928864.04
C127: Alícuota aplicable artículo 94 ley de impuesto a las ganancias | D127: =IF(OR(Datos!C11="Final",Datos!C11="Anual"),impuestoAlicuota(D126,D25*(1-G25)+D51*(1-G51),12),impuestoAlicuota(D126,D25*(1-G25)+D51*(1-G51),MONTH(D11))) -> 0.31
C128: Alícuota aplicable sin incluir horas extras | D128: =IF(OR(Datos!C11="Final",Datos!C11="Anual"),impuestoAlicuota(D126,0,12),impuestoAlicuota(D126,0,MONTH(D11))) -> 0.31
C129: IMPUESTO DETERMINADO | D129: =IF(D126<0,0,IF(OR(Datos!C11="Final",Datos!C11="Anual"),impuestoDeterminado(D126,D25*(1-G25)+D51*(1-G51),12),impuestoDeterminado(D126,D25*(1-G25)+D51*(1-G51),MONTH(D11)))) -> 198247.4823
C130: Impuesto retenido | D130: 198247.48
C131: Pagos a cuenta - Impuesto sobre créditos y débitos | D131: 0 | F131: =IF(AND(Datos!$C$11="Informativa",D131<>0),"En la DDJJ informativa, este campo debe consignarse en cero (0)","") -> 
C132: Pagos a cuenta - Percepciones / Retenciones aduaneras | D132: 0 | F132: =IF(AND(Datos!$C$11="Informativa",D132<>0),"En la DDJJ informativa, este campo debe consignarse en cero (0)","") -> 
C133: Pagos a cuenta - RG (AFIP) 3819/2015 - Cancelaciones en efectivo | D133: 0 | F133: =IF(AND(Datos!$C$11="Informativa",D133<>0),"En la DDJJ informativa, este campo debe consignarse en cero (0)","") -> 
C134: Pagos a cuenta - Bono ley 27.424 | D134: 0 | F134: =IF(AND(Datos!$C$11="Informativa",D134<>0),"En la DDJJ informativa, este campo debe consignarse en cero (0)","") -> 
C135: Pagos a cuenta - RG 4815 [LEY 27.541 Art. 35 inciso a)] | D135: 0 | F135: =IF(AND(Datos!$C$11="Informativa",D135<>0),"En la DDJJ informativa, este campo debe consignarse en cero (0)","") -> 
C136: Pagos a cuenta - RG 4815 [LEY 27.541 Art. 35 inciso b)] | D136: 0 | F136: =IF(AND(Datos!$C$11="Informativa",D136<>0),"En la DDJJ informativa, este campo debe consignarse en cero (0)","") -> 
C137: Pagos a cuenta - RG 4815 [LEY 27.541 Art. 35 inciso c)] | D137: 0 | F137: =IF(AND(Datos!$C$11="Informativa",D137<>0),"En la DDJJ informativa, este campo debe consignarse en cero (0)","") -> 
C138: Pagos a cuenta - RG 4815 [LEY 27.541 Art. 35 inciso d)] | D138: 0 | F138: =IF(AND(Datos!$C$11="Informativa",D138<>0),"En la DDJJ informativa, este campo debe consignarse en cero (0)","") -> 
C139: Pagos a cuenta - RG 4815 [LEY 27.541 Art. 35 inciso e)] | D139: 0 | F139: =IF(AND(Datos!$C$11="Informativa",D139<>0),"En la DDJJ informativa, este campo debe consignarse en cero (0)","") -> 
C140: Pagos a cuenta - Impuesto sobre créditos y débitos - sobre movimientos de fondos propios o de terceros | D140: 0 | F140: =IF(AND(Datos!$C$11="Informativa",D140<>0),"En la DDJJ informativa, este campo debe consignarse en cero (0)","") -> 
C141: Pagos a cuenta - Resolución General (AFIP) 3819/2015 - Cancelaciones en Efectivo -Servicios de transporte terrestre, aéreo y por vía acuática de pasajeros con destino fuera del país | D141: 0 | F141: =IF(AND(Datos!$C$11="Informativa",D141<>0),"En la DDJJ informativa, este campo debe consignarse en cero (0)","") -> 
C142: Total pagos a cuenta | D142: =SUM(D131:D141) -> 0
C143: SALDO A PAGAR | D143: =+ROUND(D129,2)-D130-D142 -> 0

Sheet Empleado12
C3: LIQUIDACIÓN DE IMPUESTO A LAS GANANCIAS - 4ta. CATEGORÍA RELACIÓN DE DEPENDENCIA
C6: Empleado: Nombre y apellido | D6: RUIZ KLUG TOMAS GABRIEL
C7: CUIL del empleado | D7: 20388488116 | F7: =cuitValidar(D7) -> CUIT/CUIL Válido
C8: ="Agente de Retención: " -> Agente de Retención: | D8: =Datos!C7&" - "&Datos!C5 -> 33711238269 - OPERACIONES AGROPORTUARIAS S.A.
C9: ="Período Fiscal: " -> Período Fiscal: | D9: =YEAR(Datos!C13) -> 2021
C10: Período trabajado (desde): | D10: 2021-01-01
C11: Período trabajado (hasta): | D11: 2021-09-25 | H11: =IF(MONTH(D11)>MONTH(Datos!C13),"El período trabajado no puede ser mayor al período que se informa (mes "&MONTH(Datos!C13)&")","") -> 
C12: Zona geográfica: | D12: Todo el país (excepto zona patagónica)
C13: Transporte a larga distancia | D13: No desarrolla la actividad
C14: Beneficio promocional 27424? | D14: No
C15: Beneficio de la ley 27549? | D15: No
C16: El trabajador labora bajo el régimen de teletrabajo (Ley 27555)? | D16: No
C17: El trabajador es personal militar en actividad? | D17: No
C19: REMUNERACIONES
C20: Abonadas por el agente de retención:
C21: Remuneración bruta gravada | D21: 3666872.48
C22: Retribuciones no habituales gravadas | D22: 0
C23: SAC primera cuota gravado | D23: 0
C24: SAC segunda cuota gravado | D24: 0
C25: Horas extras remuneración gravada | D25: 0 | G25: 0 | H25: % de retenciones
C26: Movilidad y viáticos remuneración gravada | D26: 0
C27: Material didáctico personal docente remuneración gravada | D27: 0
C28: Remuneración no alcanzada o exenta (sin horas extras) | D28: 0
C29: Remuneración exenta ley 27549 | D29: 0 | F29: =IF(AND($D$15="No",D29<>0),"Para que sea procedente el beneficio, modifique el valor en la celda D15","") -> 
C30: Retribuciones no habituales exentas o no alcanzadas | D30: 0
C31: Horas extras remuneración exenta | D31: 321985.36
C32: Movilidad y viáticos remuneración exenta | D32: 0
C33: Material didáctico personal docente remuneración exenta | D33: 0
C34: Bonos de productividad gravados | D34: 0
C35: Fallos de caja gravados | D35: 0
C36: Conceptos de similar naturaleza gravados | D36: 0
C37: Bonos de productividad exentos | D37: 0
C38: Fallos de caja exentos | D38: 0
C39: Conceptos de similar naturaleza exentos | D39: 0
C40: Compensación de gastos de teletrabajo exentos | D40: 0
C41: Personal militar - suplementos art. 57 ley 19.101 - exentos | D41: 0
C42: SAC primera cuota - No alcanzado o exento | D42: 0
C43: SAC segunda cuota - No alcanzado o exento | D43: 0
C44: Ajustes períodos anteriores - Remuneración gravada | D44: 0
C45: Ajustes períodos anteriores - Remuneración exenta / no alcanzada | D45: 0
C46: Otros empleos:
C47: Remuneración bruta gravada | D47: 0
C48: Retribuciones no habituales gravadas | D48: 0
C49: SAC primera cuota gravado | D49: 0
C50: SAC segunda cuota gravado | D50: 0
C51: Horas extras remuneración gravada | D51: 0 | G51: 0 | H51: % de retenciones
C52: Movilidad y viáticos remuneración gravada | D52: 0
C53: Material didáctico personal docente remuneración gravada | D53: 0
C54: Remuneración no alcanzada o exenta | D54: 0
C55: Remuneración exenta ley 27549 | D55: 0 | F55: =IF(AND($D$15="No",D55<>0),"Para que sea procedente el beneficio, modifique el valor en la celda D15","") -> 
C56: Retribuciones no habituales exentas o no alcanzadas | D56: 0
C57: Horas extras remuneración exenta o no alcanzada | D57: 0
C58: Movilidad y viáticos remuneración exenta o no alcanzada | D58: 0
C59: Material didáctico personal docente remuneración exenta o no alcanzada | D59: 0
C60: Bonos de productividad gravados | D60: 0
C61: Fallos de caja gravados | D61: 0
C62: Conceptos de similar naturaleza gravados | D62: 0
C63: Bonos de productividad exentos | D63: 0
C64: Fallos de caja exentos | D64: 0
C65: Conceptos de similar naturaleza exentos | D65: 0
C66: Compensación de gastos teletrabajo - exentos | D66: 0
C67: Personal militar - suplementos art. 57 Ley 19101 - exentos | D67: 0
C68: SAC primera cuota - No alcanzado o exento | D68: 0
C69: SAC segunda cuota - No alcanzado o exento | D69: 0
C70: Ajustes períodos anteriores - Remuneración gravada | D70: 0
C71: Ajustes períodos anteriores - Remuneración no alcanzada o exenta | D71: 0
C72: TOTAL REMUNERACIÓN GRAVADA | D72: =SUM(D21:E27,D44,D47:D53,D70) -> 3666872.48
C73: TOTAL REMUNERACIÓN NO ALCANZADA O EXENTA | D73: =SUM(D28:D43,D45,D54:D69,D71) -> 321985.36
C74: TOTAL REMUNERACIONES | D74: =IF(+D72+D73<0,0,D72+D73) -> 3988857.84
C76: DEDUCCIONES GENERALES | H76: Topes máximos legales
C77: Aportes a fondos de jubilaciones, retiros, pensiones o subsidios que se destinen a cajas nacionales, provinciales o municipales | D77: 463242.11 | F77: =validaciones(D77,H77,0)&IF(D77>$D$74," El importe no puede ser mayor a la remuneración total","") -> 
C78: Aportes a fondos de jubilaciones, retiros, pensiones o subsidios que se destinen a cajas nacionales, provinciales o municipales por otros empleos | D78: 0 | F78: =validaciones(D78,H78,0)&IF(D78>$D$74," El importe no puede ser mayor a la remuneración total","") -> 
C79: Aportes a obra sociales | D79: 99266.17 | F79: =validaciones(D79,H79,0)&IF(D79>$D$74," El importe no puede ser mayor a la remuneración total","") -> 
C80: Aportes a obra sociales por otros empleos | D80: 0 | F80: =validaciones(D80,H80,0)&IF(D80>$D$74," El importe no puede ser mayor a la remuneración total","") -> 
C81: Cuota sindical | D81: 104089.24 | F81: =validaciones(D81,H81,0)&IF(D81>$D$74," El importe no puede ser mayor a la remuneración total","") -> 
C82: Cuota sindical por otros empleos | D82: 0 | F82: =validaciones(D82,H82,0)&IF(D82>$D$74," El importe no puede ser mayor a la remuneración total","") -> 
C83: Cuotas médico asistenciales | D83: 0 | F83: =validaciones(D83,H83,0) ->  | H83: =(D72-SUM(D77:D82,D84:D89,D91,D93:D94,D95:D103))*0.05 -> 150013.748
C84: Primas de seguro para el caso de muerte | D84: 0 | F84: =validaciones(D84,H84,0)&IF(AND(Datos!$C$11="Informativa",D84<>0),"En la DDJJ informativa, este campo debe consignarse en cero (0)","") ->  | H84: =+Tablas!B2 -> 24000
C85: Primas por riesgo de muerte y de ahorro de seguros mixtos, excepto para los casos de seguros de retiro privados administrados por entidades sujetas al control de la Superintendencia de Seguros de la Nación | D85: 0 | F85: =validaciones(D85,H85,0)&IF(AND(Datos!$C$11="Informativa",D85<>0),"En la DDJJ informativa, este campo debe consignarse en cero (0)","") ->  | H85: =+H84 -> 24000
C86: Aportes a planes de seguro de retiro privados administrados por entidades sujetas al control de la Superintendencia de Seguros de la Nación | D86: 0 | F86: =validaciones(D86,H86,0)&IF(AND(Datos!$C$11="Informativa",D86<>0),"En la DDJJ informativa, este campo debe consignarse en cero (0)","") ->  | H86: =+H85 -> 24000
C87: Cuotapartes de fondos comunes de inversión constituidos con fines de retiro | D87: 0 | F87: =validaciones(D87,H87,0)&IF(D87<>0,"Deberá consignarse en cero (0), hasta que la Autoridad de Aplicación – CNV – autorice a las Entidades a funcionar e implemente el régimen.","") ->  | H87: 0
C88: Gastos de sepelio | D88: 0 | F88: =validaciones(D88,H88,0) ->  | H88: =+Tablas!B6 -> 996.23
C89: Gastos amortización e intereses rodado para corredores y viajantes de comercio | D89: 0 | F89: =validaciones(D89,H89,0)&IF(D89>$D$74," El importe no puede ser mayor a la remuneración total","") -> 
C90: Donaciones a fiscos nacional, provinciales y municipales, y a instituciones comprendidas en el artículo 26, incisos e) y f) de la ley | D90: 0 | F90: =validaciones(D90,H90,0) ->  | H90: =(D72-SUM(D77:D82,D84:D89,D91,D93:D94,D95:D103))*0.05 -> 150013.748
C91: Descuentos obligatorios establecidos por ley nacional, provincial o municipal | D91: 0 | F91: =validaciones(D91,H91,0)&IF(D91>$D$74," El importe no puede ser mayor a la remuneración total","") -> 
C92: Honorarios por servicios de asistencia sanitaria, médica y paramédica | D92: 0 | F92: =validaciones(D92,H92,0)&IF(AND(Datos!$C$11="Informativa",D92<>0),"En la DDJJ informativa, este campo debe consignarse en cero (0)","") ->  | H92: =(D72-SUM(D77:D82,D84:D89,D91,D93:D94,D95:D103))*0.05 -> 150013.748
C93: Intereses de créditos hipotecarios | D93: 0 | F93: =validaciones(D93,H93,0) ->  | H93: =+Tablas!B3 -> 20000
C94: Aportes al capital social o al fondo de riesgo de socios protectores de sociedades de garantía recíproca | D94: 0 | F94: =validaciones(D94,H94,0) -> 
C95: Alquileres de inmuebles destinados a casa habitación | D95: 0 | F95: =validaciones(D95,H95,0) ->  | H95: =IF(Datos!C11="Final",ROUND(Tablas!B4/12*12,2),ROUND(Tablas!B4/12*MONTH(Datos!C13),2)) -> 167678.4
C96: Empleados del servicio doméstico | D96: 0 | F96: =validaciones(D96,H96,0) ->  | H96: =Tablas!B4 -> 167678.4
C97: Gastos de movilidad, viáticos y otras compensaciones análogas abonados por el empleador | D97: 0 | F97: =validaciones(D97,H97,0) ->  | H97: =IF(D13="Desarrolla la actividad",Tablas!B4,Tablas!B4*0.4) -> 67071.36
C98: Gastos por adquisición de indumentaria y/o equipamiento de trabajo | D98: 0 | F98: =validaciones(D98,H98,0) -> 
C99: Otras deducciones - aportes a Cajas Complementarias de Previsión, Fondos Compensadores de Previsión o similares | D99: 0 | F99: =validaciones(D99,H99,0) -> 
C100: Otras deducciones - Aportes para jubilaciones, retiros y subsidios ANSES | D100: 0 | F100: =validaciones(D100,H100,0) -> 
C101: Otras deducciones - Cajas Provinciales o Municipales o de Previsión para Profesionales | D101: 0 | F101: =validaciones(D101,H101,0) -> 
C102: Otras deducciones - Actores - Retribución pagada a los representantes - RG 2442/08 | D102: 0 | F102: =validaciones(D102,H102,0) -> 
C103: Otras deducciones - Fondos compensadores de previsión | D103: 0 | F103: =validaciones(D103,H103,0) -> 
C104: Otras deducciones | D104: =+SUM(D99:E103) -> 0
C105: TOTAL DEDUCCIONES GENERALES | D105: =SUM(D77:E103) -> 666597.52 | K105: =+D72-D105 -> 3000274.96
C107: DEDUCCIONES PERSONALES | H107: Topes máximos legales
C108: Ganancia no imponible | D108: 167678.4 | F108: =validaciones(D108,H108,0) ->  | H108: =deducciones(1,Datos!C11,MONTH(Datos!$C$13),$D$12) -> 167678.4 | K108: =IF(K105-K109<=0,0,IF(K105-K109<=H108,K105-K109,H108)) -> 167678.4
C109: Deducción especial | D109: 804856.34 | F109: =validaciones(D109,H109,0) ->  | H109: =deducciones(2,Datos!$C$11,MONTH(Datos!$C$13),$D$12) -> 804856.34 | K109: =IF(K105<=H109,K105,H109) -> 804856.34
C110: Deducción Especial Incrementada Primera parte del penúltimo párrafo del inciso c) del artículo 30 de la ley del gravamen | D110: 0
C111: Deducción Especial Incrementada Segunda parte del penúltimo párrafo del inciso c) del artículo 30 de la ley del gravamen | D111: 0
C112: Deducción específica | D112: 0 | F112: =validaciones(D112,H112,0) ->  | H112: 0
C113: Cargas de familia
C114: Cónyuge | D114: 0 | F114: =validaciones(D114,H114,0) ->  | H114: =cargas_de_familia(4,Datos!$C$11,MONTH(Datos!$C$13),$D$12) -> 156320.63 | K114: =IF(K105-K108-K109>=D114,D114,K105-K108-K109) -> 0
C115: Cantidad de hijos e hijastros | D115: 0 | F115: =validaciones(D115,H115,0) ->  | H115: 99
C116: Deducción total hijos e hijastros | D116: 0 | H116: =cargas_de_familia(3,Datos!$C$11,MONTH(Datos!$C$13),$D$12)*D115 -> 0 | K116: =IF(K105-K108-K109-K114>=D116,D116,K105-K108-K109-K114) -> 0
C117: Cantidad de hijos e hijastros incapacitados para el trabajo | D117: 0 | F117: =validaciones(D117,H117,0) ->  | H117: 99
C118: Hijos / Hijastros incapacitados para el trabajo | D118: 0 | H118: =cargas_de_familia(5,Datos!$C$11,MONTH(Datos!$C$13),$D$12) -> 157666.16
C119: Total de cargas de familia | D119: =+D114+D116+D118 -> 0 | H119: 0
C120: TOTAL DEDUCCIONES PERSONALES | D120: =SUM(D108:D112,D119) -> 972534.74
C122: DETERMINACIÓN DEL IMPUESTO
C123: REMUNERACIÓN NETA SUJETA A IMPUESTO -antes de la deducción art. 46 L. 27541- | D123: 0
C124: Deducción inciso a) primer párrafo artículo 30 de la ley (cfr. art. 46 L. 27541) | D124: 0 | H124: 0 | K124: =IF(D123-K125<=0,0,IF(D123-K125<=H124,D123-K125,H124)) -> 0
C125: Deducción inciso c) primer párrafo artículo 30 de la ley (cfr. art. 46 L. 27541) | D125: 0 | H125: 0 | K125: =IF(D123<=H125,D123,H125) -> 0
C126: REMUNERACIÓN SUJETA A IMPUESTO | D126: =IF(+D72-D105-D120<0,0,+D72-D105-D120) -> 2027740.22
C127: Alícuota aplicable artículo 94 ley de impuesto a las ganancias | D127: =IF(OR(Datos!C11="Final",Datos!C11="Anual"),impuestoAlicuota(D126,D25*(1-G25)+D51*(1-G51),12),impuestoAlicuota(D126,D25*(1-G25)+D51*(1-G51),MONTH(D11))) -> 0.35
C128: Alícuota aplicable sin incluir horas extras | D128: =IF(OR(Datos!C11="Final",Datos!C11="Anual"),impuestoAlicuota(D126,0,12),impuestoAlicuota(D126,0,MONTH(D11))) -> 0.35
C129: IMPUESTO DETERMINADO | D129: =IF(D126<0,0,IF(OR(Datos!C11="Final",Datos!C11="Anual"),impuestoDeterminado(D126,D25*(1-G25)+D51*(1-G51),12),impuestoDeterminado(D126,D25*(1-G25)+D51*(1-G51),MONTH(D11)))) -> 578707.812
C130: Impuesto retenido | D130: 578707.81
C131: Pagos a cuenta - Impuesto sobre créditos y débitos | D131: 0 | F131: =IF(AND(Datos!$C$11="Informativa",D131<>0),"En la DDJJ informativa, este campo debe consignarse en cero (0)","") -> 
C132: Pagos a cuenta - Percepciones / Retenciones aduaneras | D132: 0 | F132: =IF(AND(Datos!$C$11="Informativa",D132<>0),"En la DDJJ informativa, este campo debe consignarse en cero (0)","") -> 
C133: Pagos a cuenta - RG (AFIP) 3819/2015 - Cancelaciones en efectivo | D133: 0 | F133: =IF(AND(Datos!$C$11="Informativa",D133<>0),"En la DDJJ informativa, este campo debe consignarse en cero (0)","") -> 
C134: Pagos a cuenta - Bono ley 27.424 | D134: 0 | F134: =IF(AND(Datos!$C$11="Informativa",D134<>0),"En la DDJJ informativa, este campo debe consignarse en cero (0)","") -> 
C135: Pagos a cuenta - RG 4815 [LEY 27.541 Art. 35 inciso a)] | D135: 0 | F135: =IF(AND(Datos!$C$11="Informativa",D135<>0),"En la DDJJ informativa, este campo debe consignarse en cero (0)","") -> 
C136: Pagos a cuenta - RG 4815 [LEY 27.541 Art. 35 inciso b)] | D136: 0 | F136: =IF(AND(Datos!$C$11="Informativa",D136<>0),"En la DDJJ informativa, este campo debe consignarse en cero (0)","") -> 
C137: Pagos a cuenta - RG 4815 [LEY 27.541 Art. 35 inciso c)] | D137: 0 | F137: =IF(AND(Datos!$C$11="Informativa",D137<>0),"En la DDJJ informativa, este campo debe consignarse en cero (0)","") -> 
C138: Pagos a cuenta - RG 4815 [LEY 27.541 Art. 35 inciso d)] | D138: 0 | F138: =IF(AND(Datos!$C$11="Informativa",D138<>0),"En la DDJJ informativa, este campo debe consignarse en cero (0)","") -> 
C139: Pagos a cuenta - RG 4815 [LEY 27.541 Art. 35 inciso e)] | D139: 0 | F139: =IF(AND(Datos!$C$11="Informativa",D139<>0),"En la DDJJ informativa, este campo debe consignarse en cero (0)","") -> 
C140: Pagos a cuenta - Impuesto sobre créditos y débitos - sobre movimientos de fondos propios o de terceros | D140: 0 | F140: =IF(AND(Datos!$C$11="Informativa",D140<>0),"En la DDJJ informativa, este campo debe consignarse en cero (0)","") -> 
C141: Pagos a cuenta - Resolución General (AFIP) 3819/2015 - Cancelaciones en Efectivo -Servicios de transporte terrestre, aéreo y por vía acuática de pasajeros con destino fuera del país | D141: 0 | F141: =IF(AND(Datos!$C$11="Informativa",D141<>0),"En la DDJJ informativa, este campo debe consignarse en cero (0)","") -> 
C142: Total pagos a cuenta | D142: =SUM(D131:D141) -> 0
C143: SALDO A PAGAR | D143: =+ROUND(D129,2)-D130-D142 -> 0

Sheet Empleado13
C3: LIQUIDACIÓN DE IMPUESTO A LAS GANANCIAS - 4ta. CATEGORÍA RELACIÓN DE DEPENDENCIA
C6: Empleado: Nombre y apellido | D6: HERRERO AGUSTIN
C7: CUIL del empleado | D7: 20316239391 | F7: =cuitValidar(D7) -> CUIT/CUIL Válido
C8: ="Agente de Retención: " -> Agente de Retención: | D8: =Datos!C7&" - "&Datos!C5 -> 33711238269 - OPERACIONES AGROPORTUARIAS S.A.
C9: ="Período Fiscal: " -> Período Fiscal: | D9: =YEAR(Datos!C13) -> 2021
C10: Período trabajado (desde): | D10: 2021-01-01
C11: Período trabajado (hasta): | D11: 2021-09-25 | H11: =IF(MONTH(D11)>MONTH(Datos!C13),"El período trabajado no puede ser mayor al período que se informa (mes "&MONTH(Datos!C13)&")","") -> 
C12: Zona geográfica: | D12: Todo el país (excepto zona patagónica)
C13: Transporte a larga distancia | D13: No desarrolla la actividad
C14: Beneficio promocional 27424? | D14: No
C15: Beneficio de la ley 27549? | D15: No
C16: El trabajador labora bajo el régimen de teletrabajo (Ley 27555)? | D16: No
C17: El trabajador es personal militar en actividad? | D17: No
C19: REMUNERACIONES
C20: Abonadas por el agente de retención:
C21: Remuneración bruta gravada | D21: 2404209.67
C22: Retribuciones no habituales gravadas | D22: 0
C23: SAC primera cuota gravado | D23: 0
C24: SAC segunda cuota gravado | D24: 0
C25: Horas extras remuneración gravada | D25: 0 | G25: 0 | H25: % de retenciones
C26: Movilidad y viáticos remuneración gravada | D26: 0
C27: Material didáctico personal docente remuneración gravada | D27: 0
C28: Remuneración no alcanzada o exenta (sin horas extras) | D28: 0
C29: Remuneración exenta ley 27549 | D29: 0 | F29: =IF(AND($D$15="No",D29<>0),"Para que sea procedente el beneficio, modifique el valor en la celda D15","") -> 
C30: Retribuciones no habituales exentas o no alcanzadas | D30: 0
C31: Horas extras remuneración exenta | D31: 88929.65
C32: Movilidad y viáticos remuneración exenta | D32: 0
C33: Material didáctico personal docente remuneración exenta | D33: 0
C34: Bonos de productividad gravados | D34: 0
C35: Fallos de caja gravados | D35: 0
C36: Conceptos de similar naturaleza gravados | D36: 0
C37: Bonos de productividad exentos | D37: 0
C38: Fallos de caja exentos | D38: 0
C39: Conceptos de similar naturaleza exentos | D39: 0
C40: Compensación de gastos de teletrabajo exentos | D40: 0
C41: Personal militar - suplementos art. 57 ley 19.101 - exentos | D41: 0
C42: SAC primera cuota - No alcanzado o exento | D42: 0
C43: SAC segunda cuota - No alcanzado o exento | D43: 0
C44: Ajustes períodos anteriores - Remuneración gravada | D44: 0
C45: Ajustes períodos anteriores - Remuneración exenta / no alcanzada | D45: 0
C46: Otros empleos:
C47: Remuneración bruta gravada | D47: 0
C48: Retribuciones no habituales gravadas | D48: 0
C49: SAC primera cuota gravado | D49: 0
C50: SAC segunda cuota gravado | D50: 0
C51: Horas extras remuneración gravada | D51: 0 | G51: 0 | H51: % de retenciones
C52: Movilidad y viáticos remuneración gravada | D52: 0
C53: Material didáctico personal docente remuneración gravada | D53: 0
C54: Remuneración no alcanzada o exenta | D54: 0
C55: Remuneración exenta ley 27549 | D55: 0 | F55: =IF(AND($D$15="No",D55<>0),"Para que sea procedente el beneficio, modifique el valor en la celda D15","") -> 
C56: Retribuciones no habituales exentas o no alcanzadas | D56: 0
C57: Horas extras remuneración exenta o no alcanzada | D57: 0
C58: Movilidad y viáticos remuneración exenta o no alcanzada | D58: 0
C59: Material didáctico personal docente remuneración exenta o no alcanzada | D59: 0
C60: Bonos de productividad gravados | D60: 0
C61: Fallos de caja gravados | D61: 0
C62: Conceptos de similar naturaleza gravados | D62: 0
C63: Bonos de productividad exentos | D63: 0
C64: Fallos de caja exentos | D64: 0
C65: Conceptos de similar naturaleza exentos | D65: 0
C66: Compensación de gastos teletrabajo - exentos | D66: 0
C67: Personal militar - suplementos art. 57 Ley 19101 - exentos | D67: 0
C68: SAC primera cuota - No alcanzado o exento | D68: 0
C69: SAC segunda cuota - No alcanzado o exento | D69: 0
C70: Ajustes períodos anteriores - Remuneración gravada | D70: 0
C71: Ajustes períodos anteriores - Remuneración no alcanzada o exenta | D71: 0
C72: TOTAL REMUNERACIÓN GRAVADA | D72: =SUM(D21:E27,D44,D47:D53,D70) -> 2404209.67
C73: TOTAL REMUNERACIÓN NO ALCANZADA O EXENTA | D73: =SUM(D28:D43,D45,D54:D69,D71) -> 88929.65
C74: TOTAL REMUNERACIONES | D74: =IF(+D72+D73<0,0,D72+D73) -> 2493139.32
C76: DEDUCCIONES GENERALES | H76: Topes máximos legales
C77: Aportes a fondos de jubilaciones, retiros, pensiones o subsidios que se destinen a cajas nacionales, provinciales o municipales | D77: 301292.82 | F77: =validaciones(D77,H77,0)&IF(D77>$D$74," El importe no puede ser mayor a la remuneración total","") -> 
C78: Aportes a fondos de jubilaciones, retiros, pensiones o subsidios que se destinen a cajas nacionales, provinciales o municipales por otros empleos | D78: 0 | F78: =validaciones(D78,H78,0)&IF(D78>$D$74," El importe no puede ser mayor a la remuneración total","") -> 
C79: Aportes a obra sociales | D79: 64562.75 | F79: =validaciones(D79,H79,0)&IF(D79>$D$74," El importe no puede ser mayor a la remuneración total","") -> 
C80: Aportes a obra sociales por otros empleos | D80: 0 | F80: =validaciones(D80,H80,0)&IF(D80>$D$74," El importe no puede ser mayor a la remuneración total","") -> 
C81: Cuota sindical | D81: 57568.28 | F81: =validaciones(D81,H81,0)&IF(D81>$D$74," El importe no puede ser mayor a la remuneración total","") -> 
C82: Cuota sindical por otros empleos | D82: 0 | F82: =validaciones(D82,H82,0)&IF(D82>$D$74," El importe no puede ser mayor a la remuneración total","") -> 
C83: Cuotas médico asistenciales | D83: 0 | F83: =validaciones(D83,H83,0) ->  | H83: =(D72-SUM(D77:D82,D84:D89,D91,D93:D94,D95:D103))*0.05 -> 99039.291
C84: Primas de seguro para el caso de muerte | D84: 0 | F84: =validaciones(D84,H84,0)&IF(AND(Datos!$C$11="Informativa",D84<>0),"En la DDJJ informativa, este campo debe consignarse en cero (0)","") ->  | H84: =+Tablas!B2 -> 24000
C85: Primas por riesgo de muerte y de ahorro de seguros mixtos, excepto para los casos de seguros de retiro privados administrados por entidades sujetas al control de la Superintendencia de Seguros de la Nación | D85: 0 | F85: =validaciones(D85,H85,0)&IF(AND(Datos!$C$11="Informativa",D85<>0),"En la DDJJ informativa, este campo debe consignarse en cero (0)","") ->  | H85: =+H84 -> 24000
C86: Aportes a planes de seguro de retiro privados administrados por entidades sujetas al control de la Superintendencia de Seguros de la Nación | D86: 0 | F86: =validaciones(D86,H86,0)&IF(AND(Datos!$C$11="Informativa",D86<>0),"En la DDJJ informativa, este campo debe consignarse en cero (0)","") ->  | H86: =+H85 -> 24000
C87: Cuotapartes de fondos comunes de inversión constituidos con fines de retiro | D87: 0 | F87: =validaciones(D87,H87,0)&IF(D87<>0,"Deberá consignarse en cero (0), hasta que la Autoridad de Aplicación – CNV – autorice a las Entidades a funcionar e implemente el régimen.","") ->  | H87: 0
C88: Gastos de sepelio | D88: 0 | F88: =validaciones(D88,H88,0) ->  | H88: =+Tablas!B6 -> 996.23
C89: Gastos amortización e intereses rodado para corredores y viajantes de comercio | D89: 0 | F89: =validaciones(D89,H89,0)&IF(D89>$D$74," El importe no puede ser mayor a la remuneración total","") -> 
C90: Donaciones a fiscos nacional, provinciales y municipales, y a instituciones comprendidas en el artículo 26, incisos e) y f) de la ley | D90: 3600 | F90: =validaciones(D90,H90,0) ->  | H90: =(D72-SUM(D77:D82,D84:D89,D91,D93:D94,D95:D103))*0.05 -> 99039.291
C91: Descuentos obligatorios establecidos por ley nacional, provincial o municipal | D91: 0 | F91: =validaciones(D91,H91,0)&IF(D91>$D$74," El importe no puede ser mayor a la remuneración total","") -> 
C92: Honorarios por servicios de asistencia sanitaria, médica y paramédica | D92: 0 | F92: =validaciones(D92,H92,0)&IF(AND(Datos!$C$11="Informativa",D92<>0),"En la DDJJ informativa, este campo debe consignarse en cero (0)","") ->  | H92: =(D72-SUM(D77:D82,D84:D89,D91,D93:D94,D95:D103))*0.05 -> 99039.291
C93: Intereses de créditos hipotecarios | D93: 0 | F93: =validaciones(D93,H93,0) ->  | H93: =+Tablas!B3 -> 20000
C94: Aportes al capital social o al fondo de riesgo de socios protectores de sociedades de garantía recíproca | D94: 0 | F94: =validaciones(D94,H94,0) -> 
C95: Alquileres de inmuebles destinados a casa habitación | D95: 0 | F95: =validaciones(D95,H95,0) ->  | H95: =IF(Datos!C11="Final",ROUND(Tablas!B4/12*12,2),ROUND(Tablas!B4/12*MONTH(Datos!C13),2)) -> 167678.4
C96: Empleados del servicio doméstico | D96: 0 | F96: =validaciones(D96,H96,0) ->  | H96: =Tablas!B4 -> 167678.4
C97: Gastos de movilidad, viáticos y otras compensaciones análogas abonados por el empleador | D97: 0 | F97: =validaciones(D97,H97,0) ->  | H97: =IF(D13="Desarrolla la actividad",Tablas!B4,Tablas!B4*0.4) -> 67071.36
C98: Gastos por adquisición de indumentaria y/o equipamiento de trabajo | D98: 0 | F98: =validaciones(D98,H98,0) -> 
C99: Otras deducciones - aportes a Cajas Complementarias de Previsión, Fondos Compensadores de Previsión o similares | D99: 0 | F99: =validaciones(D99,H99,0) -> 
C100: Otras deducciones - Aportes para jubilaciones, retiros y subsidios ANSES | D100: 0 | F100: =validaciones(D100,H100,0) -> 
C101: Otras deducciones - Cajas Provinciales o Municipales o de Previsión para Profesionales | D101: 0 | F101: =validaciones(D101,H101,0) -> 
C102: Otras deducciones - Actores - Retribución pagada a los representantes - RG 2442/08 | D102: 0 | F102: =validaciones(D102,H102,0) -> 
C103: Otras deducciones - Fondos compensadores de previsión | D103: 0 | F103: =validaciones(D103,H103,0) -> 
C104: Otras deducciones | D104: =+SUM(D99:E103) -> 0
C105: TOTAL DEDUCCIONES GENERALES | D105: =SUM(D77:E103) -> 427023.85 | K105: =+D72-D105 -> 1977185.82
C107: DEDUCCIONES PERSONALES | H107: Topes máximos legales
C108: Ganancia no imponible | D108: 167678.4 | F108: =validaciones(D108,H108,0) ->  | H108: =deducciones(1,Datos!C11,MONTH(Datos!$C$13),$D$12) -> 167678.4 | K108: =IF(K105-K109<=0,0,IF(K105-K109<=H108,K105-K109,H108)) -> 167678.4
C109: Deducción especial | D109: 804856.34 | F109: =validaciones(D109,H109,0) ->  | H109: =deducciones(2,Datos!$C$11,MONTH(Datos!$C$13),$D$12) -> 804856.34 | K109: =IF(K105<=H109,K105,H109) -> 804856.34
C110: Deducción Especial Incrementada Primera parte del penúltimo párrafo del inciso c) del artículo 30 de la ley del gravamen | D110: 740867.81
C111: Deducción Especial Incrementada Segunda parte del penúltimo párrafo del inciso c) del artículo 30 de la ley del gravamen | D111: 37495
C112: Deducción específica | D112: 0 | F112: =validaciones(D112,H112,0) ->  | H112: 0
C113: Cargas de familia
C114: Cónyuge | D114: 0 | F114: =validaciones(D114,H114,0) ->  | H114: =cargas_de_familia(4,Datos!$C$11,MONTH(Datos!$C$13),$D$12) -> 156320.63 | K114: =IF(K105-K108-K109>=D114,D114,K105-K108-K109) -> 0
C115: Cantidad de hijos e hijastros | D115: 0 | F115: =validaciones(D115,H115,0) ->  | H115: 99
C116: Deducción total hijos e hijastros | D116: 0 | H116: =cargas_de_familia(3,Datos!$C$11,MONTH(Datos!$C$13),$D$12)*D115 -> 0 | K116: =IF(K105-K108-K109-K114>=D116,D116,K105-K108-K109-K114) -> 0
C117: Cantidad de hijos e hijastros incapacitados para el trabajo | D117: 0 | F117: =validaciones(D117,H117,0) ->  | H117: 99
C118: Hijos / Hijastros incapacitados para el trabajo | D118: 0 | H118: =cargas_de_familia(5,Datos!$C$11,MONTH(Datos!$C$13),$D$12) -> 157666.16
C119: Total de cargas de familia | D119: =+D114+D116+D118 -> 0 | H119: 0
C120: TOTAL DEDUCCIONES PERSONALES | D120: =SUM(D108:D112,D119) -> 1750897.55
C122: DETERMINACIÓN DEL IMPUESTO
C123: REMUNERACIÓN NETA SUJETA A IMPUESTO -antes de la deducción art. 46 L. 27541- | D123: 0
C124: Deducción inciso a) primer párrafo artículo 30 de la ley (cfr. art. 46 L. 27541) | D124: 0 | H124: 0 | K124: =IF(D123-K125<=0,0,IF(D123-K125<=H124,D123-K125,H124)) -> 0
C125: Deducción inciso c) primer párrafo artículo 30 de la ley (cfr. art. 46 L. 27541) | D125: 0 | H125: 0 | K125: =IF(D123<=H125,D123,H125) -> 0
C126: REMUNERACIÓN SUJETA A IMPUESTO | D126: =IF(+D72-D105-D120<0,0,+D72-D105-D120) -> 226288.27
C127: Alícuota aplicable artículo 94 ley de impuesto a las ganancias | D127: =IF(OR(Datos!C11="Final",Datos!C11="Anual"),impuestoAlicuota(D126,D25*(1-G25)+D51*(1-G51),12),impuestoAlicuota(D126,D25*(1-G25)+D51*(1-G51),MONTH(D11))) -> 0.15
C128: Alícuota aplicable sin incluir horas extras | D128: =IF(OR(Datos!C11="Final",Datos!C11="Anual"),impuestoAlicuota(D126,0,12),impuestoAlicuota(D126,0,MONTH(D11))) -> 0.15
C129: IMPUESTO DETERMINADO | D129: =IF(D126<0,0,IF(OR(Datos!C11="Final",Datos!C11="Anual"),impuestoDeterminado(D126,D25*(1-G25)+D51*(1-G51),12),impuestoDeterminado(D126,D25*(1-G25)+D51*(1-G51),MONTH(D11)))) -> 21682.041
C130: Impuesto retenido | D130: 21682.04
C131: Pagos a cuenta - Impuesto sobre créditos y débitos | D131: 0 | F131: =IF(AND(Datos!$C$11="Informativa",D131<>0),"En la DDJJ informativa, este campo debe consignarse en cero (0)","") -> 
C132: Pagos a cuenta - Percepciones / Retenciones aduaneras | D132: 0 | F132: =IF(AND(Datos!$C$11="Informativa",D132<>0),"En la DDJJ informativa, este campo debe consignarse en cero (0)","") -> 
C133: Pagos a cuenta - RG (AFIP) 3819/2015 - Cancelaciones en efectivo | D133: 0 | F133: =IF(AND(Datos!$C$11="Informativa",D133<>0),"En la DDJJ informativa, este campo debe consignarse en cero (0)","") -> 
C134: Pagos a cuenta - Bono ley 27.424 | D134: 0 | F134: =IF(AND(Datos!$C$11="Informativa",D134<>0),"En la DDJJ informativa, este campo debe consignarse en cero (0)","") -> 
C135: Pagos a cuenta - RG 4815 [LEY 27.541 Art. 35 inciso a)] | D135: 0 | F135: =IF(AND(Datos!$C$11="Informativa",D135<>0),"En la DDJJ informativa, este campo debe consignarse en cero (0)","") -> 
C136: Pagos a cuenta - RG 4815 [LEY 27.541 Art. 35 inciso b)] | D136: 0 | F136: =IF(AND(Datos!$C$11="Informativa",D136<>0),"En la DDJJ informativa, este campo debe consignarse en cero (0)","") -> 
C137: Pagos a cuenta - RG 4815 [LEY 27.541 Art. 35 inciso c)] | D137: 0 | F137: =IF(AND(Datos!$C$11="Informativa",D137<>0),"En la DDJJ informativa, este campo debe consignarse en cero (0)","") -> 
C138: Pagos a cuenta - RG 4815 [LEY 27.541 Art. 35 inciso d)] | D138: 0 | F138: =IF(AND(Datos!$C$11="Informativa",D138<>0),"En la DDJJ informativa, este campo debe consignarse en cero (0)","") -> 
C139: Pagos a cuenta - RG 4815 [LEY 27.541 Art. 35 inciso e)] | D139: 0 | F139: =IF(AND(Datos!$C$11="Informativa",D139<>0),"En la DDJJ informativa, este campo debe consignarse en cero (0)","") -> 
C140: Pagos a cuenta - Impuesto sobre créditos y débitos - sobre movimientos de fondos propios o de terceros | D140: 0 | F140: =IF(AND(Datos!$C$11="Informativa",D140<>0),"En la DDJJ informativa, este campo debe consignarse en cero (0)","") -> 
C141: Pagos a cuenta - Resolución General (AFIP) 3819/2015 - Cancelaciones en Efectivo -Servicios de transporte terrestre, aéreo y por vía acuática de pasajeros con destino fuera del país | D141: 0 | F141: =IF(AND(Datos!$C$11="Informativa",D141<>0),"En la DDJJ informativa, este campo debe consignarse en cero (0)","") -> 
C142: Total pagos a cuenta | D142: =SUM(D131:D141) -> 0
C143: SALDO A PAGAR | D143: =+ROUND(D129,2)-D130-D142 -> 0

Sheet Empleado14
C3: LIQUIDACIÓN DE IMPUESTO A LAS GANANCIAS - 4ta. CATEGORÍA RELACIÓN DE DEPENDENCIA
C6: Empleado: Nombre y apellido | D6: MUÑOZ SALDIAS CRISTIAN MAURICIO
C7: CUIL del empleado | D7: 20926235517 | F7: =cuitValidar(D7) -> CUIT/CUIL Válido
C8: ="Agente de Retención: " -> Agente de Retención: | D8: =Datos!C7&" - "&Datos!C5 -> 33711238269 - OPERACIONES AGROPORTUARIAS S.A.
C9: ="Período Fiscal: " -> Período Fiscal: | D9: =YEAR(Datos!C13) -> 2021
C10: Período trabajado (desde): | D10: 2021-01-01
C11: Período trabajado (hasta): | D11: 2021-09-25 | H11: =IF(MONTH(D11)>MONTH(Datos!C13),"El período trabajado no puede ser mayor al período que se informa (mes "&MONTH(Datos!C13)&")","") -> 
C12: Zona geográfica: | D12: Todo el país (excepto zona patagónica)
C13: Transporte a larga distancia | D13: No desarrolla la actividad
C14: Beneficio promocional 27424? | D14: No
C15: Beneficio de la ley 27549? | D15: No
C16: El trabajador labora bajo el régimen de teletrabajo (Ley 27555)? | D16: No
C17: El trabajador es personal militar en actividad? | D17: No
C19: REMUNERACIONES
C20: Abonadas por el agente de retención:
C21: Remuneración bruta gravada | D21: 2735949.57
C22: Retribuciones no habituales gravadas | D22: 0
C23: SAC primera cuota gravado | D23: 0
C24: SAC segunda cuota gravado | D24: 0
C25: Horas extras remuneración gravada | D25: 0 | G25: 0 | H25: % de retenciones
C26: Movilidad y viáticos remuneración gravada | D26: 0
C27: Material didáctico personal docente remuneración gravada | D27: 0
C28: Remuneración no alcanzada o exenta (sin horas extras) | D28: 0
C29: Remuneración exenta ley 27549 | D29: 0 | F29: =IF(AND($D$15="No",D29<>0),"Para que sea procedente el beneficio, modifique el valor en la celda D15","") -> 
C30: Retribuciones no habituales exentas o no alcanzadas | D30: 0
C31: Horas extras remuneración exenta | D31: 0
C32: Movilidad y viáticos remuneración exenta | D32: 0
C33: Material didáctico personal docente remuneración exenta | D33: 0
C34: Bonos de productividad gravados | D34: 0
C35: Fallos de caja gravados | D35: 0
C36: Conceptos de similar naturaleza gravados | D36: 0
C37: Bonos de productividad exentos | D37: 0
C38: Fallos de caja exentos | D38: 0
C39: Conceptos de similar naturaleza exentos | D39: 0
C40: Compensación de gastos de teletrabajo exentos | D40: 0
C41: Personal militar - suplementos art. 57 ley 19.101 - exentos | D41: 0
C42: SAC primera cuota - No alcanzado o exento | D42: 0
C43: SAC segunda cuota - No alcanzado o exento | D43: 0
C44: Ajustes períodos anteriores - Remuneración gravada | D44: 0
C45: Ajustes períodos anteriores - Remuneración exenta / no alcanzada | D45: 0
C46: Otros empleos:
C47: Remuneración bruta gravada | D47: 0
C48: Retribuciones no habituales gravadas | D48: 0
C49: SAC primera cuota gravado | D49: 0
C50: SAC segunda cuota gravado | D50: 0
C51: Horas extras remuneración gravada | D51: 0 | G51: 0 | H51: % de retenciones
C52: Movilidad y viáticos remuneración gravada | D52: 0
C53: Material didáctico personal docente remuneración gravada | D53: 0
C54: Remuneración no alcanzada o exenta | D54: 0
C55: Remuneración exenta ley 27549 | D55: 0 | F55: =IF(AND($D$15="No",D55<>0),"Para que sea procedente el beneficio, modifique el valor en la celda D15","") -> 
C56: Retribuciones no habituales exentas o no alcanzadas | D56: 0
C57: Horas extras remuneración exenta o no alcanzada | D57: 0
C58: Movilidad y viáticos remuneración exenta o no alcanzada | D58: 0
C59: Material didáctico personal docente remuneración exenta o no alcanzada | D59: 0
C60: Bonos de productividad gravados | D60: 0
C61: Fallos de caja gravados | D61: 0
C62: Conceptos de similar naturaleza gravados | D62: 0
C63: Bonos de productividad exentos | D63: 0
C64: Fallos de caja exentos | D64: 0
C65: Conceptos de similar naturaleza exentos | D65: 0
C66: Compensación de gastos teletrabajo - exentos | D66: 0
C67: Personal militar - suplementos art. 57 Ley 19101 - exentos | D67: 0
C68: SAC primera cuota - No alcanzado o exento | D68: 0
C69: SAC segunda cuota - No alcanzado o exento | D69: 0
C70: Ajustes períodos anteriores - Remuneración gravada | D70: 0
C71: Ajustes períodos anteriores - Remuneración no alcanzada o exenta | D71: 0
C72: TOTAL REMUNERACIÓN GRAVADA | D72: =SUM(D21:E27,D44,D47:D53,D70) -> 2735949.57
C73: TOTAL REMUNERACIÓN NO ALCANZADA O EXENTA | D73: =SUM(D28:D43,D45,D54:D69,D71) -> 0
C74: TOTAL REMUNERACIONES | D74: =IF(+D72+D73<0,0,D72+D73) -> 2735949.57
C76: DEDUCCIONES GENERALES | H76: Topes máximos legales
C77: Aportes a fondos de jubilaciones, retiros, pensiones o subsidios que se destinen a cajas nacionales, provinciales o municipales | D77: 335077.01 | F77: =validaciones(D77,H77,0)&IF(D77>$D$74," El importe no puede ser mayor a la remuneración total","") -> 
C78: Aportes a fondos de jubilaciones, retiros, pensiones o subsidios que se destinen a cajas nacionales, provinciales o municipales por otros empleos | D78: 0 | F78: =validaciones(D78,H78,0)&IF(D78>$D$74," El importe no puede ser mayor a la remuneración total","") -> 
C79: Aportes a obra sociales | D79: 71802.22 | F79: =validaciones(D79,H79,0)&IF(D79>$D$74," El importe no puede ser mayor a la remuneración total","") -> 
C80: Aportes a obra sociales por otros empleos | D80: 0 | F80: =validaciones(D80,H80,0)&IF(D80>$D$74," El importe no puede ser mayor a la remuneración total","") -> 
C81: Cuota sindical | D81: 80154.89 | F81: =validaciones(D81,H81,0)&IF(D81>$D$74," El importe no puede ser mayor a la remuneración total","") -> 
C82: Cuota sindical por otros empleos | D82: 0 | F82: =validaciones(D82,H82,0)&IF(D82>$D$74," El importe no puede ser mayor a la remuneración total","") -> 
C83: Cuotas médico asistenciales | D83: 0 | F83: =validaciones(D83,H83,0) ->  | H83: =(D72-SUM(D77:D82,D84:D89,D91,D93:D94,D95:D103))*0.05 -> 112445.7725
C84: Primas de seguro para el caso de muerte | D84: 0 | F84: =validaciones(D84,H84,0)&IF(AND(Datos!$C$11="Informativa",D84<>0),"En la DDJJ informativa, este campo debe consignarse en cero (0)","") ->  | H84: =+Tablas!B2 -> 24000
C85: Primas por riesgo de muerte y de ahorro de seguros mixtos, excepto para los casos de seguros de retiro privados administrados por entidades sujetas al control de la Superintendencia de Seguros de la Nación | D85: 0 | F85: =validaciones(D85,H85,0)&IF(AND(Datos!$C$11="Informativa",D85<>0),"En la DDJJ informativa, este campo debe consignarse en cero (0)","") ->  | H85: =+H84 -> 24000
C86: Aportes a planes de seguro de retiro privados administrados por entidades sujetas al control de la Superintendencia de Seguros de la Nación | D86: 0 | F86: =validaciones(D86,H86,0)&IF(AND(Datos!$C$11="Informativa",D86<>0),"En la DDJJ informativa, este campo debe consignarse en cero (0)","") ->  | H86: =+H85 -> 24000
C87: Cuotapartes de fondos comunes de inversión constituidos con fines de retiro | D87: 0 | F87: =validaciones(D87,H87,0)&IF(D87<>0,"Deberá consignarse en cero (0), hasta que la Autoridad de Aplicación – CNV – autorice a las Entidades a funcionar e implemente el régimen.","") ->  | H87: 0
C88: Gastos de sepelio | D88: 0 | F88: =validaciones(D88,H88,0) ->  | H88: =+Tablas!B6 -> 996.23
C89: Gastos amortización e intereses rodado para corredores y viajantes de comercio | D89: 0 | F89: =validaciones(D89,H89,0)&IF(D89>$D$74," El importe no puede ser mayor a la remuneración total","") -> 
C90: Donaciones a fiscos nacional, provinciales y municipales, y a instituciones comprendidas en el artículo 26, incisos e) y f) de la ley | D90: 0 | F90: =validaciones(D90,H90,0) ->  | H90: =(D72-SUM(D77:D82,D84:D89,D91,D93:D94,D95:D103))*0.05 -> 112445.7725
C91: Descuentos obligatorios establecidos por ley nacional, provincial o municipal | D91: 0 | F91: =validaciones(D91,H91,0)&IF(D91>$D$74," El importe no puede ser mayor a la remuneración total","") -> 
C92: Honorarios por servicios de asistencia sanitaria, médica y paramédica | D92: 0 | F92: =validaciones(D92,H92,0)&IF(AND(Datos!$C$11="Informativa",D92<>0),"En la DDJJ informativa, este campo debe consignarse en cero (0)","") ->  | H92: =(D72-SUM(D77:D82,D84:D89,D91,D93:D94,D95:D103))*0.05 -> 112445.7725
C93: Intereses de créditos hipotecarios | D93: 0 | F93: =validaciones(D93,H93,0) ->  | H93: =+Tablas!B3 -> 20000
C94: Aportes al capital social o al fondo de riesgo de socios protectores de sociedades de garantía recíproca | D94: 0 | F94: =validaciones(D94,H94,0) -> 
C95: Alquileres de inmuebles destinados a casa habitación | D95: 0 | F95: =validaciones(D95,H95,0) ->  | H95: =IF(Datos!C11="Final",ROUND(Tablas!B4/12*12,2),ROUND(Tablas!B4/12*MONTH(Datos!C13),2)) -> 167678.4
C96: Empleados del servicio doméstico | D96: 0 | F96: =validaciones(D96,H96,0) ->  | H96: =Tablas!B4 -> 167678.4
C97: Gastos de movilidad, viáticos y otras compensaciones análogas abonados por el empleador | D97: 0 | F97: =validaciones(D97,H97,0) ->  | H97: =IF(D13="Desarrolla la actividad",Tablas!B4,Tablas!B4*0.4) -> 67071.36
C98: Gastos por adquisición de indumentaria y/o equipamiento de trabajo | D98: 0 | F98: =validaciones(D98,H98,0) -> 
C99: Otras deducciones - aportes a Cajas Complementarias de Previsión, Fondos Compensadores de Previsión o similares | D99: 0 | F99: =validaciones(D99,H99,0) -> 
C100: Otras deducciones - Aportes para jubilaciones, retiros y subsidios ANSES | D100: 0 | F100: =validaciones(D100,H100,0) -> 
C101: Otras deducciones - Cajas Provinciales o Municipales o de Previsión para Profesionales | D101: 0 | F101: =validaciones(D101,H101,0) -> 
C102: Otras deducciones - Actores - Retribución pagada a los representantes - RG 2442/08 | D102: 0 | F102: =validaciones(D102,H102,0) -> 
C103: Otras deducciones - Fondos compensadores de previsión | D103: 0 | F103: =validaciones(D103,H103,0) -> 
C104: Otras deducciones | D104: =+SUM(D99:E103) -> 0
C105: TOTAL DEDUCCIONES GENERALES | D105: =SUM(D77:E103) -> 487034.12 | K105: =+D72-D105 -> 2248915.45
C107: DEDUCCIONES PERSONALES | H107: Topes máximos legales
C108: Ganancia no imponible | D108: 167678.4 | F108: =validaciones(D108,H108,0) ->  | H108: =deducciones(1,Datos!C11,MONTH(Datos!$C$13),$D$12) -> 167678.4 | K108: =IF(K105-K109<=0,0,IF(K105-K109<=H108,K105-K109,H108)) -> 167678.4
C109: Deducción especial | D109: 804856.34 | F109: =validaciones(D109,H109,0) ->  | H109: =deducciones(2,Datos!$C$11,MONTH(Datos!$C$13),$D$12) -> 804856.34 | K109: =IF(K105<=H109,K105,H109) -> 804856.34
C110: Deducción Especial Incrementada Primera parte del penúltimo párrafo del inciso c) del artículo 30 de la ley del gravamen | D110: 0
C111: Deducción Especial Incrementada Segunda parte del penúltimo párrafo del inciso c) del artículo 30 de la ley del gravamen | D111: 0
C112: Deducción específica | D112: 0 | F112: =validaciones(D112,H112,0) ->  | H112: 0
C113: Cargas de familia
C114: Cónyuge | D114: 156320.63 | F114: =validaciones(D114,H114,0) ->  | H114: =cargas_de_familia(4,Datos!$C$11,MONTH(Datos!$C$13),$D$12) -> 156320.63 | K114: =IF(K105-K108-K109>=D114,D114,K105-K108-K109) -> 156320.63
C115: Cantidad de hijos e hijastros | D115: 0 | F115: =validaciones(D115,H115,0) ->  | H115: 99
C116: Deducción total hijos e hijastros | D116: 0 | H116: =cargas_de_familia(3,Datos!$C$11,MONTH(Datos!$C$13),$D$12)*D115 -> 0 | K116: =IF(K105-K108-K109-K114>=D116,D116,K105-K108-K109-K114) -> 0
C117: Cantidad de hijos e hijastros incapacitados para el trabajo | D117: 0 | F117: =validaciones(D117,H117,0) ->  | H117: 99
C118: Hijos / Hijastros incapacitados para el trabajo | D118: 0 | H118: =cargas_de_familia(5,Datos!$C$11,MONTH(Datos!$C$13),$D$12) -> 157666.16
C119: Total de cargas de familia | D119: =+D114+D116+D118 -> 156320.63 | H119: 0
C120: TOTAL DEDUCCIONES PERSONALES | D120: =SUM(D108:D112,D119) -> 1128855.37
C122: DETERMINACIÓN DEL IMPUESTO
C123: REMUNERACIÓN NETA SUJETA A IMPUESTO -antes de la deducción art. 46 L. 27541- | D123: 0
C124: Deducción inciso a) primer párrafo artículo 30 de la ley (cfr. art. 46 L. 27541) | D124: 0 | H124: 0 | K124: =IF(D123-K125<=0,0,IF(D123-K125<=H124,D123-K125,H124)) -> 0
C125: Deducción inciso c) primer párrafo artículo 30 de la ley (cfr. art. 46 L. 27541) | D125: 0 | H125: 0 | K125: =IF(D123<=H125,D123,H125) -> 0
C126: REMUNERACIÓN SUJETA A IMPUESTO | D126: =IF(+D72-D105-D120<0,0,+D72-D105-D120) -> 1120060.08
C127: Alícuota aplicable artículo 94 ley de impuesto a las ganancias | D127: =IF(OR(Datos!C11="Final",Datos!C11="Anual"),impuestoAlicuota(D126,D25*(1-G25)+D51*(1-G51),12),impuestoAlicuota(D126,D25*(1-G25)+D51*(1-G51),MONTH(D11))) -> 0.35
C128: Alícuota aplicable sin incluir horas extras | D128: =IF(OR(Datos!C11="Final",Datos!C11="Anual"),impuestoAlicuota(D126,0,12),impuestoAlicuota(D126,0,MONTH(D11))) -> 0.35
C129: IMPUESTO DETERMINADO | D129: =IF(D126<0,0,IF(OR(Datos!C11="Final",Datos!C11="Anual"),impuestoDeterminado(D126,D25*(1-G25)+D51*(1-G51),12),impuestoDeterminado(D126,D25*(1-G25)+D51*(1-G51),MONTH(D11)))) -> 261019.763
C130: Impuesto retenido | D130: 235441.76
C131: Pagos a cuenta - Impuesto sobre créditos y débitos | D131: 0 | F131: =IF(AND(Datos!$C$11="Informativa",D131<>0),"En la DDJJ informativa, este campo debe consignarse en cero (0)","") -> 
C132: Pagos a cuenta - Percepciones / Retenciones aduaneras | D132: 0 | F132: =IF(AND(Datos!$C$11="Informativa",D132<>0),"En la DDJJ informativa, este campo debe consignarse en cero (0)","") -> 
C133: Pagos a cuenta - RG (AFIP) 3819/2015 - Cancelaciones en efectivo | D133: 0 | F133: =IF(AND(Datos!$C$11="Informativa",D133<>0),"En la DDJJ informativa, este campo debe consignarse en cero (0)","") -> 
C134: Pagos a cuenta - Bono ley 27.424 | D134: 0 | F134: =IF(AND(Datos!$C$11="Informativa",D134<>0),"En la DDJJ informativa, este campo debe consignarse en cero (0)","") -> 
C135: Pagos a cuenta - RG 4815 [LEY 27.541 Art. 35 inciso a)] | D135: 25578 | F135: =IF(AND(Datos!$C$11="Informativa",D135<>0),"En la DDJJ informativa, este campo debe consignarse en cero (0)","") -> 
C136: Pagos a cuenta - RG 4815 [LEY 27.541 Art. 35 inciso b)] | D136: 0 | F136: =IF(AND(Datos!$C$11="Informativa",D136<>0),"En la DDJJ informativa, este campo debe consignarse en cero (0)","") -> 
C137: Pagos a cuenta - RG 4815 [LEY 27.541 Art. 35 inciso c)] | D137: 0 | F137: =IF(AND(Datos!$C$11="Informativa",D137<>0),"En la DDJJ informativa, este campo debe consignarse en cero (0)","") -> 
C138: Pagos a cuenta - RG 4815 [LEY 27.541 Art. 35 inciso d)] | D138: 0 | F138: =IF(AND(Datos!$C$11="Informativa",D138<>0),"En la DDJJ informativa, este campo debe consignarse en cero (0)","") -> 
C139: Pagos a cuenta - RG 4815 [LEY 27.541 Art. 35 inciso e)] | D139: 0 | F139: =IF(AND(Datos!$C$11="Informativa",D139<>0),"En la DDJJ informativa, este campo debe consignarse en cero (0)","") -> 
C140: Pagos a cuenta - Impuesto sobre créditos y débitos - sobre movimientos de fondos propios o de terceros | D140: 0 | F140: =IF(AND(Datos!$C$11="Informativa",D140<>0),"En la DDJJ informativa, este campo debe consignarse en cero (0)","") -> 
C141: Pagos a cuenta - Resolución General (AFIP) 3819/2015 - Cancelaciones en Efectivo -Servicios de transporte terrestre, aéreo y por vía acuática de pasajeros con destino fuera del país | D141: 0 | F141: =IF(AND(Datos!$C$11="Informativa",D141<>0),"En la DDJJ informativa, este campo debe consignarse en cero (0)","") -> 
C142: Total pagos a cuenta | D142: =SUM(D131:D141) -> 25578
C143: SALDO A PAGAR | D143: =+ROUND(D129,2)-D130-D142 -> 0

Sheet Empleado15
C3: LIQUIDACIÓN DE IMPUESTO A LAS GANANCIAS - 4ta. CATEGORÍA RELACIÓN DE DEPENDENCIA
C6: Empleado: Nombre y apellido | D6: CORREA DIEGO DANIEL
C7: CUIL del empleado | D7: 20253172615 | F7: =cuitValidar(D7) -> CUIT/CUIL Válido
C8: ="Agente de Retención: " -> Agente de Retención: | D8: =Datos!C7&" - "&Datos!C5 -> 33711238269 - OPERACIONES AGROPORTUARIAS S.A.
C9: ="Período Fiscal: " -> Período Fiscal: | D9: =YEAR(Datos!C13) -> 2021
C10: Período trabajado (desde): | D10: 2021-01-01
C11: Período trabajado (hasta): | D11: 2021-09-25 | H11: =IF(MONTH(D11)>MONTH(Datos!C13),"El período trabajado no puede ser mayor al período que se informa (mes "&MONTH(Datos!C13)&")","") -> 
C12: Zona geográfica: | D12: Todo el país (excepto zona patagónica)
C13: Transporte a larga distancia | D13: No desarrolla la actividad
C14: Beneficio promocional 27424? | D14: No
C15: Beneficio de la ley 27549? | D15: No
C16: El trabajador labora bajo el régimen de teletrabajo (Ley 27555)? | D16: No
C17: El trabajador es personal militar en actividad? | D17: No
C19: REMUNERACIONES
C20: Abonadas por el agente de retención:
C21: Remuneración bruta gravada | D21: 2085030.49
C22: Retribuciones no habituales gravadas | D22: 0
C23: SAC primera cuota gravado | D23: 0
C24: SAC segunda cuota gravado | D24: 0
C25: Horas extras remuneración gravada | D25: 0 | G25: 0 | H25: % de retenciones
C26: Movilidad y viáticos remuneración gravada | D26: 0
C27: Material didáctico personal docente remuneración gravada | D27: 0
C28: Remuneración no alcanzada o exenta (sin horas extras) | D28: 0
C29: Remuneración exenta ley 27549 | D29: 0 | F29: =IF(AND($D$15="No",D29<>0),"Para que sea procedente el beneficio, modifique el valor en la celda D15","") -> 
C30: Retribuciones no habituales exentas o no alcanzadas | D30: 0
C31: Horas extras remuneración exenta | D31: 0
C32: Movilidad y viáticos remuneración exenta | D32: 0
C33: Material didáctico personal docente remuneración exenta | D33: 0
C34: Bonos de productividad gravados | D34: 0
C35: Fallos de caja gravados | D35: 0
C36: Conceptos de similar naturaleza gravados | D36: 0
C37: Bonos de productividad exentos | D37: 0
C38: Fallos de caja exentos | D38: 0
C39: Conceptos de similar naturaleza exentos | D39: 0
C40: Compensación de gastos de teletrabajo exentos | D40: 0
C41: Personal militar - suplementos art. 57 ley 19.101 - exentos | D41: 0
C42: SAC primera cuota - No alcanzado o exento | D42: 0
C43: SAC segunda cuota - No alcanzado o exento | D43: 0
C44: Ajustes períodos anteriores - Remuneración gravada | D44: 0
C45: Ajustes períodos anteriores - Remuneración exenta / no alcanzada | D45: 0
C46: Otros empleos:
C47: Remuneración bruta gravada | D47: 0
C48: Retribuciones no habituales gravadas | D48: 0
C49: SAC primera cuota gravado | D49: 0
C50: SAC segunda cuota gravado | D50: 0
C51: Horas extras remuneración gravada | D51: 0 | G51: 0 | H51: % de retenciones
C52: Movilidad y viáticos remuneración gravada | D52: 0
C53: Material didáctico personal docente remuneración gravada | D53: 0
C54: Remuneración no alcanzada o exenta | D54: 0
C55: Remuneración exenta ley 27549 | D55: 0 | F55: =IF(AND($D$15="No",D55<>0),"Para que sea procedente el beneficio, modifique el valor en la celda D15","") -> 
C56: Retribuciones no habituales exentas o no alcanzadas | D56: 0
C57: Horas extras remuneración exenta o no alcanzada | D57: 0
C58: Movilidad y viáticos remuneración exenta o no alcanzada | D58: 0
C59: Material didáctico personal docente remuneración exenta o no alcanzada | D59: 0
C60: Bonos de productividad gravados | D60: 0
C61: Fallos de caja gravados | D61: 0
C62: Conceptos de similar naturaleza gravados | D62: 0
C63: Bonos de productividad exentos | D63: 0
C64: Fallos de caja exentos | D64: 0
C65: Conceptos de similar naturaleza exentos | D65: 0
C66: Compensación de gastos teletrabajo - exentos | D66: 0
C67: Personal militar - suplementos art. 57 Ley 19101 - exentos | D67: 0
C68: SAC primera cuota - No alcanzado o exento | D68: 0
C69: SAC segunda cuota - No alcanzado o exento | D69: 0
C70: Ajustes períodos anteriores - Remuneración gravada | D70: 0
C71: Ajustes períodos anteriores - Remuneración no alcanzada o exenta | D71: 0
C72: TOTAL REMUNERACIÓN GRAVADA | D72: =SUM(D21:E27,D44,D47:D53,D70) -> 2085030.49
C73: TOTAL REMUNERACIÓN NO ALCANZADA O EXENTA | D73: =SUM(D28:D43,D45,D54:D69,D71) -> 0
C74: TOTAL REMUNERACIONES | D74: =IF(+D72+D73<0,0,D72+D73) -> 2085030.49
C76: DEDUCCIONES GENERALES | H76: Topes máximos legales
C77: Aportes a fondos de jubilaciones, retiros, pensiones o subsidios que se destinen a cajas nacionales, provinciales o municipales | D77: 255022.39 | F77: =validaciones(D77,H77,0)&IF(D77>$D$74," El importe no puede ser mayor a la remuneración total","") -> 
C78: Aportes a fondos de jubilaciones, retiros, pensiones o subsidios que se destinen a cajas nacionales, provinciales o municipales por otros empleos | D78: 0 | F78: =validaciones(D78,H78,0)&IF(D78>$D$74," El importe no puede ser mayor a la remuneración total","") -> 
C79: Aportes a obra sociales | D79: 54647.66 | F79: =validaciones(D79,H79,0)&IF(D79>$D$74," El importe no puede ser mayor a la remuneración total","") -> 
C80: Aportes a obra sociales por otros empleos | D80: 0 | F80: =validaciones(D80,H80,0)&IF(D80>$D$74," El importe no puede ser mayor a la remuneración total","") -> 
C81: Cuota sindical | D81: 40418.21 | F81: =validaciones(D81,H81,0)&IF(D81>$D$74," El importe no puede ser mayor a la remuneración total","") -> 
C82: Cuota sindical por otros empleos | D82: 0 | F82: =validaciones(D82,H82,0)&IF(D82>$D$74," El importe no puede ser mayor a la remuneración total","") -> 
C83: Cuotas médico asistenciales | D83: 0 | F83: =validaciones(D83,H83,0) ->  | H83: =(D72-SUM(D77:D82,D84:D89,D91,D93:D94,D95:D103))*0.05 -> 86747.1115
C84: Primas de seguro para el caso de muerte | D84: 0 | F84: =validaciones(D84,H84,0)&IF(AND(Datos!$C$11="Informativa",D84<>0),"En la DDJJ informativa, este campo debe consignarse en cero (0)","") ->  | H84: =+Tablas!B2 -> 24000
C85: Primas por riesgo de muerte y de ahorro de seguros mixtos, excepto para los casos de seguros de retiro privados administrados por entidades sujetas al control de la Superintendencia de Seguros de la Nación | D85: 0 | F85: =validaciones(D85,H85,0)&IF(AND(Datos!$C$11="Informativa",D85<>0),"En la DDJJ informativa, este campo debe consignarse en cero (0)","") ->  | H85: =+H84 -> 24000
C86: Aportes a planes de seguro de retiro privados administrados por entidades sujetas al control de la Superintendencia de Seguros de la Nación | D86: 0 | F86: =validaciones(D86,H86,0)&IF(AND(Datos!$C$11="Informativa",D86<>0),"En la DDJJ informativa, este campo debe consignarse en cero (0)","") ->  | H86: =+H85 -> 24000
C87: Cuotapartes de fondos comunes de inversión constituidos con fines de retiro | D87: 0 | F87: =validaciones(D87,H87,0)&IF(D87<>0,"Deberá consignarse en cero (0), hasta que la Autoridad de Aplicación – CNV – autorice a las Entidades a funcionar e implemente el régimen.","") ->  | H87: 0
C88: Gastos de sepelio | D88: 0 | F88: =validaciones(D88,H88,0) ->  | H88: =+Tablas!B6 -> 996.23
C89: Gastos amortización e intereses rodado para corredores y viajantes de comercio | D89: 0 | F89: =validaciones(D89,H89,0)&IF(D89>$D$74," El importe no puede ser mayor a la remuneración total","") -> 
C90: Donaciones a fiscos nacional, provinciales y municipales, y a instituciones comprendidas en el artículo 26, incisos e) y f) de la ley | D90: 0 | F90: =validaciones(D90,H90,0) ->  | H90: =(D72-SUM(D77:D82,D84:D89,D91,D93:D94,D95:D103))*0.05 -> 86747.1115
C91: Descuentos obligatorios establecidos por ley nacional, provincial o municipal | D91: 0 | F91: =validaciones(D91,H91,0)&IF(D91>$D$74," El importe no puede ser mayor a la remuneración total","") -> 
C92: Honorarios por servicios de asistencia sanitaria, médica y paramédica | D92: 0 | F92: =validaciones(D92,H92,0)&IF(AND(Datos!$C$11="Informativa",D92<>0),"En la DDJJ informativa, este campo debe consignarse en cero (0)","") ->  | H92: =(D72-SUM(D77:D82,D84:D89,D91,D93:D94,D95:D103))*0.05 -> 86747.1115
C93: Intereses de créditos hipotecarios | D93: 0 | F93: =validaciones(D93,H93,0) ->  | H93: =+Tablas!B3 -> 20000
C94: Aportes al capital social o al fondo de riesgo de socios protectores de sociedades de garantía recíproca | D94: 0 | F94: =validaciones(D94,H94,0) -> 
C95: Alquileres de inmuebles destinados a casa habitación | D95: 0 | F95: =validaciones(D95,H95,0) ->  | H95: =IF(Datos!C11="Final",ROUND(Tablas!B4/12*12,2),ROUND(Tablas!B4/12*MONTH(Datos!C13),2)) -> 167678.4
C96: Empleados del servicio doméstico | D96: 0 | F96: =validaciones(D96,H96,0) ->  | H96: =Tablas!B4 -> 167678.4
C97: Gastos de movilidad, viáticos y otras compensaciones análogas abonados por el empleador | D97: 0 | F97: =validaciones(D97,H97,0) ->  | H97: =IF(D13="Desarrolla la actividad",Tablas!B4,Tablas!B4*0.4) -> 67071.36
C98: Gastos por adquisición de indumentaria y/o equipamiento de trabajo | D98: 0 | F98: =validaciones(D98,H98,0) -> 
C99: Otras deducciones - aportes a Cajas Complementarias de Previsión, Fondos Compensadores de Previsión o similares | D99: 0 | F99: =validaciones(D99,H99,0) -> 
C100: Otras deducciones - Aportes para jubilaciones, retiros y subsidios ANSES | D100: 0 | F100: =validaciones(D100,H100,0) -> 
C101: Otras deducciones - Cajas Provinciales o Municipales o de Previsión para Profesionales | D101: 0 | F101: =validaciones(D101,H101,0) -> 
C102: Otras deducciones - Actores - Retribución pagada a los representantes - RG 2442/08 | D102: 0 | F102: =validaciones(D102,H102,0) -> 
C103: Otras deducciones - Fondos compensadores de previsión | D103: 0 | F103: =validaciones(D103,H103,0) -> 
C104: Otras deducciones | D104: =+SUM(D99:E103) -> 0
C105: TOTAL DEDUCCIONES GENERALES | D105: =SUM(D77:E103) -> 350088.26 | K105: =+D72-D105 -> 1734942.23
C107: DEDUCCIONES PERSONALES | H107: Topes máximos legales
C108: Ganancia no imponible | D108: 167678.4 | F108: =validaciones(D108,H108,0) ->  | H108: =deducciones(1,Datos!C11,MONTH(Datos!$C$13),$D$12) -> 167678.4 | K108: =IF(K105-K109<=0,0,IF(K105-K109<=H108,K105-K109,H108)) -> 167678.4
C109: Deducción especial | D109: 804856.34 | F109: =validaciones(D109,H109,0) ->  | H109: =deducciones(2,Datos!$C$11,MONTH(Datos!$C$13),$D$12) -> 804856.34 | K109: =IF(K105<=H109,K105,H109) -> 804856.34
C110: Deducción Especial Incrementada Primera parte del penúltimo párrafo del inciso c) del artículo 30 de la ley del gravamen | D110: 702678.83
C111: Deducción Especial Incrementada Segunda parte del penúltimo párrafo del inciso c) del artículo 30 de la ley del gravamen | D111: 127960
C112: Deducción específica | D112: 0 | F112: =validaciones(D112,H112,0) ->  | H112: 0
C113: Cargas de familia
C114: Cónyuge | D114: 0 | F114: =validaciones(D114,H114,0) ->  | H114: =cargas_de_familia(4,Datos!$C$11,MONTH(Datos!$C$13),$D$12) -> 156320.63 | K114: =IF(K105-K108-K109>=D114,D114,K105-K108-K109) -> 0
C115: Cantidad de hijos e hijastros | D115: 0 | F115: =validaciones(D115,H115,0) ->  | H115: 99
C116: Deducción total hijos e hijastros | D116: 0 | H116: =cargas_de_familia(3,Datos!$C$11,MONTH(Datos!$C$13),$D$12)*D115 -> 0 | K116: =IF(K105-K108-K109-K114>=D116,D116,K105-K108-K109-K114) -> 0
C117: Cantidad de hijos e hijastros incapacitados para el trabajo | D117: 0 | F117: =validaciones(D117,H117,0) ->  | H117: 99
C118: Hijos / Hijastros incapacitados para el trabajo | D118: 0 | H118: =cargas_de_familia(5,Datos!$C$11,MONTH(Datos!$C$13),$D$12) -> 157666.16
C119: Total de cargas de familia | D119: =+D114+D116+D118 -> 0 | H119: 0
C120: TOTAL DEDUCCIONES PERSONALES | D120: =SUM(D108:D112,D119) -> 1803173.57
C122: DETERMINACIÓN DEL IMPUESTO
C123: REMUNERACIÓN NETA SUJETA A IMPUESTO -antes de la deducción art. 46 L. 27541- | D123: 0
C124: Deducción inciso a) primer párrafo artículo 30 de la ley (cfr. art. 46 L. 27541) | D124: 0 | H124: 0 | K124: =IF(D123-K125<=0,0,IF(D123-K125<=H124,D123-K125,H124)) -> 0
C125: Deducción inciso c) primer párrafo artículo 30 de la ley (cfr. art. 46 L. 27541) | D125: 0 | H125: 0 | K125: =IF(D123<=H125,D123,H125) -> 0
C126: REMUNERACIÓN SUJETA A IMPUESTO | D126: =IF(+D72-D105-D120<0,0,+D72-D105-D120) -> 0
C127: Alícuota aplicable artículo 94 ley de impuesto a las ganancias | D127: =IF(OR(Datos!C11="Final",Datos!C11="Anual"),impuestoAlicuota(D126,D25*(1-G25)+D51*(1-G51),12),impuestoAlicuota(D126,D25*(1-G25)+D51*(1-G51),MONTH(D11))) -> 0
C128: Alícuota aplicable sin incluir horas extras | D128: =IF(OR(Datos!C11="Final",Datos!C11="Anual"),impuestoAlicuota(D126,0,12),impuestoAlicuota(D126,0,MONTH(D11))) -> 0
C129: IMPUESTO DETERMINADO | D129: =IF(D126<0,0,IF(OR(Datos!C11="Final",Datos!C11="Anual"),impuestoDeterminado(D126,D25*(1-G25)+D51*(1-G51),12),impuestoDeterminado(D126,D25*(1-G25)+D51*(1-G51),MONTH(D11)))) -> 0
C130: Impuesto retenido | D130: 0
C131: Pagos a cuenta - Impuesto sobre créditos y débitos | D131: 0 | F131: =IF(AND(Datos!$C$11="Informativa",D131<>0),"En la DDJJ informativa, este campo debe consignarse en cero (0)","") -> 
C132: Pagos a cuenta - Percepciones / Retenciones aduaneras | D132: 0 | F132: =IF(AND(Datos!$C$11="Informativa",D132<>0),"En la DDJJ informativa, este campo debe consignarse en cero (0)","") -> 
C133: Pagos a cuenta - RG (AFIP) 3819/2015 - Cancelaciones en efectivo | D133: 0 | F133: =IF(AND(Datos!$C$11="Informativa",D133<>0),"En la DDJJ informativa, este campo debe consignarse en cero (0)","") -> 
C134: Pagos a cuenta - Bono ley 27.424 | D134: 0 | F134: =IF(AND(Datos!$C$11="Informativa",D134<>0),"En la DDJJ informativa, este campo debe consignarse en cero (0)","") -> 
C135: Pagos a cuenta - RG 4815 [LEY 27.541 Art. 35 inciso a)] | D135: 0 | F135: =IF(AND(Datos!$C$11="Informativa",D135<>0),"En la DDJJ informativa, este campo debe consignarse en cero (0)","") -> 
C136: Pagos a cuenta - RG 4815 [LEY 27.541 Art. 35 inciso b)] | D136: 0 | F136: =IF(AND(Datos!$C$11="Informativa",D136<>0),"En la DDJJ informativa, este campo debe consignarse en cero (0)","") -> 
C137: Pagos a cuenta - RG 4815 [LEY 27.541 Art. 35 inciso c)] | D137: 0 | F137: =IF(AND(Datos!$C$11="Informativa",D137<>0),"En la DDJJ informativa, este campo debe consignarse en cero (0)","") -> 
C138: Pagos a cuenta - RG 4815 [LEY 27.541 Art. 35 inciso d)] | D138: 0 | F138: =IF(AND(Datos!$C$11="Informativa",D138<>0),"En la DDJJ informativa, este campo debe consignarse en cero (0)","") -> 
C139: Pagos a cuenta - RG 4815 [LEY 27.541 Art. 35 inciso e)] | D139: 0 | F139: =IF(AND(Datos!$C$11="Informativa",D139<>0),"En la DDJJ informativa, este campo debe consignarse en cero (0)","") -> 
C140: Pagos a cuenta - Impuesto sobre créditos y débitos - sobre movimientos de fondos propios o de terceros | D140: 0 | F140: =IF(AND(Datos!$C$11="Informativa",D140<>0),"En la DDJJ informativa, este campo debe consignarse en cero (0)","") -> 
C141: Pagos a cuenta - Resolución General (AFIP) 3819/2015 - Cancelaciones en Efectivo -Servicios de transporte terrestre, aéreo y por vía acuática de pasajeros con destino fuera del país | D141: 0 | F141: =IF(AND(Datos!$C$11="Informativa",D141<>0),"En la DDJJ informativa, este campo debe consignarse en cero (0)","") -> 
C142: Total pagos a cuenta | D142: =SUM(D131:D141) -> 0
C143: SALDO A PAGAR | D143: =+ROUND(D129,2)-D130-D142 -> 0

Sheet Empleado16
C3: LIQUIDACIÓN DE IMPUESTO A LAS GANANCIAS - 4ta. CATEGORÍA RELACIÓN DE DEPENDENCIA
C6: Empleado: Nombre y apellido | D6: EGUIA MENEGUZZER RENZO
C7: CUIL del empleado | D7: 20321661441 | F7: =cuitValidar(D7) -> CUIT/CUIL Válido
C8: ="Agente de Retención: " -> Agente de Retención: | D8: =Datos!C7&" - "&Datos!C5 -> 33711238269 - OPERACIONES AGROPORTUARIAS S.A.
C9: ="Período Fiscal: " -> Período Fiscal: | D9: =YEAR(Datos!C13) -> 2021
C10: Período trabajado (desde): | D10: 2021-01-01
C11: Período trabajado (hasta): | D11: 2021-09-25 | H11: =IF(MONTH(D11)>MONTH(Datos!C13),"El período trabajado no puede ser mayor al período que se informa (mes "&MONTH(Datos!C13)&")","") -> 
C12: Zona geográfica: | D12: Todo el país (excepto zona patagónica)
C13: Transporte a larga distancia | D13: No desarrolla la actividad
C14: Beneficio promocional 27424? | D14: No
C15: Beneficio de la ley 27549? | D15: No
C16: El trabajador labora bajo el régimen de teletrabajo (Ley 27555)? | D16: No
C17: El trabajador es personal militar en actividad? | D17: No
C19: REMUNERACIONES
C20: Abonadas por el agente de retención:
C21: Remuneración bruta gravada | D21: 1843357.35
C22: Retribuciones no habituales gravadas | D22: 0
C23: SAC primera cuota gravado | D23: 0
C24: SAC segunda cuota gravado | D24: 0
C25: Horas extras remuneración gravada | D25: 0 | G25: 0 | H25: % de retenciones
C26: Movilidad y viáticos remuneración gravada | D26: 0
C27: Material didáctico personal docente remuneración gravada | D27: 0
C28: Remuneración no alcanzada o exenta (sin horas extras) | D28: 0
C29: Remuneración exenta ley 27549 | D29: 0 | F29: =IF(AND($D$15="No",D29<>0),"Para que sea procedente el beneficio, modifique el valor en la celda D15","") -> 
C30: Retribuciones no habituales exentas o no alcanzadas | D30: 0
C31: Horas extras remuneración exenta | D31: 0
C32: Movilidad y viáticos remuneración exenta | D32: 0
C33: Material didáctico personal docente remuneración exenta | D33: 0
C34: Bonos de productividad gravados | D34: 0
C35: Fallos de caja gravados | D35: 0
C36: Conceptos de similar naturaleza gravados | D36: 0
C37: Bonos de productividad exentos | D37: 0
C38: Fallos de caja exentos | D38: 0
C39: Conceptos de similar naturaleza exentos | D39: 0
C40: Compensación de gastos de teletrabajo exentos | D40: 0
C41: Personal militar - suplementos art. 57 ley 19.101 - exentos | D41: 0
C42: SAC primera cuota - No alcanzado o exento | D42: 0
C43: SAC segunda cuota - No alcanzado o exento | D43: 0
C44: Ajustes períodos anteriores - Remuneración gravada | D44: 0
C45: Ajustes períodos anteriores - Remuneración exenta / no alcanzada | D45: 0
C46: Otros empleos:
C47: Remuneración bruta gravada | D47: 0
C48: Retribuciones no habituales gravadas | D48: 0
C49: SAC primera cuota gravado | D49: 0
C50: SAC segunda cuota gravado | D50: 0
C51: Horas extras remuneración gravada | D51: 0 | G51: 0 | H51: % de retenciones
C52: Movilidad y viáticos remuneración gravada | D52: 0
C53: Material didáctico personal docente remuneración gravada | D53: 0
C54: Remuneración no alcanzada o exenta | D54: 0
C55: Remuneración exenta ley 27549 | D55: 0 | F55: =IF(AND($D$15="No",D55<>0),"Para que sea procedente el beneficio, modifique el valor en la celda D15","") -> 
C56: Retribuciones no habituales exentas o no alcanzadas | D56: 0
C57: Horas extras remuneración exenta o no alcanzada | D57: 0
C58: Movilidad y viáticos remuneración exenta o no alcanzada | D58: 0
C59: Material didáctico personal docente remuneración exenta o no alcanzada | D59: 0
C60: Bonos de productividad gravados | D60: 0
C61: Fallos de caja gravados | D61: 0
C62: Conceptos de similar naturaleza gravados | D62: 0
C63: Bonos de productividad exentos | D63: 0
C64: Fallos de caja exentos | D64: 0
C65: Conceptos de similar naturaleza exentos | D65: 0
C66: Compensación de gastos teletrabajo - exentos | D66: 0
C67: Personal militar - suplementos art. 57 Ley 19101 - exentos | D67: 0
C68: SAC primera cuota - No alcanzado o exento | D68: 0
C69: SAC segunda cuota - No alcanzado o exento | D69: 0
C70: Ajustes períodos anteriores - Remuneración gravada | D70: 0
C71: Ajustes períodos anteriores - Remuneración no alcanzada o exenta | D71: 0
C72: TOTAL REMUNERACIÓN GRAVADA | D72: =SUM(D21:E27,D44,D47:D53,D70) -> 1843357.35
C73: TOTAL REMUNERACIÓN NO ALCANZADA O EXENTA | D73: =SUM(D28:D43,D45,D54:D69,D71) -> 0
C74: TOTAL REMUNERACIONES | D74: =IF(+D72+D73<0,0,D72+D73) -> 1843357.35
C76: DEDUCCIONES GENERALES | H76: Topes máximos legales
C77: Aportes a fondos de jubilaciones, retiros, pensiones o subsidios que se destinen a cajas nacionales, provinciales o municipales | D77: 223563.11 | F77: =validaciones(D77,H77,0)&IF(D77>$D$74," El importe no puede ser mayor a la remuneración total","") -> 
C78: Aportes a fondos de jubilaciones, retiros, pensiones o subsidios que se destinen a cajas nacionales, provinciales o municipales por otros empleos | D78: 0 | F78: =validaciones(D78,H78,0)&IF(D78>$D$74," El importe no puede ser mayor a la remuneración total","") -> 
C79: Aportes a obra sociales | D79: 47906.38 | F79: =validaciones(D79,H79,0)&IF(D79>$D$74," El importe no puede ser mayor a la remuneración total","") -> 
C80: Aportes a obra sociales por otros empleos | D80: 0 | F80: =validaciones(D80,H80,0)&IF(D80>$D$74," El importe no puede ser mayor a la remuneración total","") -> 
C81: Cuota sindical | D81: 53377.12 | F81: =validaciones(D81,H81,0)&IF(D81>$D$74," El importe no puede ser mayor a la remuneración total","") -> 
C82: Cuota sindical por otros empleos | D82: 0 | F82: =validaciones(D82,H82,0)&IF(D82>$D$74," El importe no puede ser mayor a la remuneración total","") -> 
C83: Cuotas médico asistenciales | D83: 0 | F83: =validaciones(D83,H83,0) ->  | H83: =(D72-SUM(D77:D82,D84:D89,D91,D93:D94,D95:D103))*0.05 -> 75925.537
C84: Primas de seguro para el caso de muerte | D84: 0 | F84: =validaciones(D84,H84,0)&IF(AND(Datos!$C$11="Informativa",D84<>0),"En la DDJJ informativa, este campo debe consignarse en cero (0)","") ->  | H84: =+Tablas!B2 -> 24000
C85: Primas por riesgo de muerte y de ahorro de seguros mixtos, excepto para los casos de seguros de retiro privados administrados por entidades sujetas al control de la Superintendencia de Seguros de la Nación | D85: 0 | F85: =validaciones(D85,H85,0)&IF(AND(Datos!$C$11="Informativa",D85<>0),"En la DDJJ informativa, este campo debe consignarse en cero (0)","") ->  | H85: =+H84 -> 24000
C86: Aportes a planes de seguro de retiro privados administrados por entidades sujetas al control de la Superintendencia de Seguros de la Nación | D86: 0 | F86: =validaciones(D86,H86,0)&IF(AND(Datos!$C$11="Informativa",D86<>0),"En la DDJJ informativa, este campo debe consignarse en cero (0)","") ->  | H86: =+H85 -> 24000
C87: Cuotapartes de fondos comunes de inversión constituidos con fines de retiro | D87: 0 | F87: =validaciones(D87,H87,0)&IF(D87<>0,"Deberá consignarse en cero (0), hasta que la Autoridad de Aplicación – CNV – autorice a las Entidades a funcionar e implemente el régimen.","") ->  | H87: 0
C88: Gastos de sepelio | D88: 0 | F88: =validaciones(D88,H88,0) ->  | H88: =+Tablas!B6 -> 996.23
C89: Gastos amortización e intereses rodado para corredores y viajantes de comercio | D89: 0 | F89: =validaciones(D89,H89,0)&IF(D89>$D$74," El importe no puede ser mayor a la remuneración total","") -> 
C90: Donaciones a fiscos nacional, provinciales y municipales, y a instituciones comprendidas en el artículo 26, incisos e) y f) de la ley | D90: 0 | F90: =validaciones(D90,H90,0) ->  | H90: =(D72-SUM(D77:D82,D84:D89,D91,D93:D94,D95:D103))*0.05 -> 75925.537
C91: Descuentos obligatorios establecidos por ley nacional, provincial o municipal | D91: 0 | F91: =validaciones(D91,H91,0)&IF(D91>$D$74," El importe no puede ser mayor a la remuneración total","") -> 
C92: Honorarios por servicios de asistencia sanitaria, médica y paramédica | D92: 0 | F92: =validaciones(D92,H92,0)&IF(AND(Datos!$C$11="Informativa",D92<>0),"En la DDJJ informativa, este campo debe consignarse en cero (0)","") ->  | H92: =(D72-SUM(D77:D82,D84:D89,D91,D93:D94,D95:D103))*0.05 -> 75925.537
C93: Intereses de créditos hipotecarios | D93: 0 | F93: =validaciones(D93,H93,0) ->  | H93: =+Tablas!B3 -> 20000
C94: Aportes al capital social o al fondo de riesgo de socios protectores de sociedades de garantía recíproca | D94: 0 | F94: =validaciones(D94,H94,0) -> 
C95: Alquileres de inmuebles destinados a casa habitación | D95: 0 | F95: =validaciones(D95,H95,0) ->  | H95: =IF(Datos!C11="Final",ROUND(Tablas!B4/12*12,2),ROUND(Tablas!B4/12*MONTH(Datos!C13),2)) -> 167678.4
C96: Empleados del servicio doméstico | D96: 0 | F96: =validaciones(D96,H96,0) ->  | H96: =Tablas!B4 -> 167678.4
C97: Gastos de movilidad, viáticos y otras compensaciones análogas abonados por el empleador | D97: 0 | F97: =validaciones(D97,H97,0) ->  | H97: =IF(D13="Desarrolla la actividad",Tablas!B4,Tablas!B4*0.4) -> 67071.36
C98: Gastos por adquisición de indumentaria y/o equipamiento de trabajo | D98: 0 | F98: =validaciones(D98,H98,0) -> 
C99: Otras deducciones - aportes a Cajas Complementarias de Previsión, Fondos Compensadores de Previsión o similares | D99: 0 | F99: =validaciones(D99,H99,0) -> 
C100: Otras deducciones - Aportes para jubilaciones, retiros y subsidios ANSES | D100: 0 | F100: =validaciones(D100,H100,0) -> 
C101: Otras deducciones - Cajas Provinciales o Municipales o de Previsión para Profesionales | D101: 0 | F101: =validaciones(D101,H101,0) -> 
C102: Otras deducciones - Actores - Retribución pagada a los representantes - RG 2442/08 | D102: 0 | F102: =validaciones(D102,H102,0) -> 
C103: Otras deducciones - Fondos compensadores de previsión | D103: 0 | F103: =validaciones(D103,H103,0) -> 
C104: Otras deducciones | D104: =+SUM(D99:E103) -> 0
C105: TOTAL DEDUCCIONES GENERALES | D105: =SUM(D77:E103) -> 324846.61 | K105: =+D72-D105 -> 1518510.74
C107: DEDUCCIONES PERSONALES | H107: Topes máximos legales
C108: Ganancia no imponible | D108: 167678.4 | F108: =validaciones(D108,H108,0) ->  | H108: =deducciones(1,Datos!C11,MONTH(Datos!$C$13),$D$12) -> 167678.4 | K108: =IF(K105-K109<=0,0,IF(K105-K109<=H108,K105-K109,H108)) -> 167678.4
C109: Deducción especial | D109: 804856.34 | F109: =validaciones(D109,H109,0) ->  | H109: =deducciones(2,Datos!$C$11,MONTH(Datos!$C$13),$D$12) -> 804856.34 | K109: =IF(K105<=H109,K105,H109) -> 804856.34
C110: Deducción Especial Incrementada Primera parte del penúltimo párrafo del inciso c) del artículo 30 de la ley del gravamen | D110: 239679.25
C111: Deducción Especial Incrementada Segunda parte del penúltimo párrafo del inciso c) del artículo 30 de la ley del gravamen | D111: 1335
C112: Deducción específica | D112: 0 | F112: =validaciones(D112,H112,0) ->  | H112: 0
C113: Cargas de familia
C114: Cónyuge | D114: 0 | F114: =validaciones(D114,H114,0) ->  | H114: =cargas_de_familia(4,Datos!$C$11,MONTH(Datos!$C$13),$D$12) -> 156320.63 | K114: =IF(K105-K108-K109>=D114,D114,K105-K108-K109) -> 0
C115: Cantidad de hijos e hijastros | D115: 0 | F115: =validaciones(D115,H115,0) ->  | H115: 99
C116: Deducción total hijos e hijastros | D116: 0 | H116: =cargas_de_familia(3,Datos!$C$11,MONTH(Datos!$C$13),$D$12)*D115 -> 0 | K116: =IF(K105-K108-K109-K114>=D116,D116,K105-K108-K109-K114) -> 0
C117: Cantidad de hijos e hijastros incapacitados para el trabajo | D117: 0 | F117: =validaciones(D117,H117,0) ->  | H117: 99
C118: Hijos / Hijastros incapacitados para el trabajo | D118: 0 | H118: =cargas_de_familia(5,Datos!$C$11,MONTH(Datos!$C$13),$D$12) -> 157666.16
C119: Total de cargas de familia | D119: =+D114+D116+D118 -> 0 | H119: 0
C120: TOTAL DEDUCCIONES PERSONALES | D120: =SUM(D108:D112,D119) -> 1213548.99
C122: DETERMINACIÓN DEL IMPUESTO
C123: REMUNERACIÓN NETA SUJETA A IMPUESTO -antes de la deducción art. 46 L. 27541- | D123: 0
C124: Deducción inciso a) primer párrafo artículo 30 de la ley (cfr. art. 46 L. 27541) | D124: 0 | H124: 0 | K124: =IF(D123-K125<=0,0,IF(D123-K125<=H124,D123-K125,H124)) -> 0
C125: Deducción inciso c) primer párrafo artículo 30 de la ley (cfr. art. 46 L. 27541) | D125: 0 | H125: 0 | K125: =IF(D123<=H125,D123,H125) -> 0
C126: REMUNERACIÓN SUJETA A IMPUESTO | D126: =IF(+D72-D105-D120<0,0,+D72-D105-D120) -> 304961.75
C127: Alícuota aplicable artículo 94 ley de impuesto a las ganancias | D127: =IF(OR(Datos!C11="Final",Datos!C11="Anual"),impuestoAlicuota(D126,D25*(1-G25)+D51*(1-G51),12),impuestoAlicuota(D126,D25*(1-G25)+D51*(1-G51),MONTH(D11))) -> 0.19
C128: Alícuota aplicable sin incluir horas extras | D128: =IF(OR(Datos!C11="Final",Datos!C11="Anual"),impuestoAlicuota(D126,0,12),impuestoAlicuota(D126,0,MONTH(D11))) -> 0.19
C129: IMPUESTO DETERMINADO | D129: =IF(D126<0,0,IF(OR(Datos!C11="Final",Datos!C11="Anual"),impuestoDeterminado(D126,D25*(1-G25)+D51*(1-G51),12),impuestoDeterminado(D126,D25*(1-G25)+D51*(1-G51),MONTH(D11)))) -> 35356.3123
C130: Impuesto retenido | D130: 35356.31
C131: Pagos a cuenta - Impuesto sobre créditos y débitos | D131: 0 | F131: =IF(AND(Datos!$C$11="Informativa",D131<>0),"En la DDJJ informativa, este campo debe consignarse en cero (0)","") -> 
C132: Pagos a cuenta - Percepciones / Retenciones aduaneras | D132: 0 | F132: =IF(AND(Datos!$C$11="Informativa",D132<>0),"En la DDJJ informativa, este campo debe consignarse en cero (0)","") -> 
C133: Pagos a cuenta - RG (AFIP) 3819/2015 - Cancelaciones en efectivo | D133: 0 | F133: =IF(AND(Datos!$C$11="Informativa",D133<>0),"En la DDJJ informativa, este campo debe consignarse en cero (0)","") -> 
C134: Pagos a cuenta - Bono ley 27.424 | D134: 0 | F134: =IF(AND(Datos!$C$11="Informativa",D134<>0),"En la DDJJ informativa, este campo debe consignarse en cero (0)","") -> 
C135: Pagos a cuenta - RG 4815 [LEY 27.541 Art. 35 inciso a)] | D135: 0 | F135: =IF(AND(Datos!$C$11="Informativa",D135<>0),"En la DDJJ informativa, este campo debe consignarse en cero (0)","") -> 
C136: Pagos a cuenta - RG 4815 [LEY 27.541 Art. 35 inciso b)] | D136: 0 | F136: =IF(AND(Datos!$C$11="Informativa",D136<>0),"En la DDJJ informativa, este campo debe consignarse en cero (0)","") -> 
C137: Pagos a cuenta - RG 4815 [LEY 27.541 Art. 35 inciso c)] | D137: 0 | F137: =IF(AND(Datos!$C$11="Informativa",D137<>0),"En la DDJJ informativa, este campo debe consignarse en cero (0)","") -> 
C138: Pagos a cuenta - RG 4815 [LEY 27.541 Art. 35 inciso d)] | D138: 0 | F138: =IF(AND(Datos!$C$11="Informativa",D138<>0),"En la DDJJ informativa, este campo debe consignarse en cero (0)","") -> 
C139: Pagos a cuenta - RG 4815 [LEY 27.541 Art. 35 inciso e)] | D139: 0 | F139: =IF(AND(Datos!$C$11="Informativa",D139<>0),"En la DDJJ informativa, este campo debe consignarse en cero (0)","") -> 
C140: Pagos a cuenta - Impuesto sobre créditos y débitos - sobre movimientos de fondos propios o de terceros | D140: 0 | F140: =IF(AND(Datos!$C$11="Informativa",D140<>0),"En la DDJJ informativa, este campo debe consignarse en cero (0)","") -> 
C141: Pagos a cuenta - Resolución General (AFIP) 3819/2015 - Cancelaciones en Efectivo -Servicios de transporte terrestre, aéreo y por vía acuática de pasajeros con destino fuera del país | D141: 0 | F141: =IF(AND(Datos!$C$11="Informativa",D141<>0),"En la DDJJ informativa, este campo debe consignarse en cero (0)","") -> 
C142: Total pagos a cuenta | D142: =SUM(D131:D141) -> 0
C143: SALDO A PAGAR | D143: =+ROUND(D129,2)-D130-D142 -> 0

Sheet Empleado17
C3: LIQUIDACIÓN DE IMPUESTO A LAS GANANCIAS - 4ta. CATEGORÍA RELACIÓN DE DEPENDENCIA
C6: Empleado: Nombre y apellido | D6: HEIMSATH DANIEL GUSTAVO
C7: CUIL del empleado | D7: 23184701839 | F7: =cuitValidar(D7) -> CUIT/CUIL Válido
C8: ="Agente de Retención: " -> Agente de Retención: | D8: =Datos!C7&" - "&Datos!C5 -> 33711238269 - OPERACIONES AGROPORTUARIAS S.A.
C9: ="Período Fiscal: " -> Período Fiscal: | D9: =YEAR(Datos!C13) -> 2021
C10: Período trabajado (desde): | D10: 2021-01-01
C11: Período trabajado (hasta): | D11: 2021-09-25 | H11: =IF(MONTH(D11)>MONTH(Datos!C13),"El período trabajado no puede ser mayor al período que se informa (mes "&MONTH(Datos!C13)&")","") -> 
C12: Zona geográfica: | D12: Todo el país (excepto zona patagónica)
C13: Transporte a larga distancia | D13: No desarrolla la actividad
C14: Beneficio promocional 27424? | D14: No
C15: Beneficio de la ley 27549? | D15: No
C16: El trabajador labora bajo el régimen de teletrabajo (Ley 27555)? | D16: No
C17: El trabajador es personal militar en actividad? | D17: No
C19: REMUNERACIONES
C20: Abonadas por el agente de retención:
C21: Remuneración bruta gravada | D21: 1761395.99
C22: Retribuciones no habituales gravadas | D22: 0
C23: SAC primera cuota gravado | D23: 0
C24: SAC segunda cuota gravado | D24: 0
C25: Horas extras remuneración gravada | D25: 0 | G25: 0 | H25: % de retenciones
C26: Movilidad y viáticos remuneración gravada | D26: 0
C27: Material didáctico personal docente remuneración gravada | D27: 0
C28: Remuneración no alcanzada o exenta (sin horas extras) | D28: 0
C29: Remuneración exenta ley 27549 | D29: 0 | F29: =IF(AND($D$15="No",D29<>0),"Para que sea procedente el beneficio, modifique el valor en la celda D15","") -> 
C30: Retribuciones no habituales exentas o no alcanzadas | D30: 0
C31: Horas extras remuneración exenta | D31: 0
C32: Movilidad y viáticos remuneración exenta | D32: 0
C33: Material didáctico personal docente remuneración exenta | D33: 0
C34: Bonos de productividad gravados | D34: 0
C35: Fallos de caja gravados | D35: 0
C36: Conceptos de similar naturaleza gravados | D36: 0
C37: Bonos de productividad exentos | D37: 0
C38: Fallos de caja exentos | D38: 0
C39: Conceptos de similar naturaleza exentos | D39: 0
C40: Compensación de gastos de teletrabajo exentos | D40: 0
C41: Personal militar - suplementos art. 57 ley 19.101 - exentos | D41: 0
C42: SAC primera cuota - No alcanzado o exento | D42: 0
C43: SAC segunda cuota - No alcanzado o exento | D43: 0
C44: Ajustes períodos anteriores - Remuneración gravada | D44: 0
C45: Ajustes períodos anteriores - Remuneración exenta / no alcanzada | D45: 0
C46: Otros empleos:
C47: Remuneración bruta gravada | D47: 0
C48: Retribuciones no habituales gravadas | D48: 0
C49: SAC primera cuota gravado | D49: 0
C50: SAC segunda cuota gravado | D50: 0
C51: Horas extras remuneración gravada | D51: 0 | G51: 0 | H51: % de retenciones
C52: Movilidad y viáticos remuneración gravada | D52: 0
C53: Material didáctico personal docente remuneración gravada | D53: 0
C54: Remuneración no alcanzada o exenta | D54: 0
C55: Remuneración exenta ley 27549 | D55: 0 | F55: =IF(AND($D$15="No",D55<>0),"Para que sea procedente el beneficio, modifique el valor en la celda D15","") -> 
C56: Retribuciones no habituales exentas o no alcanzadas | D56: 0
C57: Horas extras remuneración exenta o no alcanzada | D57: 0
C58: Movilidad y viáticos remuneración exenta o no alcanzada | D58: 0
C59: Material didáctico personal docente remuneración exenta o no alcanzada | D59: 0
C60: Bonos de productividad gravados | D60: 0
C61: Fallos de caja gravados | D61: 0
C62: Conceptos de similar naturaleza gravados | D62: 0
C63: Bonos de productividad exentos | D63: 0
C64: Fallos de caja exentos | D64: 0
C65: Conceptos de similar naturaleza exentos | D65: 0
C66: Compensación de gastos teletrabajo - exentos | D66: 0
C67: Personal militar - suplementos art. 57 Ley 19101 - exentos | D67: 0
C68: SAC primera cuota - No alcanzado o exento | D68: 0
C69: SAC segunda cuota - No alcanzado o exento | D69: 0
C70: Ajustes períodos anteriores - Remuneración gravada | D70: 0
C71: Ajustes períodos anteriores - Remuneración no alcanzada o exenta | D71: 0
C72: TOTAL REMUNERACIÓN GRAVADA | D72: =SUM(D21:E27,D44,D47:D53,D70) -> 1761395.99
C73: TOTAL REMUNERACIÓN NO ALCANZADA O EXENTA | D73: =SUM(D28:D43,D45,D54:D69,D71) -> 0
C74: TOTAL REMUNERACIONES | D74: =IF(+D72+D73<0,0,D72+D73) -> 1761395.99
C76: DEDUCCIONES GENERALES | H76: Topes máximos legales
C77: Aportes a fondos de jubilaciones, retiros, pensiones o subsidios que se destinen a cajas nacionales, provinciales o municipales | D77: 213968.67 | F77: =validaciones(D77,H77,0)&IF(D77>$D$74," El importe no puede ser mayor a la remuneración total","") -> 
C78: Aportes a fondos de jubilaciones, retiros, pensiones o subsidios que se destinen a cajas nacionales, provinciales o municipales por otros empleos | D78: 0 | F78: =validaciones(D78,H78,0)&IF(D78>$D$74," El importe no puede ser mayor a la remuneración total","") -> 
C79: Aportes a obra sociales | D79: 45850.43 | F79: =validaciones(D79,H79,0)&IF(D79>$D$74," El importe no puede ser mayor a la remuneración total","") -> 
C80: Aportes a obra sociales por otros empleos | D80: 0 | F80: =validaciones(D80,H80,0)&IF(D80>$D$74," El importe no puede ser mayor a la remuneración total","") -> 
C81: Cuota sindical | D81: 33945.52 | F81: =validaciones(D81,H81,0)&IF(D81>$D$74," El importe no puede ser mayor a la remuneración total","") -> 
C82: Cuota sindical por otros empleos | D82: 0 | F82: =validaciones(D82,H82,0)&IF(D82>$D$74," El importe no puede ser mayor a la remuneración total","") -> 
C83: Cuotas médico asistenciales | D83: 0 | F83: =validaciones(D83,H83,0) ->  | H83: =(D72-SUM(D77:D82,D84:D89,D91,D93:D94,D95:D103))*0.05 -> 73381.5685
C84: Primas de seguro para el caso de muerte | D84: 0 | F84: =validaciones(D84,H84,0)&IF(AND(Datos!$C$11="Informativa",D84<>0),"En la DDJJ informativa, este campo debe consignarse en cero (0)","") ->  | H84: =+Tablas!B2 -> 24000
C85: Primas por riesgo de muerte y de ahorro de seguros mixtos, excepto para los casos de seguros de retiro privados administrados por entidades sujetas al control de la Superintendencia de Seguros de la Nación | D85: 0 | F85: =validaciones(D85,H85,0)&IF(AND(Datos!$C$11="Informativa",D85<>0),"En la DDJJ informativa, este campo debe consignarse en cero (0)","") ->  | H85: =+H84 -> 24000
C86: Aportes a planes de seguro de retiro privados administrados por entidades sujetas al control de la Superintendencia de Seguros de la Nación | D86: 0 | F86: =validaciones(D86,H86,0)&IF(AND(Datos!$C$11="Informativa",D86<>0),"En la DDJJ informativa, este campo debe consignarse en cero (0)","") ->  | H86: =+H85 -> 24000
C87: Cuotapartes de fondos comunes de inversión constituidos con fines de retiro | D87: 0 | F87: =validaciones(D87,H87,0)&IF(D87<>0,"Deberá consignarse en cero (0), hasta que la Autoridad de Aplicación – CNV – autorice a las Entidades a funcionar e implemente el régimen.","") ->  | H87: 0
C88: Gastos de sepelio | D88: 0 | F88: =validaciones(D88,H88,0) ->  | H88: =+Tablas!B6 -> 996.23
C89: Gastos amortización e intereses rodado para corredores y viajantes de comercio | D89: 0 | F89: =validaciones(D89,H89,0)&IF(D89>$D$74," El importe no puede ser mayor a la remuneración total","") -> 
C90: Donaciones a fiscos nacional, provinciales y municipales, y a instituciones comprendidas en el artículo 26, incisos e) y f) de la ley | D90: 0 | F90: =validaciones(D90,H90,0) ->  | H90: =(D72-SUM(D77:D82,D84:D89,D91,D93:D94,D95:D103))*0.05 -> 73381.5685
C91: Descuentos obligatorios establecidos por ley nacional, provincial o municipal | D91: 0 | F91: =validaciones(D91,H91,0)&IF(D91>$D$74," El importe no puede ser mayor a la remuneración total","") -> 
C92: Honorarios por servicios de asistencia sanitaria, médica y paramédica | D92: 0 | F92: =validaciones(D92,H92,0)&IF(AND(Datos!$C$11="Informativa",D92<>0),"En la DDJJ informativa, este campo debe consignarse en cero (0)","") ->  | H92: =(D72-SUM(D77:D82,D84:D89,D91,D93:D94,D95:D103))*0.05 -> 73381.5685
C93: Intereses de créditos hipotecarios | D93: 0 | F93: =validaciones(D93,H93,0) ->  | H93: =+Tablas!B3 -> 20000
C94: Aportes al capital social o al fondo de riesgo de socios protectores de sociedades de garantía recíproca | D94: 0 | F94: =validaciones(D94,H94,0) -> 
C95: Alquileres de inmuebles destinados a casa habitación | D95: 0 | F95: =validaciones(D95,H95,0) ->  | H95: =IF(Datos!C11="Final",ROUND(Tablas!B4/12*12,2),ROUND(Tablas!B4/12*MONTH(Datos!C13),2)) -> 167678.4
C96: Empleados del servicio doméstico | D96: 0 | F96: =validaciones(D96,H96,0) ->  | H96: =Tablas!B4 -> 167678.4
C97: Gastos de movilidad, viáticos y otras compensaciones análogas abonados por el empleador | D97: 0 | F97: =validaciones(D97,H97,0) ->  | H97: =IF(D13="Desarrolla la actividad",Tablas!B4,Tablas!B4*0.4) -> 67071.36
C98: Gastos por adquisición de indumentaria y/o equipamiento de trabajo | D98: 0 | F98: =validaciones(D98,H98,0) -> 
C99: Otras deducciones - aportes a Cajas Complementarias de Previsión, Fondos Compensadores de Previsión o similares | D99: 0 | F99: =validaciones(D99,H99,0) -> 
C100: Otras deducciones - Aportes para jubilaciones, retiros y subsidios ANSES | D100: 0 | F100: =validaciones(D100,H100,0) -> 
C101: Otras deducciones - Cajas Provinciales o Municipales o de Previsión para Profesionales | D101: 0 | F101: =validaciones(D101,H101,0) -> 
C102: Otras deducciones - Actores - Retribución pagada a los representantes - RG 2442/08 | D102: 0 | F102: =validaciones(D102,H102,0) -> 
C103: Otras deducciones - Fondos compensadores de previsión | D103: 0 | F103: =validaciones(D103,H103,0) -> 
C104: Otras deducciones | D104: =+SUM(D99:E103) -> 0
C105: TOTAL DEDUCCIONES GENERALES | D105: =SUM(D77:E103) -> 293764.62 | K105: =+D72-D105 -> 1467631.37
C107: DEDUCCIONES PERSONALES | H107: Topes máximos legales
C108: Ganancia no imponible | D108: 167678.4 | F108: =validaciones(D108,H108,0) ->  | H108: =deducciones(1,Datos!C11,MONTH(Datos!$C$13),$D$12) -> 167678.4 | K108: =IF(K105-K109<=0,0,IF(K105-K109<=H108,K105-K109,H108)) -> 167678.4
C109: Deducción especial | D109: 804856.34 | F109: =validaciones(D109,H109,0) ->  | H109: =deducciones(2,Datos!$C$11,MONTH(Datos!$C$13),$D$12) -> 804856.34 | K109: =IF(K105<=H109,K105,H109) -> 804856.34
C110: Deducción Especial Incrementada Primera parte del penúltimo párrafo del inciso c) del artículo 30 de la ley del gravamen | D110: 480632.5
C111: Deducción Especial Incrementada Segunda parte del penúltimo párrafo del inciso c) del artículo 30 de la ley del gravamen | D111: 41348
C112: Deducción específica | D112: 0 | F112: =validaciones(D112,H112,0) ->  | H112: 0
C113: Cargas de familia
C114: Cónyuge | D114: 0 | F114: =validaciones(D114,H114,0) ->  | H114: =cargas_de_familia(4,Datos!$C$11,MONTH(Datos!$C$13),$D$12) -> 156320.63 | K114: =IF(K105-K108-K109>=D114,D114,K105-K108-K109) -> 0
C115: Cantidad de hijos e hijastros | D115: 0 | F115: =validaciones(D115,H115,0) ->  | H115: 99
C116: Deducción total hijos e hijastros | D116: 0 | H116: =cargas_de_familia(3,Datos!$C$11,MONTH(Datos!$C$13),$D$12)*D115 -> 0 | K116: =IF(K105-K108-K109-K114>=D116,D116,K105-K108-K109-K114) -> 0
C117: Cantidad de hijos e hijastros incapacitados para el trabajo | D117: 0 | F117: =validaciones(D117,H117,0) ->  | H117: 99
C118: Hijos / Hijastros incapacitados para el trabajo | D118: 0 | H118: =cargas_de_familia(5,Datos!$C$11,MONTH(Datos!$C$13),$D$12) -> 157666.16
C119: Total de cargas de familia | D119: =+D114+D116+D118 -> 0 | H119: 0
C120: TOTAL DEDUCCIONES PERSONALES | D120: =SUM(D108:D112,D119) -> 1494515.24
C122: DETERMINACIÓN DEL IMPUESTO
C123: REMUNERACIÓN NETA SUJETA A IMPUESTO -antes de la deducción art. 46 L. 27541- | D123: 0
C124: Deducción inciso a) primer párrafo artículo 30 de la ley (cfr. art. 46 L. 27541) | D124: 0 | H124: 0 | K124: =IF(D123-K125<=0,0,IF(D123-K125<=H124,D123-K125,H124)) -> 0
C125: Deducción inciso c) primer párrafo artículo 30 de la ley (cfr. art. 46 L. 27541) | D125: 0 | H125: 0 | K125: =IF(D123<=H125,D123,H125) -> 0
C126: REMUNERACIÓN SUJETA A IMPUESTO | D126: =IF(+D72-D105-D120<0,0,+D72-D105-D120) -> 0
C127: Alícuota aplicable artículo 94 ley de impuesto a las ganancias | D127: =IF(OR(Datos!C11="Final",Datos!C11="Anual"),impuestoAlicuota(D126,D25*(1-G25)+D51*(1-G51),12),impuestoAlicuota(D126,D25*(1-G25)+D51*(1-G51),MONTH(D11))) -> 0
C128: Alícuota aplicable sin incluir horas extras | D128: =IF(OR(Datos!C11="Final",Datos!C11="Anual"),impuestoAlicuota(D126,0,12),impuestoAlicuota(D126,0,MONTH(D11))) -> 0
C129: IMPUESTO DETERMINADO | D129: =IF(D126<0,0,IF(OR(Datos!C11="Final",Datos!C11="Anual"),impuestoDeterminado(D126,D25*(1-G25)+D51*(1-G51),12),impuestoDeterminado(D126,D25*(1-G25)+D51*(1-G51),MONTH(D11)))) -> 0
C130: Impuesto retenido | D130: 0
C131: Pagos a cuenta - Impuesto sobre créditos y débitos | D131: 0 | F131: =IF(AND(Datos!$C$11="Informativa",D131<>0),"En la DDJJ informativa, este campo debe consignarse en cero (0)","") -> 
C132: Pagos a cuenta - Percepciones / Retenciones aduaneras | D132: 0 | F132: =IF(AND(Datos!$C$11="Informativa",D132<>0),"En la DDJJ informativa, este campo debe consignarse en cero (0)","") -> 
C133: Pagos a cuenta - RG (AFIP) 3819/2015 - Cancelaciones en efectivo | D133: 0 | F133: =IF(AND(Datos!$C$11="Informativa",D133<>0),"En la DDJJ informativa, este campo debe consignarse en cero (0)","") -> 
C134: Pagos a cuenta - Bono ley 27.424 | D134: 0 | F134: =IF(AND(Datos!$C$11="Informativa",D134<>0),"En la DDJJ informativa, este campo debe consignarse en cero (0)","") -> 
C135: Pagos a cuenta - RG 4815 [LEY 27.541 Art. 35 inciso a)] | D135: 20072.5 | F135: =IF(AND(Datos!$C$11="Informativa",D135<>0),"En la DDJJ informativa, este campo debe consignarse en cero (0)","") -> 
C136: Pagos a cuenta - RG 4815 [LEY 27.541 Art. 35 inciso b)] | D136: 0 | F136: =IF(AND(Datos!$C$11="Informativa",D136<>0),"En la DDJJ informativa, este campo debe consignarse en cero (0)","") -> 
C137: Pagos a cuenta - RG 4815 [LEY 27.541 Art. 35 inciso c)] | D137: 0 | F137: =IF(AND(Datos!$C$11="Informativa",D137<>0),"En la DDJJ informativa, este campo debe consignarse en cero (0)","") -> 
C138: Pagos a cuenta - RG 4815 [LEY 27.541 Art. 35 inciso d)] | D138: 0 | F138: =IF(AND(Datos!$C$11="Informativa",D138<>0),"En la DDJJ informativa, este campo debe consignarse en cero (0)","") -> 
C139: Pagos a cuenta - RG 4815 [LEY 27.541 Art. 35 inciso e)] | D139: 0 | F139: =IF(AND(Datos!$C$11="Informativa",D139<>0),"En la DDJJ informativa, este campo debe consignarse en cero (0)","") -> 
C140: Pagos a cuenta - Impuesto sobre créditos y débitos - sobre movimientos de fondos propios o de terceros | D140: 0 | F140: =IF(AND(Datos!$C$11="Informativa",D140<>0),"En la DDJJ informativa, este campo debe consignarse en cero (0)","") -> 
C141: Pagos a cuenta - Resolución General (AFIP) 3819/2015 - Cancelaciones en Efectivo -Servicios de transporte terrestre, aéreo y por vía acuática de pasajeros con destino fuera del país | D141: 0 | F141: =IF(AND(Datos!$C$11="Informativa",D141<>0),"En la DDJJ informativa, este campo debe consignarse en cero (0)","") -> 
C142: Total pagos a cuenta | D142: =SUM(D131:D141) -> 20072.5
C143: SALDO A PAGAR | D143: =+ROUND(D129,2)-D130-D142 -> -20072.5

Sheet Empleado18
C3: LIQUIDACIÓN DE IMPUESTO A LAS GANANCIAS - 4ta. CATEGORÍA RELACIÓN DE DEPENDENCIA
C6: Empleado: Nombre y apellido | D6: MIGLIO EMILIANO DAVID
C7: CUIL del empleado | D7: 20381344437 | F7: =cuitValidar(D7) -> CUIT/CUIL Válido
C8: ="Agente de Retención: " -> Agente de Retención: | D8: =Datos!C7&" - "&Datos!C5 -> 33711238269 - OPERACIONES AGROPORTUARIAS S.A.
C9: ="Período Fiscal: " -> Período Fiscal: | D9: =YEAR(Datos!C13) -> 2021
C10: Período trabajado (desde): | D10: 2021-01-01
C11: Período trabajado (hasta): | D11: 2021-09-25 | H11: =IF(MONTH(D11)>MONTH(Datos!C13),"El período trabajado no puede ser mayor al período que se informa (mes "&MONTH(Datos!C13)&")","") -> 
C12: Zona geográfica: | D12: Todo el país (excepto zona patagónica)
C13: Transporte a larga distancia | D13: No desarrolla la actividad
C14: Beneficio promocional 27424? | D14: No
C15: Beneficio de la ley 27549? | D15: No
C16: El trabajador labora bajo el régimen de teletrabajo (Ley 27555)? | D16: No
C17: El trabajador es personal militar en actividad? | D17: No
C19: REMUNERACIONES
C20: Abonadas por el agente de retención:
C21: Remuneración bruta gravada | D21: 2552056.31
C22: Retribuciones no habituales gravadas | D22: 0
C23: SAC primera cuota gravado | D23: 0
C24: SAC segunda cuota gravado | D24: 0
C25: Horas extras remuneración gravada | D25: 0 | G25: 0 | H25: % de retenciones
C26: Movilidad y viáticos remuneración gravada | D26: 0
C27: Material didáctico personal docente remuneración gravada | D27: 0
C28: Remuneración no alcanzada o exenta (sin horas extras) | D28: 0
C29: Remuneración exenta ley 27549 | D29: 0 | F29: =IF(AND($D$15="No",D29<>0),"Para que sea procedente el beneficio, modifique el valor en la celda D15","") -> 
C30: Retribuciones no habituales exentas o no alcanzadas | D30: 0
C31: Horas extras remuneración exenta | D31: 0
C32: Movilidad y viáticos remuneración exenta | D32: 0
C33: Material didáctico personal docente remuneración exenta | D33: 0
C34: Bonos de productividad gravados | D34: 0
C35: Fallos de caja gravados | D35: 0
C36: Conceptos de similar naturaleza gravados | D36: 0
C37: Bonos de productividad exentos | D37: 0
C38: Fallos de caja exentos | D38: 0
C39: Conceptos de similar naturaleza exentos | D39: 0
C40: Compensación de gastos de teletrabajo exentos | D40: 0
C41: Personal militar - suplementos art. 57 ley 19.101 - exentos | D41: 0
C42: SAC primera cuota - No alcanzado o exento | D42: 0
C43: SAC segunda cuota - No alcanzado o exento | D43: 0
C44: Ajustes períodos anteriores - Remuneración gravada | D44: 0
C45: Ajustes períodos anteriores - Remuneración exenta / no alcanzada | D45: 0
C46: Otros empleos:
C47: Remuneración bruta gravada | D47: 0
C48: Retribuciones no habituales gravadas | D48: 0
C49: SAC primera cuota gravado | D49: 0
C50: SAC segunda cuota gravado | D50: 0
C51: Horas extras remuneración gravada | D51: 0 | G51: 0 | H51: % de retenciones
C52: Movilidad y viáticos remuneración gravada | D52: 0
C53: Material didáctico personal docente remuneración gravada | D53: 0
C54: Remuneración no alcanzada o exenta | D54: 0
C55: Remuneración exenta ley 27549 | D55: 0 | F55: =IF(AND($D$15="No",D55<>0),"Para que sea procedente el beneficio, modifique el valor en la celda D15","") -> 
C56: Retribuciones no habituales exentas o no alcanzadas | D56: 0
C57: Horas extras remuneración exenta o no alcanzada | D57: 0
C58: Movilidad y viáticos remuneración exenta o no alcanzada | D58: 0
C59: Material didáctico personal docente remuneración exenta o no alcanzada | D59: 0
C60: Bonos de productividad gravados | D60: 0
C61: Fallos de caja gravados | D61: 0
C62: Conceptos de similar naturaleza gravados | D62: 0
C63: Bonos de productividad exentos | D63: 0
C64: Fallos de caja exentos | D64: 0
C65: Conceptos de similar naturaleza exentos | D65: 0
C66: Compensación de gastos teletrabajo - exentos | D66: 0
C67: Personal militar - suplementos art. 57 Ley 19101 - exentos | D67: 0
C68: SAC primera cuota - No alcanzado o exento | D68: 0
C69: SAC segunda cuota - No alcanzado o exento | D69: 0
C70: Ajustes períodos anteriores - Remuneración gravada | D70: 0
C71: Ajustes períodos anteriores - Remuneración no alcanzada o exenta | D71: 0
C72: TOTAL REMUNERACIÓN GRAVADA | D72: =SUM(D21:E27,D44,D47:D53,D70) -> 2552056.31
C73: TOTAL REMUNERACIÓN NO ALCANZADA O EXENTA | D73: =SUM(D28:D43,D45,D54:D69,D71) -> 0
C74: TOTAL REMUNERACIONES | D74: =IF(+D72+D73<0,0,D72+D73) -> 2552056.31
C76: DEDUCCIONES GENERALES | H76: Topes máximos legales
C77: Aportes a fondos de jubilaciones, retiros, pensiones o subsidios que se destinen a cajas nacionales, provinciales o municipales | D77: 312208.07 | F77: =validaciones(D77,H77,0)&IF(D77>$D$74," El importe no puede ser mayor a la remuneración total","") -> 
C78: Aportes a fondos de jubilaciones, retiros, pensiones o subsidios que se destinen a cajas nacionales, provinciales o municipales por otros empleos | D78: 0 | F78: =validaciones(D78,H78,0)&IF(D78>$D$74," El importe no puede ser mayor a la remuneración total","") -> 
C79: Aportes a obra sociales | D79: 66901.73 | F79: =validaciones(D79,H79,0)&IF(D79>$D$74," El importe no puede ser mayor a la remuneración total","") -> 
C80: Aportes a obra sociales por otros empleos | D80: 0 | F80: =validaciones(D80,H80,0)&IF(D80>$D$74," El importe no puede ser mayor a la remuneración total","") -> 
C81: Cuota sindical | D81: 66242.91 | F81: =validaciones(D81,H81,0)&IF(D81>$D$74," El importe no puede ser mayor a la remuneración total","") -> 
C82: Cuota sindical por otros empleos | D82: 0 | F82: =validaciones(D82,H82,0)&IF(D82>$D$74," El importe no puede ser mayor a la remuneración total","") -> 
C83: Cuotas médico asistenciales | D83: 0 | F83: =validaciones(D83,H83,0) ->  | H83: =(D72-SUM(D77:D82,D84:D89,D91,D93:D94,D95:D103))*0.05 -> 105335.18
